Workbook

Sheet Part A - Mng M0300 Toll
A1: CONTRACT NRA X.002-162-2023/1 TOLL
A2: SCHEDULE A: ROUTINE ROAD MAINTENNACE OF GAUTENG JOHANNESBURG FREEWAYS | G2: SECTION M0300
A3: PART A : MANAGEMENT
A5: ITEM NO | C5: DESCRIPTION | D5: UNIT | E5: QUANTITY | F5: RATE | G5: AMOUNT
A8: M0300 | C8: CONTRACTOR'S ESTABLISHMENT ON SITE
C9: AND GENERAL OBLIGATIONS
A11: M030.01 | C11: Fixed obligations | D11: LS | E11: 1 | G11: =F11*E11 -> 0.00
A13: M030.02 | C13: Value related obligations | D13: LS | E13: 1 | G13: =F13*E13 -> 0.00
A15: M030.03 | C15: Time related obligations
A17: M030.03(a) | C17: General obligations | D17: Month | E17: 60 | G17: 0.00
A19: M030.03(b) | C19: Occupational health and safety obligations | D19: Month | E19: 60 | G19: 0.00
A21: M030.03(c) | C21: Environmental obligations | D21: Month | E21: 60 | G21: 0.00
A23: M030.03(d) | C23: Reporting obligations | D23: Month | E23: 60 | G23: 0.00
A25: M030.05 | C25: Tenders Process for Targeted Enterprises
A27: M030.05(a) | C27: Contractor's charge for the management for the
C28: and execution of the Targeted Enterprise
C29: procurement process:
A31: M030.05(a)i | C31: Procurement process for the totality of all tenders
C32: concluded for the appointment of Targeted
C33: Enterprise subcontractors of CIDB 1 CE and
C34: 2 CE contractor grading | D34: No | E34: 5 | G34: 0.00
A36: M030.05(a)ii | C36: Procurement process for the totality of all tenders
C37: concluded for the appointment of Targeted
C38: Enterprise subcontractors of CIDB 3 CE and
C39: 4 CE contractor grading | D39: No | E39: 3 | G39: 0.00
A41: M030.05(a)iii | C41: Procurement process for the totality of all tenders
C42: concluded for the appointment of Targeted
C43: Enterprise subcontractors of CIDB 5 CE and
C44: higher contractor grading | D44: No | E44: 3 | G44: 0.00
A46: M030.06 | C46: Responsibility of the contractor towards
C47: Targeted Enterprises
A49: M030.06(a) | C49: Contractor's establishment, management,j
C50: management support, assistance, coaching,
C51: guidance, mentoring and supervision of
C52: Targeted Enterprises | D52: Month | E52: 60 | G52: 2,000,000.00
A54: M030.08 | C54: Preparing and maintaining a Portfolio of Evidence
C55: for each subcontractors
A57: M030.08(a) | C57: Preparing and maintaining a Portfolio of Evidence
C58: for each subcontractors | D58: Prov Sum | E58: 1 | F58: 250000 | G58: 250,000.00
A60: M030.08(b) | C60: The Contractors overhead charges and profit in
C61: respect of sub-item M030.08(a) | D61: % | E61: =G58 -> 250000 | G61: 0.00
G62: =IF(OR(AND(E62="Prov",F62="Sum"),(F62="PC Sum")),". . . . . . . . .00",IF(ISERR(E62*F62),"",IF(E62*F62=0,"",ROUND(E62*F62,2)))) -> 
A64: =A8 -> M0300 | C64: TOTAL CARRIED TO SUMMARY | G64: =SUM(G7:G62) -> 2 250 000.00

Sheet Part A - Mng M0200 Toll
A1: ='Part A - Mng M0300 Toll'!A1 -> CONTRACT NRA X.002-162-2023/1 TOLL
A2: ='Part A - Mng M0300 Toll'!A2 -> SCHEDULE A: ROUTINE ROAD MAINTENNACE OF GAUTENG JOHANNESBURG FREEWAYS | G2: SECTION M0200
A3: ='Part A - Mng M0300 Toll'!A3 -> PART A : MANAGEMENT
A5: ITEM NO | C5: DESCRIPTION | D5: UNIT | E5: QUANTITY | F5: RATE | G5: AMOUNT
A8: M0200 | C8: GENERAL REQUIREMENTS AND PROVISIONS
G9: =IF(OR(AND(E9="Prov",F9="Sum"),(F9="PC Sum")),". . . . . . . . .00",IF(ISERR(E9*F9),"",IF(E9*F9=0,"",ROUND(E9*F9,2)))) -> 
A10: M020.01 | C10: Information signboards
B12: (a) | C12: Type 1 (large) | D12: No | E12: 8 | G12: =F12*E12 -> 0.00
B14: (b) | C14: Type 2 (small) | D14: No | E14: 10 | G14: =F14*E14 -> 0.00
A16: M020.02 | C16: Compensation to landowners
A18: M020.02(a) | C18: Compensation for landowners | D18: Prov Sum | E18: 1 | F18: 100,000.00 | G18: =F18*E18 -> 100,000.00
A20: M020.02(b) | C20: The contractors overhead charges and profit in
C21: respect of sub-item M020.02(a) above | D21: % | E21: =G18 -> 100,000 | G21: =F21*E21 -> 0.00
A23: M020.03 | C23: Advertising cost
B25: (a) | C25: Advertising cost | D25: Prov Sum | E25: 1 | F25: 60,000.00 | G25: 60,000.00
B27: (b) | C27: The Contractor's overhead charges and profit
C28: in respect of sub-item PM020.03 (a) | D28: % | E28: =G25 -> 60,000 | G28: =F28*E28 -> 0.00
A30: M020.04 | C30: Stakeholder and Community Liaison and Social
C31: Facilitation
A33: M020.04(a) | C33: Cost of Liaison, Social Facilitation and PLC Support | D33: Prov Sum | E33: 1 | F33: 200,000.00 | G33: =F33*E33 -> 200,000.00
A35: M020.04(b) | C35: Handling cost and profit in respect of
C36: of sub-item PM020.04 (a) | D36: % | E36: =G33 -> 200,000 | G36: =F36*E36 -> 0.00
A38: M020.05 | C38: Target Group Particiipation
A40: M020.05(a) | C40: Contract Participation Performance Bonus | D40: Prov Sum | E40: 1 | F40: 200,000.00 | G40: =F40*E40 -> 200,000.00
A43: M020.06 | C43: Training Costs:
A45: M020.06(a)i | C45: Accredited generic skills training | D45: Prime Cost | E45: 1 | G45: =F45*E45 -> 0.00
A47: M020.06(a)ii | C47: Community skills training | D47: Prime Cost | E47: 1 | G47: =F47*E47 -> 0.00
A49: M020.06(a)iii | C49: Handling cost and profit in respect of sub-item | G49: =IF(OR(AND(E49="Prov",F49="Sum"),(F49="PC Sum")),". . . . . . . . .00",IF(ISERR(E49*F49),"",IF(E49*F49=0,"",ROUND(E49*F49,2)))) -> 
C50: M020.06(a)I and M020.06(a)ii | D50: % | E50: 1,500,000 | G50: =F50*E50 -> 0.00
A52: M020.06(b) | C52: Other costs during training | D52: Prov Sum | E52: 1 | F52: 250,000.00 | G52: 250,000.00
A54: M020.06(c) | C54: Training Venue | D54: Lump Sum | E54: 1 | G54: =F54*E54 -> 0.00
A56: M020.07 | C56: Wellness Program
A58: M020.07(a) | C58: Office Facilities for Wellness Champion | D58: Month | E58: 60 | G58: =F58*E58 -> 0.00
A60: M020.07(b) | C60: Wellness Champion | D60: Prov Sum | E60: 1 | F60: 450,000.00 | G60: 450,000.00
A62: M020.07(c) | C62: Venue for ACT process | D62: Prov Sum | E62: 1 | F62: 25,000.00 | G62: 25,000.00
A64: M020.07(d) | C64: Transport for workers and their immediate families
C65: for ACT process | D65: Prov Sum | E65: 1 | F65: 150,000.00 | G65: 150,000.00
A69: =A8 -> M0200 | C69: CARRIED FORWARD | G69: =SUM(G7:G67) -> 1 435 000.00
A71: =A1 -> CONTRACT NRA X.002-162-2023/1 TOLL
A72: =A2 -> SCHEDULE A: ROUTINE ROAD MAINTENNACE OF GAUTENG JOHANNESBURG FREEWAYS | G72: =G2 -> SECTION M0200
A73: =$A$3 -> PART A : MANAGEMENT | D73: `
A75: ITEM NO | C75: DESCRIPTION | D75: UNIT | E75: QUANTITY | F75: RATE | G75: AMOUNT
A78: =A69 -> M0200 | C78: BROUGHT FORWARD | G78: =G69 -> 1 435 000.00
G80: =IF(OR(AND(E80="Prov",F80="Sum"),(F80="PC Sum")),". . . . . . . . .00",IF(ISERR(E80*F80),"",IF(E80*F80=0,"",ROUND(E80*F80,2)))) -> 
A81: M020.07(e) | C81: Remuneration for workers during ACT process | D81: Prov Sum | E81: 1 | F81: 150,000.00 | G81: 150,000.00
A83: M020.07(f) | C83: The contractors overhead charges and profit in
C84: respect of sub-item M020.07(b) to (e) | D84: % | E84: =G60+G62+G65+G81 -> 775,000 | G84: =F84*E84 -> 0.00
A86: M020.08 | C86: Transport for Wellness Champion | G86: =IF(OR(AND(E86="Prov",F86="Sum"),(F86="PC Sum")),". . . . . . . . .00",IF(ISERR(E86*F86),"",IF(E86*F86=0,"",ROUND(E86*F86,2)))) -> 
A88: M020.08(a) | C88: Transport for Wellness Champion | D88: Prov Sum | E88: 1 | F88: 150,000.00 | G88: =F88*E88 -> 150,000.00
A90: M020.08(b) | C90: The contractors overhead charges and profit in
C91: respect of sub-item M020.08(a) | D91: % | E91: =G88 -> 150,000 | G91: =F91*E91 -> 0.00
A93: M020.09 | C93: Provision of Security Services
A95: M020.09 (a) | C95: Provision of grade C security guards | D95: Person/day | E95: 5,000 | G95: =F95*E95 -> 0.00
A97: M020.09 (b) | C97: Provision of armed security guards | D97: Person/day | E97: 2,000 | G97: =F97*E97 -> 0.00
A99: M020.09 (c) | C99: Provision of response vehicle | D99: h | E99: 1,000 | G99: =F99*E99 -> 0.00
A140: =A78 -> M0200 | C140: TOTAL CARRIED TO SUMMARY | G140: =SUM(G77:G138) -> 1 735 000.00

Sheet Part A - Mng M0400 Toll
A1: ='Part A - Mng M0200 Toll'!A1 -> CONTRACT NRA X.002-162-2023/1 TOLL
A2: ='Part A - Mng M0200 Toll'!A2 -> SCHEDULE A: ROUTINE ROAD MAINTENNACE OF GAUTENG JOHANNESBURG FREEWAYS | G2: SECTION M0400
A3: ='Part A - Mng M0300 Toll'!A3 -> PART A : MANAGEMENT
A5: ITEM NO | C5: DESCRIPTION | D5: UNIT | E5: QUANTITY | F5: RATE | G5: AMOUNT
G7: =IF(OR(AND(E7="Prov",F7="Sum"),(F7="PC Sum")),". . . . . . . . .00",IF(ISERR(E7*F7),"",IF(E7*F7=0,"",ROUND(E7*F7,2)))) -> 
A8: M0400 | C8: ROUTE PATROL SERVICES
A10: M040.01 | C10: Route Patrol | D10: Month | E10: 60
A12: M040.03 | C12: Procurement and implementation of visual
C13: capturing devices for route patrol services
A15: M040.03(a) | C15: Procurement and implementation of visual
C16: capturing devices for route patrol services | D16: Prov Sum | E16: 1 | F16: 1 000 000.00 | G16: 1,000,000.00
A18: M040.03(b) | C18: The contractors overhead charges and profit in
C19: respect of sub-item M040.03(a) | D19: % | E19: =G16 -> 1 000 000
A66: =A8 -> M0400 | C66: TOTAL CARRIED TO SUMMARY | G66: =SUM(G7:G64) -> 1 000 000.00
D73: `

Sheet Part A - Mng M0500 Toll
A1: ='Part A - Mng M0200 Toll'!A1 -> CONTRACT NRA X.002-162-2023/1 TOLL
A2: ='Part A - Mng M0200 Toll'!A2 -> SCHEDULE A: ROUTINE ROAD MAINTENNACE OF GAUTENG JOHANNESBURG FREEWAYS | G2: SECTION M0500
A3: ='Part A - Mng M0300 Toll'!A3 -> PART A : MANAGEMENT
A5: ITEM NO | C5: DESCRIPTION | D5: UNIT | E5: QUANTITY | F5: RATE | G5: AMOUNT
A8: M0500 | C8: ACCOMMODATION OF TRAFFIC | G8: =IF(OR(AND(E8="Prov",F8="Sum"),(F8="PC Sum")),". . . . . . . . .00",IF(ISERR(E8*F8),"",IF(E8*F8=0,"",ROUND(E8*F8,2)))) -> 
A10: M050.01 | C10: Provision of temporary traffic control facilities
A12: M050.01(b) | C12: Road signs: R- and TR-series
A14: M050.01(b)i | C14: 1200mm | D14: No | E14: 200
A16: M050.01(b)ii | C16: 900mm | D16: No | E16: 50
A18: M050.01(c) | C18: Road signs: TW-series
A20: M050.01(c)i | C20: 1500mm | D20: No | E20: 55
A22: M050.01(c)ii | C22: 1200mm | D22: No | E22: 55
A24: M050.01(d) | C24: Rectangular road signs: TGS-, TIN- and TW-
C25: series (excluding delineators and barricades) | D25: m² | E25: 600
A27: M050.01(e) | C27: Delineators
A29: M050.01(e)i | C29: 1000mm x 250mm | D29: No | E29: 3 000
A31: M050.01(e)iii | C31: Solid rubber moulded heavy duty bases for (e)i | D31: No | E31: 3 000
A33: M050.01(f) | C33: Barricades
A35: M050.01(f)i | C35: 2400mm x 400mm | D35: No | E35: 50
A37: M050.01(f)ii | C37: 1800mm x 300mm | D37: No | E37: 50
A39: M050.02 | C39: Accommodation of traffic and maintaining
C40: temporary deviations
A42: M050.02(a) | C42: General provisions | D42: month | E42: 60
A44: M050.02(b) | C44: Work undertaken by contractor | D44: month | E44: 60
A46: M050.02(c) | C46: Work undertaken by subcontractor | D46: month | E46: 0
A48: M050.02(d) | C48: Traffic Safety Officer | D48: month | E48: 60
A50: M050.03 | C50: Supply and use of truck-mounted attenuators | D50: month | E50: 60
A52: M050.04 | C52: Additional lane closures | D52: No | E52: 126
G67: =IF(OR(AND(E67="Prov",F67="Sum"),(F67="PC Sum")),". . . . . . . . .00",IF(ISERR(E67*F67),"",IF(E67*F67=0,"",ROUND(E67*F67,2)))) -> 
A73: =A8 -> M0500 | C73: TOTAL CARRIED TO SUMMARY | G73: =SUM(G7:G71) -> 0.00
D76: `

Sheet Part A - Mng M0600 Toll
A1: ='Part A - Mng M0200 Toll'!A1 -> CONTRACT NRA X.002-162-2023/1 TOLL
A2: ='Part A - Mng M0200 Toll'!A2 -> SCHEDULE A: ROUTINE ROAD MAINTENNACE OF GAUTENG JOHANNESBURG FREEWAYS | G2: SECTION M0600
A3: ='Part A - Mng M0300 Toll'!A3 -> PART A : MANAGEMENT
A5: ITEM NO | C5: DESCRIPTION | D5: UNIT | E5: QUANTITY | F5: RATE | G5: AMOUNT
A8: M0600 | C8: SKILLS DEVELOPMENT | G8: =IF(OR(AND(E8="Prov",F8="Sum"),(F8="PC Sum")),". . . . . . . . .00",IF(ISERR(E8*F8),"",IF(E8*F8=0,"",ROUND(E8*F8,2)))) -> 
A10: M060.01(a) | C10: Contract skills Developemnt Goals (CSDG) | D10: Prime Cost | E10: 1 | F10: 853 582.00 | G10: 853,582.00
A54: =A8 -> M0600 | C54: TOTAL CARRIED TO SUMMARY | G54: =SUM(G7:G52) -> 853 582.00
D73: `

Sheet Part A - Mng M1100 Toll
A1: ='Part A - Mng M0200 Toll'!A1 -> CONTRACT NRA X.002-162-2023/1 TOLL
A2: ='Part A - Mng M0200 Toll'!A2 -> SCHEDULE A: ROUTINE ROAD MAINTENNACE OF GAUTENG JOHANNESBURG FREEWAYS | G2: SECTION M1100
A3: ='Part A - Mng M0300 Toll'!A3 -> PART A : MANAGEMENT
A5: ITEM NO | C5: DESCRIPTION | D5: UNIT | E5: QUANTITY | F5: RATE | G5: AMOUNT
A8: M110 | C8: PAVEMENT LAYERS REPAIR
A10: M110.01 | C10: Removal and excavating material from existing
C11: pavements (except milled material)
A13: M110.01(a) | C13: Area up to 50m2 | D13: m3 | E13: 150 | G13: =ROUND(E13*(ROUND(F13,2)),2) -> 0.00
A15: M110.02 | C15: Milling out material from existing pavements
A17: M110.02(b) | C17: Exceeding 30mm but no 60mm | D17: m3 | E17: 2,500 | G17: =ROUND(E17*(ROUND(F17,2)),2) -> 0.00
A19: M110.02(c) | C19: Exceeding 60mm but not exceeding 150mm | D19: m3 | E19: 1,000 | G19: =ROUND(E19*(ROUND(F19,2)),2) -> 0.00
A21: M110.02(d) | C21: Exceeding 150mm but not exceeding 250mm | D21: m3 | E21: 500 | G21: =ROUND(E21*(ROUND(F21,2)),2) -> 0.00
A23: M110.02(f) | C23: Establishment of milling machine on site | D23: No | E23: 7 | G23: =ROUND(E23*(ROUND(F23,2)),2) -> 0.00
A25: M110.02(g) | C25: Moving the milling machine on site for distance | D25: =IFERROR(VLOOKUP($B25,[1]Masterlist_4!$A$2:$J$1236,10,FALSE),"") -> 
C26: exceeding 5.0 | D26: No | E26: 7 | G26: =ROUND(E26*(ROUND(F26,2)),2) -> 0.00
A28: M110.03 | C28: Backfilling of base layer ffailures with:
A30: M110.03(c) | C30: Asphalt base (hot mix- continuously
C31: graded 28mm max)
A33: M110.03(c)(i) | C33: Areas up to 50m² | D33: ton | E33: 45 | G33: =ROUND(E33*(ROUND(F33,2)),2) -> 0.00
A35: M110.03(c)(ii) | C35: Areas exceeding 50m² up to 100m² | D35: ton | E35: 1,000 | G35: =ROUND(E35*(ROUND(F35,2)),2) -> 0.00
A37: M110.03(c)(iii) | C37: Areas exceeding 100m² | D37: ton | E37: 500 | G37: =ROUND(E37*(ROUND(F37,2)),2) -> 0.00
A39: M110.04 | C39: Surfacing of base layer repairs with:
A41: M110.04(a) | C41: Asphalt surfacing (hot mix- continuously graded medium)
A43: M110.04(a)(i) | C43: Areas up to 50m² | D43: ton | E43: 300 | G43: =ROUND(E43*(ROUND(F43,2)),2) -> 0.00
A45: M110.04(a)(ii) | C45: Areas exceeding 50m² up to 100m² | D45: ton | E45: 1,000 | G45: =ROUND(E45*(ROUND(F45,2)),2) -> 0.00
A47: M110.04(a)(iii) | C47: Areas exceeding 100m² | D47: ton | E47: 500 | G47: =ROUND(E47*(ROUND(F47,2)),2) -> 0.00
A49: M110.05 | C49: Establishment and moving of asphalt paver on site
A51: M110.05(a) | C51: Establishment of asphalt paver | D51: No | E51: 7 | G51: =ROUND(E51*(ROUND(F51,2)),2) -> 0.00
A53: M110.05(b) | C53: Moving the paver on site for distance exceeding 5km | D53: No | E53: 7 | G53: =ROUND(E53*(ROUND(F53,2)),2) -> 0.00
A55: M110.09 | C55: Overhaul of material hauled in excess of 1 km | D55: m3-km | E55: 50,000 | G55: =ROUND(E55*(ROUND(F55,2)),2) -> 0.00
A57: M110.11 | C57: 100mm cores in asphalt paving | D57: No | E57: 110 | G57: =ROUND(E57*(ROUND(F57,2)),2) -> 0.00
G61: =IF(OR(AND(E61="Prov",F61="Sum"),(F61="PC Sum")),". . . . . . . . .00",IF(ISERR(E61*F61),"",IF(E61*F61=0,"",ROUND(E61*F61,2)))) -> 
A67: =A8 -> M110 | C67: TOTAL CARRIED TO SUMMARY | G67: =SUM(G7:G65) -> 0.00

Sheet Part A - Mng M1200 Toll
A1: ='Part A - Mng M0200 Toll'!A1 -> CONTRACT NRA X.002-162-2023/1 TOLL
A2: ='Part A - Mng M0200 Toll'!A2 -> SCHEDULE A: ROUTINE ROAD MAINTENNACE OF GAUTENG JOHANNESBURG FREEWAYS | G2: SECTION M1200
A3: PART A : MANAGEMENT
A5: ITEM NO | C5: DESCRIPTION | D5: UNIT | E5: QUANTITY | F5: RATE | G5: AMOUNT
A8: M120 | C8: REPAIR OF POTHOLES
G9: =IF(OR(AND(E9="Prov",F9="Sum"),(F9="PC Sum")),". . . . . . . . .00",IF(ISERR(E9*F9),"",IF(E9*F9=0,"",ROUND(E9*F9,2)))) -> 
A10: M120.02 | C10: Pothole repair (performance based) | D10: month | E10: 60
A16: M121 | C16: REPAIR OF EDGE BREAKS
A18: M121.02 | C18: Repairing edge breaks using (performance based) | D18: month | E18: 60
A24: PM122 | C24: REPAIR OF SURFACE FAILURES
A26: M122.02 | C26: Surface failure repair (performance based) | D26: month | E26: 60
A66: =A8 -> M120 | C66: TOTAL CARRIED TO SUMMARY | G66: =SUM(G7:G64) -> 0.00

Sheet Part A - Mng M1600 Toll
A1: ='Part A - Mng M0200 Toll'!A1 -> CONTRACT NRA X.002-162-2023/1 TOLL
A2: ='Part A - Mng M0200 Toll'!A2 -> SCHEDULE A: ROUTINE ROAD MAINTENNACE OF GAUTENG JOHANNESBURG FREEWAYS | G2: SECTION M1200
A3: PART A : MANAGEMENT
A5: ITEM NO | C5: DESCRIPTION | D5: UNIT | E5: QUANTITY | F5: RATE | G5: AMOUNT
A8: M1600 | C8: SURFACE TREATMENT - TEXTURE
C9: CORRECTION
G10: =IF(OR(AND(E10="Prov",F10="Sum"),(F10="PC Sum")),". . . . . . . . .00",IF(ISERR(E10*F10),"",IF(E10*F10=0,"",ROUND(E10*F10,2)))) -> 
A11: M160 | C11: SURFACE TREATMENT - TEXTURE CORRECTION
A13: M160.01 | C13: Application of slurry mixed on site
A15: M160.01(a) | C15: Tack coating using 30 % stable grade bitumen emulsion | D15: Litre | E15: 1 000 | G15: =F15*E15 -> 0.00
A17: M160.01(b) | C17: Slurry applied for texture treatment (Fine Slurry Fine
C18: Grade with 60% stable-grade anionic bitumen emulsion)
A20: M160.01(b)(i) | C20: Applied by hand | D20: m3 | E20: 350 | G20: =F20*E20 -> 0.00
A21: M160.01(b)(ii) | C21: Applied by spreader box | D21: m3 | E21: 1 200 | G21: 0.00
A24: M160.02 | C24: Application of slurry from commercial soures
A26: M160.02(a) | C26: Tack coating using 30 % stable grade bitumen emulsion | D26: Litre | E26: 2 500 | G26: 0.00
A28: M160.02(b) | C28: Slurry applied for texture treatment (Fine Slurry Fine Grade
C29: with 60% stable-grade anionic bitumen emulsion)
A31: M160.02(b)(ii) | C31: Applied by spreader box | D31: m3 | E31: 350 | G31: 0.00
A33: M161 | C33: SURFACE TREATMENT -RUT FILLING
A35: M161.01 | C35: Application of slurry for rut filling mixed on site
A37: M161.01(b) | C37: Slurry applied by spreader box with rigid squeegees in one application
C38: for rut filling (Fine Slurry Medium Grade, Modified Cationic Bitumen
C39: Emulsion AC-E1) | D39: m3 | E39: 1 000 | G39: =F39*E39 -> 0.00
A41: M161.02 | C41: Application of slurry for rut filling from
C42: commercial sources
A44: M161.02(b) | C44: Slurry applied by spreader box with rigid squeegees in one application for rut filling (Fine Slurry Medium Grade, Modified Cationic Bitumen Emulsion AC-E1) | D44: m3 | E44: 1 200 | G44: =F44*E44 -> 0.00
A46: M161.03 | C46: Application of slurry for rut filling from commercial sources
A48: M161.03(a) | C48: Application of slurry for rut filling from commercial sources | D48: Prov Sum | E48: 1 | F48: 1 000 000.00 | G48: =F48*E48 -> 1,000,000.00
A50: M161.03(b) | C50: The Contractors overhead charges and profit in respect of sub-item M161.03(a) | D50: % | E50: =G48 -> 1 000 000 | G50: =F50*E50 -> 0.00
A68: =A8 -> M1600 | C68: TOTAL CARRIED TO SUMMARY | G68: =SUM(G8:G66) -> 1 000 000.00

Sheet Part A - Mng M7100 Toll
A1: ='Part A - Mng M0200 Toll'!A1 -> CONTRACT NRA X.002-162-2023/1 TOLL
A2: ='Part A - Mng M0200 Toll'!A2 -> SCHEDULE A: ROUTINE ROAD MAINTENNACE OF GAUTENG JOHANNESBURG FREEWAYS | G2: SECTION M7100
A3: ='Part A - Mng M0300 Toll'!A3 -> PART A : MANAGEMENT
A5: ITEM NO | C5: DESCRIPTION | D5: UNIT | E5: QUANTITY | F5: RATE | G5: AMOUNT
A8: M710 | C8: EMERGENCY STANDBY TEAM
A10: M710.01 | C10: Emergency standby
A12: M710.01(a) | C12: Emergency team on standby | D12: Month | E12: 60 | G12: =ROUND(E12*(ROUND(F12,2)),2) -> 0.00
A14: M710.01(b) | C14: Emergency equipment on standby | D14: Month | E14: 60 | G14: =ROUND(E14*(ROUND(F14,2)),2) -> 0.00
A16: M710.01(c) | C16: Call out cost | D16: km | E16: 72,000 | G16: =ROUND(E16*(ROUND(F16,2)),2) -> 0.00
G47: =IF(OR(AND(E47="Prov",F47="Sum"),(F47="PC Sum")),". . . . . . . . .00",IF(ISERR(E47*F47),"",IF(E47*F47=0,"",ROUND(E47*F47,2)))) -> 
A66: =A8 -> M710 | C66: TOTAL CARRIED TO SUMMARY | G66: =SUM(G7:G64) -> 0.00

Sheet Part A - Mng M7200 Toll
A1: ='Part A - Mng M0200 Toll'!A1 -> CONTRACT NRA X.002-162-2023/1 TOLL
A2: ='Part A - Mng M0200 Toll'!A2 -> SCHEDULE A: ROUTINE ROAD MAINTENNACE OF GAUTENG JOHANNESBURG FREEWAYS | G2: SECTION M7200
A3: ='Part A - Mng M0300 Toll'!A3 -> PART A : MANAGEMENT
A5: ITEM NO | C5: DESCRIPTION | D5: UNIT | E5: QUANTITY | F5: RATE | G5: AMOUNT
A8: M720 | C8: ALL-EMERGENCY NORMALISATION
A10: M720.01 | C10: All-emergency normalisation
A12: M720.01(a) | C12: Accident restoration and cleaning of spillages | D12: hour | E12: 5,000 | G12: =ROUND(E12*(ROUND(F12,2)),2) -> 0.00
A14: M720.01(b) | C14: Sheltering of animals | D14: hour | E14: 20 | G14: =ROUND(E14*(ROUND(F14,2)),2) -> 0.00
A16: M720.01(c) | C16: Fire fighting | D16: hour | E16: 200 | G16: =ROUND(E16*(ROUND(F16,2)),2) -> 0.00
A18: M720.01(d) | C18: Safeguarding of dangerous area | D18: hour | E18: 4,000 | G18: =ROUND(E18*(ROUND(F18,2)),2) -> 0.00
A20: M720.02 | C20: Procurement of materials
A22: M720.02(a) | C22: Procurement of materials | D22: Prov Sum | E22: 1 | F22: 2,000,000.00 | G22: =ROUND(E22*(ROUND(F22,2)),2) -> 2,000,000.00
A24: M720.02(b) | C24: The contractors overhead charges and profit in
C25: respect of sub-item M720.02(a) | D25: % | E25: =G22 -> 2,000,000 | G25: =ROUND(E25*(ROUND(F25,2)),2) -> 0.00
G47: =IF(OR(AND(E47="Prov",F47="Sum"),(F47="PC Sum")),". . . . . . . . .00",IF(ISERR(E47*F47),"",IF(E47*F47=0,"",ROUND(E47*F47,2)))) -> 
A69: =A8 -> M720 | C69: TOTAL CARRIED TO SUMMARY | G69: =SUM(G7:G67) -> 2 000 000.00
D73: `

Sheet Part A - Mng M8100 Toll
A1: ='Part A - Mng M0200 Toll'!A1 -> CONTRACT NRA X.002-162-2023/1 TOLL
A2: ='Part A - Mng M0200 Toll'!A2 -> SCHEDULE A: ROUTINE ROAD MAINTENNACE OF GAUTENG JOHANNESBURG FREEWAYS | G2: SECTION M8100
A3: ='Part A - Mng M0300 Toll'!A3 -> PART A : MANAGEMENT
A5: ITEM NO | C5: DESCRIPTION | D5: UNIT | E5: QUANTITY | F5: RATE | G5: AMOUNT
A8: M810 | C8: SMALL REPAIRS OF STRUCTURES
A10: M810.01 | C10: Minor repairs to structures
A12: M810.01(a) | C12: Minor repairs to structures | D12: Prov Sum | E12: 1 | F12: 10,000,000.00 | G12: =ROUND(E12*(ROUND(F12,2)),2) -> 10,000,000.00
A14: M810.01(b) | C14: The Contractor’s overhead charges and profit in respect
C15: of sub-item M810.01 (a) | D15: % | E15: =G12 -> 10,000,000 | G15: =ROUND(E15*(ROUND(F15,2)),2) -> 0.00
G23: =IF(OR(AND(E23="Prov",F23="Sum"),(F23="PC Sum")),". . . . . . . . .00",IF(ISERR(E23*F23),"",IF(E23*F23=0,"",ROUND(E23*F23,2)))) -> 
A70: =A8 -> M810 | C70: TOTAL CARRIED TO SUMMARY | G70: =SUM(G7:G68) -> 10 000 000.00

Sheet Part B - M1300 Toll
A1: ='Part A - Mng M0200 Toll'!A1 -> CONTRACT NRA X.002-162-2023/1 TOLL
A2: ='Part A - Mng M0200 Toll'!A2 -> SCHEDULE A: ROUTINE ROAD MAINTENNACE OF GAUTENG JOHANNESBURG FREEWAYS | G2: SECTION M1300
A3: PART B : OPERATIONAL
A5: ITEM NO | C5: DESCRIPTION | D5: UNIT | E5: QUANTITY | F5: RATE | G5: AMOUNT
A8: M130 | C8: CRACK SEALING
A10: M130.01 | C10: Cleaning and sealing the cracks
A12: M130.01(a) | C12: Cleaning cracks per metre with:
A14: M130.01(a)(ii) | C14: Hot complressed air | D14: m | E14: 20,000 | G14: =ROUND(E14*(ROUND(F14,2)),2) -> 0.00
A16: M130.01(c) | C16: Applying herbicides for sealing cracks | D16: litre | E16: 100 | G16: =ROUND(E16*(ROUND(F16,2)),2) -> 0.00
A18: M130.01(d) | C18: Priming of cracks | D18: m | E18: 20,000 | G18: =ROUND(E18*(ROUND(F18,2)),2) -> 0.00
A20: M130.01(e) | C20: Sealing the cracks with:
A22: M130.01(e)(i) | C22: C-E1 modified binder | D22: m | E22: 20,000 | G22: =ROUND(E22*(ROUND(F22,2)),2) -> 0.00
A24: M130.01(f) | C24: Extra over M130.01(e) for filling with cracks with
C25: fine sand to underside of base layer as specified | D25: m | E25: 20,000 | G25: =ROUND(E25*(ROUND(F25,2)),2) -> 0.00
A27: M130.02 | C27: Geotaxtile crack sealing
A29: M130.02(a) | C29: Sealing cracks with 200mm wide geotextile
C30: "bandage" using:
A32: M130.02(a)(i) | C32: 65 % Cationic bitumen emulsion (5%) | D32: m | E32: 3,000 | G32: =ROUND(E32*(ROUND(F32,2)),2) -> 0.00
A34: M130.02(b) | C34: Sealing "crocodile"cracks with geotextile over
C35: areas using:
A37: M130.02(b)(i) | C37: 65 % Cationic itumen emulsion (5%) | D37: m2 | E37: 3,000 | G37: =ROUND(E37*(ROUND(F37,2)),2) -> 0.00
G56: =IF(OR(AND(E56="Prov",F56="Sum"),(F56="PC Sum")),". . . . . . . . .00",IF(ISERR(E56*F56),"",IF(E56*F56=0,"",ROUND(E56*F56,2)))) -> 
A67: =A8 -> M130 | C67: TOTAL CARRIED TO SUMMARY | G67: =SUM(G7:G65) -> 0.00
D73: `

Sheet Part B - M1500 Toll
A1: ='Part A - Mng M0200 Toll'!A1 -> CONTRACT NRA X.002-162-2023/1 TOLL
A2: ='Part A - Mng M0200 Toll'!A2 -> SCHEDULE A: ROUTINE ROAD MAINTENNACE OF GAUTENG JOHANNESBURG FREEWAYS | G2: SECTION M1500
A3: PART B : OPERATIONAL
A5: ITEM NO | C5: DESCRIPTION | D5: UNIT | E5: QUANTITY | F5: RATE | G5: AMOUNT
A8: M150 | C8: CRACK AND JOINT SEALING OF CONCRETE PAVEMENTS
A10: M150.01 | C10: Preparation and sealing or resealing of old joints and cracks
C11: in existing concrete pavements:
A13: M150.01(a) | C13: Expansion joints | D13: m | E13: 20 | G13: =ROUND(E13*(ROUND(F13,2)),2) -> 0.00
A15: M150.01(b) | C15: Construction joints and weakened plane joints:
A17: M150.01(b)(i) | C17: Less than 12mm width | D17: m | E17: 20 | G17: =ROUND(E17*(ROUND(F17,2)),2) -> 0.00
A19: M150.01(b)(ii) | C19: 12mm to 20mm width | D19: m | E19: 20 | G19: =ROUND(E19*(ROUND(F19,2)),2) -> 0.00
A21: M150.01(b)(iii) | C21: Exceeding 20mm width | D21: m | E21: 20 | G21: =ROUND(E21*(ROUND(F21,2)),2) -> 0.00
A23: M150.01(c) | C23: Cracks:
A25: M150.01(c)(i) | C25: Less than 12mm width | D25: m | E25: 20 | G25: =ROUND(E25*(ROUND(F25,2)),2) -> 0.00
A27: M150.01(c)(ii) | C27: 12mm to 20mm width | D27: m | E27: 20 | G27: =ROUND(E27*(ROUND(F27,2)),2) -> 0.00
A29: M150.01(c)(iii) | C29: Exceeding 20mm width | D29: m | E29: 20 | G29: =ROUND(E29*(ROUND(F29,2)),2) -> 0.00
A31: M150.02 | C31: Temporary partial-depth pothole repair of concrete with
C32: asphalt surfacing
A34: M150.02(a) | C34: Hot mix continuously graded asphalt | D34: No | E34: 10 | G34: =ROUND(E34*(ROUND(F34,2)),2) -> 0.00
A36: M150.02(b) | C36: Cold mix asphalt | D36: No | E36: 10 | G36: =ROUND(E36*(ROUND(F36,2)),2) -> 0.00
A38: M150.03 | C38: Small repair to existing concrete pavements
A40: M150.03(a) | C40: Small repair to existing concrete pavements | D40: Prov Sum | E40: 1 | F40: 300,000.00 | G40: =ROUND(E40*(ROUND(F40,2)),2) -> 300,000.00
A42: M150.03(b) | C42: The contractors overhead charges and profit in respect of | D42: =IFERROR(VLOOKUP($B42,[1]Masterlist_4!$A$2:$J$1236,10,FALSE),"") -> 
C43: sub-item M150.03(a) | D43: % | E43: =G40 -> 300000 | G43: =ROUND(E43*(ROUND(F43,2)),2) -> 0.00
G66: =IF(OR(AND(E66="Prov",F66="Sum"),(F66="PC Sum")),". . . . . . . . .00",IF(ISERR(E66*F66),"",IF(E66*F66=0,"",ROUND(E66*F66,2)))) -> 
A73: =A8 -> M150 | C73: TOTAL CARRIED TO SUMMARY | D73: ` | G73: =SUM(G7:G71) -> 300 000.00

Sheet Part B - M1700 Toll
A1: ='Part A - Mng M0200 Toll'!A1 -> CONTRACT NRA X.002-162-2023/1 TOLL
A2: ='Part A - Mng M0200 Toll'!A2 -> SCHEDULE A: ROUTINE ROAD MAINTENNACE OF GAUTENG JOHANNESBURG FREEWAYS | G2: SECTION M1700
A3: PART B : OPERATIONAL
A5: ITEM NO | C5: DESCRIPTION | D5: UNIT | E5: QUANTITY | F5: RATE | G5: AMOUNT
A8: M170 | C8: REPAIR OF SLOPE FAILURES AND WASHAWAYS
A10: M170.01 | C10: Reconstruction of slope failures and washaways -
C11: mass earth works
A13: M170.01(a) | C13: Excavation and removing excavated material to spoil
C14: or stockpile as directed by the engineer. A
C15: distinction shall be made between:
A17: M170.01(a)(i) | C17: Soft material | D17: m³ | E17: 20 | G17: =ROUND(E17*(ROUND(F17,2)),2) -> 0.00
A19: M170.01(a)(ii) | C19: Intermediate material | D19: m³ | E19: 10 | G19: =ROUND(E19*(ROUND(F19,2)),2) -> 0.00
A21: M170.01(a)(iii) | C21: Hard and boulder class material | D21: m³ | E21: 10 | G21: =ROUND(E21*(ROUND(F21,2)),2) -> 0.00
A23: M170.01(b) | C23: Drying excavated material suitable for re-use | D23: m³ | E23: 20 | G23: =ROUND(E23*(ROUND(F23,2)),2) -> 0.00
A25: M170.01(c) | C25: Raodbed compaction to 90% of modified AASHTO density | D25: m³ | E25: 20 | G25: =ROUND(E25*(ROUND(F25,2)),2) -> 0.00
A27: M170.01(d) | C27: Backfill at excavated area in
A29: M170.01(d)(i) | C29: Fill embankments to 90% of modified AASHTO density | D29: m³ | E29: 20 | G29: =ROUND(E29*(ROUND(F29,2)),2) -> 0.00
A31: M170.01(d)(ii) | C31: Cut embankment to 90% of modified AASHTO density | D31: =IFERROR(VLOOKUP($B31,[1]Masterlist_4!$A$2:$J$1236,10,FALSE),"") -> 
C32: including haul for a free haul distance of 1.0km | D32: m³ | E32: 20 | G32: =ROUND(E32*(ROUND(F32,2)),2) -> 0.00
A34: M170.02 | C34: Reconstruction of pavement layers
A36: M170.02(a) | C36: Natural gravel selected subgrade | D36: m³ | E36: 20 | G36: =ROUND(E36*(ROUND(F36,2)),2) -> 0.00
A38: M170.02(b) | C38: Cement stabilised natural gravel subbase | D38: m³ | E38: 20 | G38: =ROUND(E38*(ROUND(F38,2)),2) -> 0.00
A40: M170.02(c) | C40: Emulsion treated crushed stone base | D40: m³ | E40: 20 | G40: =ROUND(E40*(ROUND(F40,2)),2) -> 0.00
A42: M170.02(d) | C42: Crushed stone base (G1) | D42: m³ | E42: 20 | G42: =ROUND(E42*(ROUND(F42,2)),2) -> 0.00
A44: M170.02(e) | C44: Hot mix asphalt (continuously graded medium) | D44: m³ | E44: 20 | G44: =ROUND(E44*(ROUND(F44,2)),2) -> 0.00
A46: M170.02(f) | C46: Cold mix asphalt (Agrement SA certified) | D46: m³ | E46: 5 | G46: =ROUND(E46*(ROUND(F46,2)),2) -> 0.00
A48: M170.03 | C48: Prime and Track coats
A50: M170.03(a) | C50: 30% Stable grade emulsion | D50: Litre | E50: 50 | G50: =ROUND(E50*(ROUND(F50,2)),2) -> 0.00
A52: M170.03(b) | C52: Inverted bitumen emulsion prime | D52: Litre | E52: 50 | G52: =ROUND(E52*(ROUND(F52,2)),2) -> 0.00
A54: M170.04 | C54: Overhaul on natural gravel material | D54: m3-km | E54: 150 | G54: =ROUND(E54*(ROUND(F54,2)),2) -> 0.00
A56: M170.05 | C56: Repair of slope failures and washaways
A58: M170.05(a) | C58: Provisional sum for repair of slope failures and washaways | D58: Prov sum | E58: 1 | F58: 150,000.00 | G58: =ROUND(E58*(ROUND(F58,2)),2) -> 150,000.00
A60: M170.05(b) | C60: The contractors overhead charges and profit in respect
C61: of sub-item M170.05(a) | D61: % | E61: =G58 -> 150,000 | G61: =ROUND(E61*(ROUND(F61,2)),2) -> 0.00
A69: =A8 -> M170 | C69: TOTAL CARRIED TO SUMMARY | G69: =SUM(G7:G67) -> 150 000.00
D73: `

Sheet Part B - M2100 Toll
A1: ='Part A - Mng M0200 Toll'!A1 -> CONTRACT NRA X.002-162-2023/1 TOLL
A2: ='Part A - Mng M0200 Toll'!A2 -> SCHEDULE A: ROUTINE ROAD MAINTENNACE OF GAUTENG JOHANNESBURG FREEWAYS | G2: SECTION M2100
A3: PART B : OPERATIONAL
A5: ITEM NO | C5: DESCRIPTION | D5: UNIT | E5: QUANTITY | F5: RATE | G5: AMOUNT
A8: M210 | C8: REPAIR AND MAINTENANCE OF INLET AND OUTLET STRUCTURES
A10: M210.01 | C10: Excavation
A12: M210.01(a) | C12: Excavation soft material | D12: m³ | E12: 252 | G12: =ROUND(E12*(ROUND(F12,2)),2) -> 0.00
E13: 0
A14: M210.01(b) | C14: Excavation hard material | D14: m³ | E14: 150 | G14: 0.00
E15: 0
A16: M210.02 | C16: Backfilling | E16: 0
E17: 0
A18: M210.02(a) | C18: Using the excavated material | D18: m³ | E18: 30 | G18: =ROUND(E18*(ROUND(F18,2)),2) -> 0.00
E19: 0
A20: M210.02(b) | C20: Using stabilised excavated material | D20: m³ | E20: 20 | G20: =ROUND(E20*(ROUND(F20,2)),2) -> 0.00
E21: 0
A22: M210.03 | C22: Reconstruction of inlet and outlet structures | E22: 0
E23: 0
A24: M210.03(a) | C24: In concrete (class indicated) | E24: 0
E25: 0
A26: M210.03(a)i | C26: Concrete (Class 15/19) | D26: m³ | E26: 10 | G26: =ROUND(E26*(ROUND(F26,2)),2) -> 0.00
A27: M210.03(a)iii | C27: Concrete (Class 25/19) | D27: m³ | E27: 10 | G27: 0.00
E28: 0
A29: M210.03(b) | C29: Brickwork | D29: m³ | E29: 5 | G29: 0.00
E30: 0
A31: M210.03(c) | C31: Plastering | D31: m² | E31: 10 | G31: 0.00
E32: 0
A33: M210.03(d) | C33: Maintenance of grids
A35: M210.03(d)(i) | C35: Welding and loosening of steel grids | D35: Prov Sum | E35: 1 | F35: 30,000.00 | G35: 30 000.00
A37: M210.03(d)(ii) | C37: The Contractors overhead charges and profit in respect of sub-item M210.03 (d)(i) | D37: % | E37: =G35 -> 30,000 | G37: 0.00
A39: M210.04 | C39: Accessories
A41: M210.04(a) | C41: Accessories | D41: Prov Sum | E41: 1 | F41: 1,000,000.00 | G41: 1 000 000.00
A43: M210.04(b) | C43: The Contractors overhead charges and profit in respect of sub-item M210.04 (a) | D43: % | E43: =G41 -> 1,000,000 | G43: 0.00
A45: M210.05 | C45: Demolition of existing structures
A47: M210.05(a) | C47: Plain concrete | D47: m3 | E47: 10 | G47: 0.00
A49: M210.05(b) | C49: Reinforced concrete | D49: m3 | E49: 10 | G49: 0.00
A51: M210.05(c) | C51: Brickwork | D51: m3 | E51: 10 | G51: 0.00
A53: M210.05(d) | C53: Stone masonry | D53: m3 | E53: 10 | G53: 0.00
A55: M210.06 | C55: Repairing of existing structures ( inlet and outlet
C56: structures, pipes and culverts)
A58: M210.06(a) | C58: Concrete (class indicated)
A60: M210.06(a)(i) | C60: 15/19 | D60: m3 | E60: 10 | G60: 0.00
A62: M210.06(a)(iii) | C62: 25/19 | D62: m3 | E62: 10 | G62: 0.00
A64: M210.06(a)(iv) | C64: 30/19 | D64: m3 | E64: 10 | G64: 0.00
A68: =A8 -> M210 | C68: TOTAL CARRIED FORWARD | G68: =SUM(G10:G66) -> 1 030 000.00
A70: =A1 -> CONTRACT NRA X.002-162-2023/1 TOLL
A71: =A2 -> SCHEDULE A: ROUTINE ROAD MAINTENNACE OF GAUTENG JOHANNESBURG FREEWAYS | G71: SECTION M2100
A72: BILL OF QUANTITIES: PART B: OPERATIONAL
D73: `
A74: ITEM NO | C74: DESCRIPTION | D74: UNIT | E74: QUANTITY | F74: RATE | G74: AMOUNT
C76: BROUGHT FORWARD | G76: =G68 -> 1,030,000.00
A78: M210.06(b) | C78: Brickwork | D78: m3 | E78: 10 | G78: =ROUND(E78*(ROUND(F78,2)),2) -> 0.00
A80: M210.06(c) | C80: Stone masonry with rock material obtained from
A82: M210.06(c)(i) | C82: Natural sources | D82: m3 | E82: 10 | G82: 0.00
A84: M210.06(c)(ii) | C84: Commercial sources | D84: m3 | E84: 10 | G84: 0.00
A86: M210.06(d) | C86: Plastering | D86: m2 | E86: 10 | G86: 0.00
A88: M210.07 | C88: Steel reinforcement
A90: M210.07(a) | C90: Mild steel bars | D90: ton | E90: 1 | G90: 0.00
A92: M210.07(b) | C92: High tensile steel bars | D92: ton | E92: 1 | G92: 0.00
A94: M210.07(c) | C94: Welded steel mesh | D94: kg | E94: 200 | G94: 0.00
A96: M210.08 | C96: Overhaul on materials for haul in excess of 1.0 km
A98: M210.08(a) | C98: Excavated material to spoil | D98: m3-km | E98: 200 | G98: 0.00
A100: M210.08(b) | C100: Existing structures demolished | D100: m3-km | E100: 200 | G100: 0.00
A135: =A8 -> M210 | C135: TOTAL CARRIED TO SUMMARY | G135: =SUM(G73:G133) -> 1 030 000.00

Sheet Part B - M2200 Toll
A1: ='Part A - Mng M0200 Toll'!A1 -> CONTRACT NRA X.002-162-2023/1 TOLL
A2: ='Part A - Mng M0200 Toll'!A2 -> SCHEDULE A: ROUTINE ROAD MAINTENNACE OF GAUTENG JOHANNESBURG FREEWAYS | G2: SECTION M2200
A3: PART B : OPERATIONAL
A5: ITEM NO | C5: DESCRIPTION | D5: UNIT | E5: QUANTITY | F5: RATE | G5: AMOUNT
A8: M220 | C8: SUBSOIL DRAIN INSTALLATION AND MAINTENANCE
A10: M220.01 | C10: Excavation
A12: M220.01(a) | C12: Excavating soft material | D12: m3 | E12: 10 | G12: =F12*E12 -> 0.00
A14: M220.01(b) | C14: Excavating hard material | D14: m3 | E14: 10 | G14: =F14*E14 -> 0.00
A16: M220.02 | C16: Impermeable backfilling | D16: m3 | E16: 5 | G16: =F16*E16 -> 0.00
A18: M220.03 | C18: Natural permeable material
A20: M220.03(a) | C20: Crushed stone from commercial source
C21: (state grade)
A23: M220.03(a)(ii) | C23: Course grade | D23: m3 | E23: 5 | G23: =F23*E23 -> 0.00
A25: M220.03(c) | C25: Sand from commercial source (state grade)
A27: M220.03(c)(i) | C27: Fine grade | D27: m3 | E27: 5 | G27: =F27*E27 -> 0.00
A29: M220.03(c)(ii) | C29: Course grade | D29: m3 | E29: 5 | G29: =F29*E29 -> 0.00
A31: M220.04 | C31: Pipes
A33: M220.04(a) | C33: Unplasticized PVC pipes and fittings, normal duty, complete
C34: with couplings
A36: M220.04(a)(i) | C36: 110 mm slotted pipe | D36: m | E36: 20 | G36: =F36*E36 -> 0.00
A38: M220.04(a)(iii) | C38: 110 mm perforated pipe | D38: m | E38: 20 | G38: =F38*E38 -> 0.00
A40: M220.05 | C40: Polyethylene sheeting 0,25 mm thick | D40: m2 | E40: 20 | G40: =F40*E40 -> 0.00
A42: M220.06 | C42: Synthetic fibre filter fabric (type, grade 2) | D42: m2 | E42: 20 | G42: =F42*E42 -> 0.00
A44: M220.07 | C44: Composite in place drainage systems
C45: (450fin with a 110mm collector pipe) | D45: m | E45: 20 | G45: =F45*E45 -> 0.00
A47: M220.08 | C47: Inlet and outlet structures
A49: M220.08(a) | C49: Rodding eyes | D49: No | E49: 5 | G49: =F49*E49 -> 0.00
A51: M220.08(b) | C51: Outlet structures | D51: No | E51: 5 | G51: =F51*E51 -> 0.00
A53: M220.09 | C53: Exposing of existing drains | D53: m3 | E53: 10 | G53: =F53*E53 -> 0.00
A55: M220.10 | C55: Clearing of subsoil drains | D55: m | E55: 20 | G55: =F55*E55 -> 0.00
A57: M220.11 | C57: Overhaul for material hauled in excess of
C58: 1,0 km free-haul | D58: m3-km | E58: 200 | G58: =F58*E58 -> 0.00
A69: M2200 | C69: TOTAL CARRIED TO SUMMARY | G69: =SUM(G8:G68) -> 0.00
D73: `

Sheet Part B - M2300 Toll
A1: ='Part A - Mng M0200 Toll'!A1 -> CONTRACT NRA X.002-162-2023/1 TOLL
A2: ='Part A - Mng M0200 Toll'!A2 -> SCHEDULE A: ROUTINE ROAD MAINTENNACE OF GAUTENG JOHANNESBURG FREEWAYS | G2: SECTION M2300
A3: PART B : OPERATIONAL
A5: ITEM NO | C5: DESCRIPTION | D5: UNIT | E5: QUANTITY | F5: RATE | G5: AMOUNT
A8: M230 | C8: CLEANING OF WATERWAY STRUCTURES
A10: M230.01(c) | C10: Cleaning of waterway structures, inlets and outlets areas on (performance base)
A12: M230.01(c)(i) | C12: N1 section 19 distance 36.4 km (3 interchanges) | D12: Month | E12: 6 | G12: =F12*E12 -> 0.00
A14: M230.01(c )(ii) | C14: N1 section 19 distance 17,2 km (1 interchange) | D14: Month | E14: 6 | G14: =F14*E14 -> 0.00
A16: M230.01(c )(iii) | C16: N1 section 20 distance 57,6 km (14 interchanges) | D16: Month | E16: 6 | G16: 0.00
A18: M230.01(c )(iv) | C18: N1 section 21 distance 6,2 km (2 interchanges) | D18: Month | E18: 6 | G18: 0.00
A20: M230.01(c )(v) | C20: N3 section 12 distance 12,3 km (5 interchanges) | D20: Month | E20: 6 | G20: 0.00
A22: M230.01(c )(vi) | C22: N12 section 18 distance 10,3 km (4 interchanges) | D22: Month | E22: 6 | G22: =F22*E22 -> 0.00
A24: M230.01(c)(vii) | C24: N17 section 01 distance 6,8 km (3 interchanges) | D24: Month | E24: 6 | G24: 0.00
A28: M230.02 | C28: Overhaul of material in excess of the free-haul distance of 1,0 km | D28: m3-km | E28: 20 | G28: =F28*E28 -> 0.00
A70: =A8 -> M230 | C70: TOTAL CARRIED TO SUMMARY | G70: =SUM(G7:G68) -> 0.00
D73: `

Sheet Part B - M2400 Toll
A1: ='Part A - Mng M0200 Toll'!A1 -> CONTRACT NRA X.002-162-2023/1 TOLL
A2: ='Part A - Mng M0200 Toll'!A2 -> SCHEDULE A: ROUTINE ROAD MAINTENNACE OF GAUTENG JOHANNESBURG FREEWAYS | G2: SECTION M2400
A3: PART B : OPERATIONAL
A5: ITEM NO | C5: DESCRIPTION | D5: UNIT | E5: QUANTITY | F5: RATE | G5: AMOUNT
A8: M240 | C8: CLEANING OF PREFABRICATED CULVERTS
A10: M240.02 | C10: Cleaning of prefabricated culverts (performance based)(specify route, section and km distance)
A12: M240.02(b) | C12: Cleaning of culverts
A14: M240.02(b)(i) | C14: N1 section 19 distance 36.4 km (3 interchanges) | D14: Month | E14: 6 | G14: =F14*E14 -> 0.00
A16: M240.02(b)(ii) | C16: N1 section 19 distance 17,2 km (1 interchange) | D16: Month | E16: 6 | G16: =F16*E16 -> 0.00
A18: M240.02(b)(iii) | C18: N1 section 20 distance 57,6 km (14 interchanges) | D18: Month | E18: 6 | G18: 0.00
A20: M240.02(b)(iv) | C20: N1 section 21 distance 6,2 km (2 interchanges) | D20: Month | E20: 6 | G20: 0.00
A22: M240.02(b)(v) | C22: N3 section 12 distance 12,3 km (5 interchanges) | D22: Month | E22: 6 | G22: 0.00
A24: M240.02(b)(vi) | C24: N12 section 18 distance 10,3 km (4 interchanges) | D24: Month | E24: 6 | G24: 0.00
A26: M240.02(b)(vii) | C26: N17 section 01 distance 6,8 km (3 interchanges) | D26: Month | E26: 6 | G26: 0.00
G31: =IF(OR(AND(E31="Prov",F31="Sum"),(F31="PC Sum")),". . . . . . . . .00",IF(ISERR(E31*F31),"",IF(E31*F31=0,"",ROUND(E31*F31,2)))) -> 
A71: =A8 -> M240 | C71: TOTAL CARRIED TO SUMMARY | G71: =SUM(G7:G69) -> 0.00
D73: `

Sheet Part B - M2500 Toll
A1: ='Part A - Mng M0200 Toll'!A1 -> CONTRACT NRA X.002-162-2023/1 TOLL
A2: ='Part A - Mng M0200 Toll'!A2 -> SCHEDULE A: ROUTINE ROAD MAINTENNACE OF GAUTENG JOHANNESBURG FREEWAYS | G2: SECTION M2500
A3: PART B : OPERATIONAL
A5: ITEM NO | C5: DESCRIPTION | D5: UNIT | E5: QUANTITY | F5: RATE | G5: AMOUNT
A8: M250 | C8: CLEANING OF CONCRETE DRAINS AND CHANNELS
A11: M250.01(b) | C11: Cleaning of median concrete grid channels
C12: next to NJ Barriers | D12: m | E12: 3,000 | G12: =F12*E12 -> 0.00
A14: M250.02 | C14: Additional cleaning of concrete drainage channels
A16: M250.02(a) | C16: Hand Cleaning | D16: m | E16: 1,600 | G16: =F16*E16 -> 0.00
A18: M250.02(b) | C18: Extra over M250.02(a) for work during night time | D18: % | E18: =G16 -> 0 | G18: 0.00
A20: M250.02(c) | C20: Mechanical vacuum road sweeper | D20: km | E20: 1,000 | G20: 0.00
A22: M250.02(d ) | C22: Hand cleaning (emergency clean ups) | D22: h | E22: 10 | G22: 0.00
A24: M250.02(e ) | C24: Mechanical vacuum road sweeper
C25: (emergency clean ups) | D25: h | E25: 10 | G25: 0.00
A27: M250.02(f ) | C27: Extra over item PM250.02(c, d and e) for work during night time | D27: % | E27: =G20+G22+G25 -> 0 | G27: 0.00
A29: M250.03 | C29: Cleaning of pedestrian paths
A31: M250.03(a) | C31: Cleaning of pedestrian paths on instruction of the Engineer (specify section and km distance) | D31: m | E31: 200 | G31: =E31*F31 -> 0.00
A33: M250.04 | C33: Cleaning of concrete drains(performance
C34: based)
A36: M250.04(b) | C36: Cleaning of concrete drains(performance based)
A38: M250.04(b)(i) | C38: N1 section 19 distance 36.4 km (3 interchanges) | D38: Month | E38: 6 | G38: 0.00
A40: M250.04(b)(ii) | C40: N1 section 19 distance 17,2 km (1 interchange) | D40: Month | E40: 6 | G40: 0.00
A42: M250.04(b)(iii) | C42: N1 section 20 distance 57,6 km (14 interchanges) | D42: Month | E42: 6 | G42: 0.00
A44: M250.04(b)(iv) | C44: N1 section 21 distance 6,2 km (2 interchanges) | D44: Month | E44: 6 | G44: 0.00
A46: M250.04(b)(v) | C46: N3 section 12 distance 12,3 km (5 interchanges) | D46: Month | E46: 6 | G46: 0.00
A48: M250.04(b)(vi) | C48: N12 section 18 distance 10,3 km (4 interchanges) | D48: Month | E48: 6 | G48: =F48*E48 -> 0.00
A50: M250.04(b)(vii) | C50: N17 section 01 distance 6,8 km (3 interchanges) | D50: Month | E50: 6 | G50: 0.00
G63: =IF(OR(AND(E63="Prov",F63="Sum"),(F63="PC Sum")),". . . . . . . . .00",IF(ISERR(E63*F63),"",IF(E63*F63=0,"",ROUND(E63*F63,2)))) -> 
A65: =A8 -> M250 | C65: TOTAL CARRIED TO SUMMARY | G65: =SUM(G7:G63) -> 0.00
D73: `

Sheet Part B - M2600 Toll
A1: ='Part A - Mng M0200 Toll'!A1 -> CONTRACT NRA X.002-162-2023/1 TOLL
A2: ='Part A - Mng M0200 Toll'!A2 -> SCHEDULE A: ROUTINE ROAD MAINTENNACE OF GAUTENG JOHANNESBURG FREEWAYS | G2: SECTION M2600
A3: PART B : OPERATIONAL
A5: ITEM NO | C5: DESCRIPTION | D5: UNIT | E5: QUANTITY | F5: RATE | G5: AMOUNT
A8: M260 | C8: CLEANING AND MAINTENANCE OF EXISTING EARTH CHANNELS
A10: M260.01 | C10: Cleaning earth drains and channels | D10: m3 | E10: 500 | G10: =F10*E10 -> 0.00
A12: M260.02 | C12: Repairing of earth drains and channels | D12: m3 | E12: 500 | G12: =F12*E12 -> 0.00
A14: M260.03 | C14: Banks and dykes | D14: m3 | E14: 100 | G14: =F14*E14 -> 0.00
A16: M260.04 | C16: Construction of new earth drains | D16: m3 | E16: 200 | G16: =F16*E16 -> 0.00
A18: M260.05 | C18: Overhaul of material in excess of the free-haul
C19: distance of 1,0 km | D19: m3-km | E19: 10,000 | G19: =F19*E19 -> 0.00
G21: =IF(OR(AND(E21="Prov",F21="Sum"),(F21="PC Sum")),". . . . . . . . .00",IF(ISERR(E21*F21),"",IF(E21*F21=0,"",ROUND(E21*F21,2)))) -> 
A66: =A8 -> M260 | C66: TOTAL CARRIED TO SUMMARY | G66: =SUM(G7:G64) -> 0.00
D73: `

Sheet Part B - M2700 Toll
A1: ='Part A - Mng M0200 Toll'!A1 -> CONTRACT NRA X.002-162-2023/1 TOLL
A2: ='Part A - Mng M0200 Toll'!A2 -> SCHEDULE A: ROUTINE ROAD MAINTENNACE OF GAUTENG JOHANNESBURG FREEWAYS | G2: SECTION M2700
A3: PART B : OPERATIONAL
A5: ITEM NO | C5: DESCRIPTION | D5: UNIT | E5: QUANTITY | F5: RATE | G5: AMOUNT
A8: M270 | C8: EDGE BUILD-UP REMOVAL
A11: M270.02 | C11: Removal edge build-ups (performance based)
A14: M270.02(b) | C14: Edge build-up removal
A16: M270.02(b)(i) | C16: N1 section 19 distance 36.4 km (3 interchanges) | D16: Month | E16: 6 | G16: =F16*E16 -> 0.00
A18: M270.02(b)(ii) | C18: N1 section 19 distance 17,2 km (1 interchange) | D18: Month | E18: 6 | G18: =F18*E18 -> 0.00
A20: M270.02(b)(iii) | C20: N1 section 20 distance 57,6 km (14 interchanges) | D20: Month | E20: 6 | G20: =F20*E20 -> 0.00
A22: M270.02(b)(iv) | C22: N1 section 21 distance 6,2 km (2 interchanges) | D22: Month | E22: 6 | G22: =F22*E22 -> 0.00
A24: M270.02(b)(v) | C24: N3 section 12 distance 12,3 km (5 interchanges) | D24: Month | E24: 6 | G24: =F24*E24 -> 0.00
A26: M270.02(b)(vi) | C26: N12 section 18 distance 10,3 km (4 interchanges) | D26: Month | E26: 6 | G26: =F26*E26 -> 0.00
G27: =IF(OR(AND(E27="Prov",F27="Sum"),(F27="PC Sum")),". . . . . . . . .00",IF(ISERR(E27*F27),"",IF(E27*F27=0,"",ROUND(E27*F27,2)))) -> 
A28: M270.02(b)(vii) | C28: N17 section 01 distance 6,8 km (3 interchanges) | D28: Month | E28: 6 | G28: =F28*E28 -> 0.00
A67: =A8 -> M270 | C67: TOTAL CARRIED TO SUMMARY | G67: =SUM(G7:G65) -> 0.00
D73: `

Sheet Part B - M2800 Toll
A1: ='Part A - Mng M0200 Toll'!A1 -> CONTRACT NRA X.002-162-2023/1 TOLL
A2: ='Part A - Mng M0200 Toll'!A2 -> SCHEDULE A: ROUTINE ROAD MAINTENNACE OF GAUTENG JOHANNESBURG FREEWAYS | G2: SECTION M2800
A3: PART B : OPERATIONAL
A5: ITEM NO | C5: DESCRIPTION | D5: UNIT | E5: QUANTITY | F5: RATE | G5: AMOUNT
A8: M280 | C8: CONCRETE CHANNEL CONSTRUCTION AND MAINTENANCE OF EXISTING CHANNELS
A10: M280.01 | C10: Excavation
A12: M280.01(a) | C12: For open drains
A14: M280.01(a)(i) | C14: Soft material | D14: m3 | E14: 400 | G14: =F14*E14 -> 0.00
A16: M280.01(a)(ii) | C16: Hard material | D16: m3 | E16: 20 | G16: =F16*E16 -> 0.00
A18: M280.01(b) | C18: Chutes and kerb-channel combinations
A20: M280.01(b)(i) | C20: Soft material | D20: m3 | E20: 10 | G20: =F20*E20 -> 0.00
A22: M280.01(b)(ii) | C22: Hard material | D22: m3 | E22: 10 | G22: =F22*E22 -> 0.00
A24: M280.02 | C24: Cast in situ concrete
A26: M280.02(a) | C26: Linings (30/19) | D26: m3 | E26: 5 | G26: =F26*E26 -> 0.00
A28: M280.02(b) | C28: Chutes (25/19) | D28: m3 | E28: 5 | G28: =F28*E28 -> 0.00
A30: M280.02(c) | C30: Channels for kerb and channels (25/19) | D30: m3 | E30: 5 | G30: =F30*E30 -> 0.00
A32: M280.02(d) | C32: Concrete berms | D32: m3 | E32: 5 | G32: =F32*E32 -> 0.00
A34: M280.03 | C34: Concrete screed or backfill below chutes (15/19) | D34: m3 | E34: 5 | G34: =F34*E34 -> 0.00
A36: M280.04 | C36: Precast concrete kerbing and chutes
A38: M280.04(a) | C38: Kerbing (Fig. 7) | D38: m | E38: 10 | G38: =F38*E38 -> 0.00
A40: M280.04(b) | C40: Chutes (indicate type) | D40: m | E40: 10 | G40: =F40*E40 -> 0.00
A42: M280.05 | C42: Steel reinforcement
A44: M280.05(a) | C44: Mild steel bars | D44: ton | E44: 1 | G44: =F44*E44 -> 0.00
A46: M280.05(b) | C46: High tensile steel bars | D46: ton | E46: 1 | G46: =F46*E46 -> 0.00
A48: M280.05(c) | C48: Welded steel mesh | D48: kg | E48: 300 | G48: =F48*E48 -> 0.00
A50: M280.06 | C50: Sealed joints in concrete lining of open drains (type indicated with reference to drawings) | D50: m | E50: 10 | G50: =F50*E50 -> 0.00
A52: M280.07 | C52: Demolition and removal of damaged existing structures
A54: M280.07(a) | C54: Plain concrete | D54: m3 | E54: 20 | G54: =F54*E54 -> 0.00
A56: M280.07(b) | C56: Reinforced concrete | D56: m3 | E56: 10 | G56: =F56*E56 -> 0.00
A58: M280.07(c) | C58: Kerbing and channelling | D58: m3 | E58: 10 | G58: =F58*E58 -> 0.00
A64: =A8 -> M280 | C64: TOTAL CARRIED FORWARD | G64: =SUM(G8:G62) -> 0.00
A66: =A1 -> CONTRACT NRA X.002-162-2023/1 TOLL
A67: =A2 -> SCHEDULE A: ROUTINE ROAD MAINTENNACE OF GAUTENG JOHANNESBURG FREEWAYS | G67: SECTION M2800
A68: BILL OF QUANTITIES: PART B: OPERATIONAL
A70: ITEM NO | C70: DESCRIPTION | D70: UNIT | E70: QUANTITY | F70: RATE | G70: AMOUNT
C72: BROUGHT FORWARD | G72: =G64 -> 0.00
D73: `
A74: M280.08 | C74: Down chutes
A76: M280.08(a) | C76: Corrugated steel ( type and 300mm) | D76: m | E76: 20 | G76: =F76*E76 -> 0.00
A78: M280.08(c) | C78: Concrete (300mm) | D78: m | E78: 20 | G78: =F78*E78 -> 0.00
A80: M280.09 | C80: Overhaul on material for haul in excess of 1,0 km
A82: M280.09(a) | C82: Excavated material to spoil | D82: m3-km | E82: 1,600 | G82: =F82*E82 -> 0.00
A84: M280.09(b) | C84: Existing structures demolished | D84: m3-km | E84: 800 | G84: =F84*E84 -> 0.00
A86: M280.10 | C86: Asphalt Berms | D86: ton | E86: 1 | G86: =F86*E86 -> 0.00
A133: M2800 | C133: TOTAL CARRIED TO SUMMARY | G133: =SUM(G72:G132) -> 0.00

Sheet Part B - M3100 Toll
A1: ='Part A - Mng M0200 Toll'!A1 -> CONTRACT NRA X.002-162-2023/1 TOLL
A2: ='Part A - Mng M0200 Toll'!A2 -> SCHEDULE A: ROUTINE ROAD MAINTENNACE OF GAUTENG JOHANNESBURG FREEWAYS | G2: SECTION M3100
A3: PART B : OPERATIONAL
A5: ITEM NO | C5: DESCRIPTION | D5: UNIT | E5: QUANTITY | F5: RATE | G5: AMOUNT
A8: M310 | C8: FENCING
A10: M310.01 | C10: Clearing fence line
A12: M310.01(b) | C12: 1 m wide alongside existing fences | D12: km | E12: 2 | G12: =F12*E12 -> 0.00
A14: M310.02 | C14: Repair of existing fences of less than 100 m lengths:
A16: M310.02(a) | C16: Stock-proof fences | D16: m | E16: 100 | G16: =F16*E16 -> 0.00
A18: M310.02(b) | C18: Vermin-proof fences | D18: m | E18: 100 | G18: 0.00
A20: M310.02(c) | C20: Pedestrian fences | D20: m | E20: 20 | G20: 0.00
A22: M310.02(d) | C22: Security fences | D22: m | E22: 20 | G22: 0.00
A24: M310.02(e) | C24: Steel palisade fence | D24: m | E24: 20 | G24: 0.00
A26: M310.02(f) | C26: Concrete palisade fence
A28: M310.02(f)(iii) | C28: 1.8m high | D28: m | E28: 50 | G28: 0.00
A30: M310.02(f)(iv) | C30: 2,1m high | D30: m | E30: 50 | G30: 0.00
A32: M310.02(g) | C32: Steel mesh fencing (razor mesh)
A34: M310.02(g)(i) | C34: 1,2m high | D34: m | E34: 100 | G34: 0.00
A36: M310.02(g)(ii) | C36: 2,0m high | D36: m | E36: 100 | G36: 0.00
A38: M310.02(h) | C38: Flat wrap barbed wire fencing | D38: m | E38: 100 | G38: 0.00
A40: M310.02(i) | C40: Game proof fences | D40: m | E40: 50 | G40: 0.00
A42: M310.03 | C42: Repair of existing fence of greater than 100 m lengths:
A44: M310.03(a) | C44: Stock-proof fences | D44: m | E44: 100 | G44: 0.00
A46: M310.03(b) | C46: Vermin-proof fences | D46: m | E46: 10 | G46: 0.00
A48: M310.03(c) | C48: Pedestrian fences | D48: m | E48: 10 | G48: 0.00
A50: M310.03(d) | C50: Security fences | D50: m | E50: 10 | G50: 0.00
A52: M310.03(e) | C52: Steel palisade fences | D52: m | E52: 10 | G52: 0.00
A54: M310.03(f) | C54: Concrete palisade fences
A56: M310.03(f)(iii) | C56: 1.8m high | D56: m | E56: 20 | G56: 0.00
A58: M310.03(f)(iv) | C58: 2,1m high | D58: m | E58: 20 | G58: 0.00
A60: M310.03(g) | C60: Steel mesh fencing (razor mesh)
A62: M310.03(g)(i) | C62: 1,2m high | D62: m | E62: 20 | G62: 0.00
A64: M310.03(g)(ii) | C64: 2,0m high | D64: m | E64: 20 | G64: 0.00
A66: M310.03(h) | C66: Flat wrap barbed wire fencing | D66: m | E66: 20 | G66: 0.00
A68: M3100 | C68: CARRIED FORWARD | G68: =SUM(G12:G67) -> 0.00
A69: =A1 -> CONTRACT NRA X.002-162-2023/1 TOLL
A70: =A2 -> SCHEDULE A: ROUTINE ROAD MAINTENNACE OF GAUTENG JOHANNESBURG FREEWAYS | G70: SECTION M3100
A71: =A3 -> PART B : OPERATIONAL
A73: ITEM NO | C73: DESCRIPTION | D73: ` | E73: QUANTITY | F73: RATE | G73: AMOUNT
C75: BROUGHT FORWARD | G75: =G68 -> 0.00
A77: M310.04 | C77: Erection of new fences of less than 1 km
C78: lengths:
A80: M310.04(a) | C80: Stock-proof fences | D80: m | E80: 1,000 | G80: =E80*F80 -> 0.00
A82: M310.04(b) | C82: Vermin-proof fences | D82: m | E82: 10 | G82: =E82*F82 -> 0.00
A84: M310.04(c) | C84: Pedestrian fences | D84: m | E84: 10 | G84: 0.00
A86: M310.04(d) | C86: Security fences | D86: m | E86: 10 | G86: 0.00
A88: M310.04(e) | C88: Steel palisade fences | D88: m | E88: 10 | G88: 0.00
A90: M310.04(f) | C90: Concrete palisade fences
A92: M310.04(f)(iii) | C92: 1.8m high | D92: m | E92: 10 | G92: 0.00
A94: M310.04(f)(iv) | C94: 2,1m high | D94: m | E94: 10 | G94: 0.00
A96: M310.04(g) | C96: Steel mesh fencing (razor mesh)
A98: M310.04(g)(i) | C98: 1,2m high | D98: m | E98: 10 | G98: 0.00
A100: M310.04(g)(ii) | C100: 2,0m high | D100: m | E100: 10 | G100: 0.00
A102: M310.04(h) | C102: Flat wrap barbed wire fencing | D102: m | E102: 10 | G102: =E102*F102 -> 0.00
A104: M310.05 | C104: Supply and erection of new fences of greater
C105: than 1km
A107: M310.05(a) | C107: Supply of fencing material
A109: M310.05(a)(i) | C109: Supply and erection of new fences of greater
C110: than 1km | D110: Prov Sum | E110: 1 | F110: 200,000.00 | G110: =F110*E110 -> 200,000.00
A112: M310.05(a)(ii) | C112: Overhead charges and profit in respect of
C113: subitem M310.05 (a)(i) | D113: % | E113: =G110 -> 200,000 | G113: =F113*E113 -> 0.00
A115: M310.05(b) | C115: Concrete backfill | D115: m3 | E115: 20 | G115: =F115*E115 -> 0.00
A117: M310.06 | C117: New gates
A119: M310.06(a) | C119: Single leaf | D119: No | E119: 10 | G119: 0.00
A121: M310.06(a)(i) | C121: Stock-proof fences | D121: No | E121: 10 | G121: 0.00
A123: M310.06(a)(ii) | C123: Vermin-proof fences | D123: No | E123: 10 | G123: 0.00
A125: M310.06(a)(iii) | C125: Pedestrian fence | D125: No | E125: 10 | G125: 0.00
A127: M310.06(a)(iv) | C127: Security fences | D127: No | E127: 10 | G127: 0.00
A129: M310.06(b) | C129: Double leaf (see drawings)
A131: M310.06(b)(i) | C131: Stock-proof fences | D131: No | E131: 5 | G131: 0.00
A133: M310.06(b)(ii) | C133: Vermin-proof fences | D133: No | E133: 5 | G133: 0.00
A136: M3100 | C136: CARRIED FORWARD | G136: =SUM(G75:G135) -> 200,000.00
A137: =A1 -> CONTRACT NRA X.002-162-2023/1 TOLL
A138: =A2 -> SCHEDULE A: ROUTINE ROAD MAINTENNACE OF GAUTENG JOHANNESBURG FREEWAYS | G138: SECTION M3100
A139: =A3 -> PART B : OPERATIONAL
A141: ITEM NO | C141: DESCRIPTION | D141: UNIT | E141: QUANTITY | F141: RATE | G141: AMOUNT
C143: BROUGHT FORWARD | G143: =G136 -> 200,000.00
A145: M310.07 | C145: Moving of existing fences and gates
A147: M310.07(a) | C147: Fences
A149: M310.07(a)(i) | C149: Stock-proof fences | D149: m | E149: 20 | G149: =F149*E149 -> 0.00
A151: M310.07(a)(ii) | C151: Vermin-proof fences | D151: m | E151: 20 | G151: =F151*E151 -> 0.00
A153: M310.07(a)(iii) | C153: Pedestrian fences | D153: m | E153: 10 | G153: 0.00
A155: M310.07(a)(iv) | C155: Security fences | D155: m | E155: 10 | G155: 0.00
A157: M310.07(a)(v) | C157: Steel palisade fences | D157: m | E157: 10 | G157: 0.00
A159: M310.07(a)(vi) | C159: Concrete palisade fences | D159: m | E159: 10 | G159: 0.00
A161: M310.07(a)(vii) | C161: Steel mesh fencing (razor mesh) | D161: m | E161: 10 | G161: 0.00
A163: M310.07(a)(viii) | C163: Flat wrap barbed wire fencing | D163: m | E163: 10 | G163: 0.00
A165: M310.07(b) | C165: Gates | D165: No | E165: 1 | G165: 0.00
A167: M310.08 | C167: Dismantling of existing and damaged fences | D167: m | E167: 100 | G167: 0.00
A169: M310.09 | C169: Drilling and blasting holes for posts and anchors | D169: No | E169: 10 | G169: 0.00
A171: M310.10 | C171: Procurement of specialised fencing
A173: M310.10(a) | C173: Procurement of specialised fencing | D173: Prov Sum | E173: 1 | F173: 200,000.00 | G173: 200,000.00
A175: M310.10(b) | C175: The Contractors overhead charges and profit in
C176: respect of sub-item M310.10(a) | D176: % | E176: =G173 -> 200,000 | G176: =F176*E176 -> 0.00
A204: M3100 | C204: TOTAL CARRIED TO SUMMARY | G204: =SUM(G143:G203) -> 400,000.00

Sheet Part B - M3200 Toll
A1: ='Part A - Mng M0200 Toll'!A1 -> CONTRACT NRA X.002-162-2023/1 TOLL
A2: ='Part A - Mng M0200 Toll'!A2 -> SCHEDULE A: ROUTINE ROAD MAINTENNACE OF GAUTENG JOHANNESBURG FREEWAYS | G2: SECTION M3200
A3: PART B : OPERATIONAL
A5: ITEM NO | C5: DESCRIPTION | D5: UNIT | E5: QUANTITY | F5: RATE | G5: AMOUNT
A8: M320 | C8: COLLECTION AND REMOVAL OF DEBRIS AND LITTER
A10: M320.02 | C10: General Clearing of the road reserve
A12: M320.02(a) | C12: Urban roads (state section and km distance
C13: incl. interchanges)
A14: M320.02(a)(i) | C14: N1 section 19 distance 36.4 km (3 interchanges) | D14: Weekly | E14: 24 | G14: =F14*E14 -> 0.00
A16: M320.02(a)(ii) | C16: N1 section 19 distance 17,2 km (1 interchange) | D16: Weekly | E16: 24 | G16: 0.00
A18: M320.02(a)(iii) | C18: N1 section 20 distance 57,6 km (14 interchanges) | D18: Weekly | E18: 24 | G18: 0.00
A20: M320.02(a)(iv) | C20: N1 section 21 distance 6,2 km (2 interchanges) | D20: Weekly | E20: 24 | G20: 0.00
A22: M320.02(a)(v) | C22: N3 section 12 distance 12,3 km (5 interchanges) | D22: Weekly | E22: 24 | G22: 0.00
A24: M320.02(a)(vi) | C24: N12 section 18 distance 10,3 km (4 interchanges) | D24: Weekly | E24: 24 | G24: =F24*E24 -> 0.00
A26: M320.02(a)(vii) | C26: N17 section 01 distance 6,8 km (3 interchanges) | D26: Weekly | E26: 24 | G26: 0.00
A28: M320.03 | C28: Additional ad-hoc clearing of
A30: M320.03(a) | C30: Lay-byes | D30: No | E30: 12 | G30: =F30*E30 -> 0.00
A32: M320.03(b) | C32: Toll plazas
A34: M320.03(b)(i) | C34: Grasmere Toll Plaza | D34: No | E34: 6 | G34: =F34*E34 -> 0.00
A36: M320.03(c) | C36: Interchanges
A38: M320.03(c )(i) | C38: N1-19 Vereeniging (R42) Interchange | D38: No | E38: 2 | G38: =F38*E38 -> 0.00
A39: M320.03(c )(ii) | C39: N1-19 Vanderbijlpark/Potchefstroom Interchange | D39: No | E39: 2 | G39: 0.00
A40: M320.03(c )(iii) | C40: N1-19 Sebokeng/Randfontein Interchange | D40: No | E40: 2 | G40: 0.00
A41: M320.03(c )(iv) | C41: N1-19 De Deur/Ennerdale (558) Interchange | D41: No | E41: 2 | G41: 0.00
A42: M320.03(c )(v) | C42: N1-20 Misgund/N12 Interchange | D42: No | E42: 2 | G42: 0.00
A43: M320.03(c )(vi) | C43: N1-20 Armadale Interchange | D43: No | E43: 2 | G43: 0.00
A44: M320.03(c )(vii) | C44: N1-20 Diepkloof Interchange | D44: No | E44: 2 | G44: 0.00
A45: M320.03(c )(viii) | C45: N1-20 Rand Show Road Interchange | D45: No | E45: 2 | G45: 0.00
A46: M320.03(c )(ix) | C46: N1-20 Soweto Highway Interchange | D46: No | E46: 2 | G46: 0.00
A47: M320.03(c )(x) | C47: N1-20 Maraisburg Interchange | D47: No | E47: 2 | G47: 0.00
A48: M320.03(c )(xi) | C48: N1-20 Gordon Road Interchange | D48: No | E48: 2 | G48: 0.00
A49: M320.03(c )(xii) | C49: N1-20 Fourteenth Avenue Interchange | D49: No | E49: 2 | G49: 0.00
A50: M320.03(c )(xiii) | C50: N1-20 Beyers Naude Interchange | D50: No | E50: 2 | G50: 0.00
A51: M320.03(c )(xiv) | C51: N1-20 Malibongwe Interchange | D51: No | E51: 2 | G51: 0.00
A52: M320.03(c )(xv) | C52: N1-20 William Nicol Interchange | D52: No | E52: 2 | G52: 0.00
A53: M320.03(c )(xvi) | C53: N1-20 Rivonia Road Interchange | D53: No | E53: 2 | G53: 0.00
A54: M320.03(c )(xvii) | C54: N1-20 Buccleuch Interchange | D54: No | E54: 2 | G54: 0.00
A55: M320.03(c )(xviii) | C55: N1-20 Allandale Interchange | D55: No | E55: 2 | G55: 0.00
A56: M320.03(c )(ixx) | C56: N1-21 New Road Interchange | D56: No | E56: 2 | G56: 0.00
A57: M320.03(c )(xx) | C57: N1-21 Olifantsfontein Interchange | D57: No | E57: 2 | G57: 0.00
A58: M320.03(c )(xxi) | C58: N3-12 Linksfield Interchange | D58: No | E58: 2 | G58: 0.00
A59: M320.03(c )(xxii) | C59: N3-12 Modderfontein Interchange | D59: No | E59: 2 | G59: 0.00
A60: M320.03(c )(xxiii) | C60: N3-12 Edernval Interchange | D60: No | E60: 2 | G60: 0.00
A61: M320.03(c )(xxiv) | C61: N3-12 London Road Interchange | D61: No | E61: 2 | G61: 0.00
A62: M320.03(c )(xxv) | C62: N3-12 Marlboro Interchange | D62: No | E62: 2 | G62: 0.00
A63: M320.03(c )(xxvi) | C63: N12-18 Uncle Charles Interchange | D63: No | E63: 2 | G63: 0.00
A69: M3200 | C69: CARRIED FORWARD | G69: =SUM(G8:G68) -> 0.00
A71: =A1 -> CONTRACT NRA X.002-162-2023/1 TOLL
A72: =A2 -> SCHEDULE A: ROUTINE ROAD MAINTENNACE OF GAUTENG JOHANNESBURG FREEWAYS | G72: SECTION M3200
A73: =A3 -> PART B : OPERATIONAL
A75: ITEM NO | C75: DESCRIPTION | D75: UNIT | E75: QUANTITY | F75: RATE | G75: AMOUNT
C77: BROUGHT FORWARD | G77: =G69 -> 0.00
A83: M320.03(c )(xxvii) | C83: N12-18 Xavier Road Interchange | D83: No | E83: 2 | G83: 0.00
A84: M320.03(c )(xxviii) | C84: N12-18 Kliprivier Road Interchange | D84: No | E84: 2 | G84: 0.00
A85: M320.03(c )(ixx) | C85: N12-18 Comaro Road Interchange | D85: No | E85: 2 | G85: 0.00
A86: M320.03(c )(xxx) | C86: N17-01 Wermer Pan Interchange | D86: No | E86: 2 | G86: 0.00
A87: M320.03(c )(xxxi) | C87: N17-01 Vickers Road Interchange | D87: No | E87: 2 | G87: 0.00
A88: M320.03(c )(xxxii) | C88: N17-01 Heidlberg Interchange | D88: No | E88: 2 | G88: 0.00
A90: M320.04 | C90: Removal of illegal dumpings
A92: M320.04(a ) | C92: Removal of illegal dumping material | D92: ` | E92: 100 | G92: =F92*E92 -> 0.00
A94: M320.04(b ) | C94: Overall on material hauled in axces of 1.0 km | D94: m3/km | E94: 1,000 | G94: =F94*E94 -> 0.00
A139: =A8 -> M320 | C139: TOTAL CARRIED TO SUMMARY | G139: =SUM(G77:G138) -> 0.00

Sheet Part B - M3300 Toll
A1: ='Part A - Mng M0200 Toll'!A1 -> CONTRACT NRA X.002-162-2023/1 TOLL
A2: ='Part A - Mng M0200 Toll'!A2 -> SCHEDULE A: ROUTINE ROAD MAINTENNACE OF GAUTENG JOHANNESBURG FREEWAYS | G2: SECTION M3300
A3: PART B : OPERATIONAL
A5: ITEM NO | C5: DESCRIPTION | D5: UNIT | E5: QUANTITY | F5: RATE | G5: AMOUNT
A8: M330 | C8: SHOULDER REPAIRS
A10: M330.01 | C10: Reinstating gravel shoulder
A12: M330.01(a) | C12: Ripping, watering, mixing, placing and compacting existing
C13: shoulders to 93 % of Mod AASHTO density | D13: m3 | E13: 1,000 | G13: =IF(OR(AND(E13="Prov",F13="Sum"),(F13="PC Sum")),". . . . . . . . .00",IF(ISERR(E13*F13),"",IF(E13*F13=0,"",ROUND(E13*F13,2)))) -> 
A15: M330.01(b) | C15: Extra over sub-item M330.01 (a) for adding extra material
A17: M330.01(b)(i) | C17: Borrowing in road reserve (within free haul distance, 1,0 km) | D17: m3 | E17: 20
A19: M330.01(b)(ii) | C19: Commercial sources | D19: m3 | E19: 20
A21: M330.01(b)(iii) | C21: Milled material | D21: m3 | E21: 20
A23: M330.01(c) | C23: Extra over for sub-item M330.01 (a) for stabilising material | D23: m3 | E23: 20
A25: M330.01(d) | C25: Extra over for sub-item M330.01 (a) for adding
C26: chemical stabilising agent
A28: M330.01(d)(i) | C28: Ordinary Portland cement | D28: ton | E28: 5
A30: M330.01(e) | C30: Extra over for sub-item M330.01(a ) for bituminous
C31: stablising agent (60% net bitumen)
A33: M330.01(e)(i) | C33: Anionic stable grade emulsion | D33: Litre | E33: 50
A35: M330.01(e)(ii) | C35: Cationic stable grade emulsion | D35: Litre | E35: 50
A37: M330.02 | C37: Blading of gravel shoulders
A39: M330.02(a) | C39: Blading of gravel shoulders | D39: km | E39: 50
A41: M330.02(b) | C41: Cutting of mitre drains | D41: m | E41: 50
A43: M330.03 | C43: Preparation of road reserve
A45: M330.03(a) | C45: Reserve with dual carriageway | D45: km | E45: 10
A47: M330.04 | C47: Overhaul on material in excess of the free-haul
C48: distance of 1,0km | D48: m3 - km | E48: 200
G50: =IF(OR(AND(E50="Prov",F50="Sum"),(F50="PC Sum")),". . . . . . . . .00",IF(ISERR(E50*F50),"",IF(E50*F50=0,"",ROUND(E50*F50,2)))) -> 
D73: `
A74: =A8 -> M330 | C74: TOTAL CARRIED TO SUMMARY | G74: =SUM(G7:G72) -> 0.00

Sheet Part B - M3500 Toll
A1: ='Part A - Mng M0200 Toll'!A1 -> CONTRACT NRA X.002-162-2023/1 TOLL
A2: ='Part A - Mng M0200 Toll'!A2 -> SCHEDULE A: ROUTINE ROAD MAINTENNACE OF GAUTENG JOHANNESBURG FREEWAYS | G2: SECTION M3500
A3: PART B : OPERATIONAL
A5: ITEM NO | C5: DESCRIPTION | D5: UNIT | E5: QUANTITY | F5: RATE | G5: AMOUNT
A8: M350 | C8: STABILISATION OF CUTTINGS
A10: M350.04 | C10: Stabilization of cutting by specialist service provider
A12: M350.04(a) | C12: Stabilization of cutting slopes by specialist. | D12: Prov Sum | E12: 1 | F12: 100,000.00 | G12: =E12*F12 -> 100,000.00
A14: M350.04(b) | C14: The Contractors overhead charges and profit in respect | D14: % | E14: =G12 -> 100,000 | G14: =E14*F14 -> 0.00
C15: of subitem M350.04(a)
G50: =IF(OR(AND(E50="Prov",F50="Sum"),(F50="PC Sum")),". . . . . . . . .00",IF(ISERR(E50*F50),"",IF(E50*F50=0,"",ROUND(E50*F50,2)))) -> 
D73: `
A74: =A8 -> M350 | C74: TOTAL CARRIED TO SUMMARY | G74: =SUM(G7:G72) -> 100 000.00

Sheet Part B - M4100 Toll
A1: ='Part A - Mng M0200 Toll'!A1 -> CONTRACT NRA X.002-162-2023/1 TOLL
A2: ='Part A - Mng M0200 Toll'!A2 -> SCHEDULE A: ROUTINE ROAD MAINTENNACE OF GAUTENG JOHANNESBURG FREEWAYS | G2: SECTION M4100
A3: PART B : OPERATIONAL
A5: ITEM NO | C5: DESCRIPTION | D5: UNIT | E5: QUANTITY | F5: RATE | G5: AMOUNT
A8: M410 | C8: ERECTION AND REPAIR OF PERMANENT ROAD TRAFFIC SIGNS
A10: M410.01 | C10: Erection or re-erection of road sign boards
A12: M410.01(a) | C12: Area not exceeding 2 m² | D12: m2 | E12: 100 | G12: =ROUND(E12*(ROUND(F12,2)),2) -> 0.00
A14: M410.01(b) | C14: Area exceeding 2 m² but not 10 m² | D14: m2 | E14: 100 | G14: 0.00
A16: M410.01(c) | C16: Area exceeding 10 m² | D16: m2 | E16: 20 | G16: 0.00
A18: M410.01(d) | C18: Overhead road sign boards | D18: m2 | E18: 10 | G18: 0.00
A20: M410.02 | C20: Hazard plates
A22: M410.02(a) | C22: Hazard plate and post (W401/402)
A24: M410.02(a)(ii) | C24: 800 mm x 150 mm | D24: No | E24: 100 | G24: 0.00
A26: M410.02(a)(iii) | C26: 1200 mm x 300 mm | D26: No | E26: 50 | G26: 0.00
A28: M410.02(b) | C28: Hazard Plate (W401/402)
A30: M410.02(b)(ii) | C30: 800 mm x 150 mm | D30: No | E30: 100 | G30: 0.00
A32: M410.02(b)(iii) | C32: 1200 mm x 300 mm | D32: No | E32: 50 | G32: 0.00
A34: M410.02(c) | C34: Hazard plate and post (W405/406)
A36: M410.02(c)(ii) | C36: 600mmx600mm | D36: No | E36: 50 | G36: 0.00
A38: M410.02(c)(iii) | C38: 900mmx900mm | D38: No | E38: 50 | G38: 0.00
A40: M410.02(d) | C40: Hazard Plate (W405/406)
A42: M410.02(d)(ii) | C42: 600mmx600mm | D42: No | E42: 20 | G42: 0.00
A44: M410.02(d)(iii) | C44: 900mmx900mm | D44: No | E44: 20 | G44: 0.00
A46: M410.03 | C46: Reference marker boards
A48: M410.03(a) | C48: Reference marker board and post
A50: M410.03(a)(ii) | C50: Board Drawing No SP-S-1-3/3 | D50: No | E50: 50 | G50: 0.00
A52: M410.03(b) | C52: Reference marker boards
A54: M410.03(b)(ii) | C54: Board Drawing No SP-S-1-3/3 | D54: No | E54: 20 | G54: 0.00
A56: M410.04 | C56: Road sign supports
A58: M410.04(a ) | C58: Steel tubing (50x50x2mm square tubing plus base plate) | D58: m | E58: 10 | G58: 0.00
A60: M410.04(b) | C60: Timber
A62: M410.04(b)(i) | C62: 100 - 125 mm | D62: m | E62: 20 | G62: 0.00
A64: M410.04(b)(ii) | C64: 125 - 150 mm | D64: m | E64: 20 | G64: 0.00
A66: M410.04(b)(iii) | C66: 150 - 175 mm | D66: m | E66: 20 | G66: 0.00
A68: M410.04(b)(iv) | C68: 175 - 200 mm | D68: m | E68: 20 | G68: 0.00
A70: M410.04(b)(v) | C70: 200 - 225 mm | D70: m | E70: 10 | G70: 0.00
C72: CARRIED FORWARD | G72: =SUM(G8:G71) -> 0.00
A73: =A1 -> CONTRACT NRA X.002-162-2023/1 TOLL | D73: `
A74: =A2 -> SCHEDULE A: ROUTINE ROAD MAINTENNACE OF GAUTENG JOHANNESBURG FREEWAYS | G74: SECTION M4100
A75: =A3 -> PART B : OPERATIONAL
A77: ITEM NO | C77: DESCRIPTION | D77: UNIT | E77: QUANTITY | F77: RATE | G77: AMOUNT
C79: BROUGHT FORWARD | G79: =G72 -> 0.00
A81: M410.05 | C81: Excavation and backfilling for road sign supports
A83: M410.05(a) | C83: Excavation and Backfilling | D83: m3 | E83: 40 | G83: =ROUND(E83*(ROUND(F83,2)),2) -> 0.00
A85: M410.05(b) | C85: Extra over subitem M410.05(a) for rock excavation | D85: m3 | E85: 10 | G85: 0.00
A87: M410.05(c) | C87: Extra over subitem M410.05(a) for soilcrete backfill | D87: m3 | E87: 5 | G87: 0.00
A89: M410.05(d) | C89: Extra over subitem M410.05(a) for concrete backfill | D89: m3 | E89: 5 | G89: 0.00
A91: M410.06 | C91: Dismantling, storing and re-erecting road sign boards
A93: M410.06(a) | C93: Up to 2 m² | D93: No | E93: 5 | G93: 0.00
A95: M410.06(b) | C95: Exceeding 2 m² but not 10 m² | D95: No | E95: 5 | G95: 0.00
A97: M410.06(c) | C97: Exceeding 10 m² | D97: No | E97: 5 | G97: 0.00
A99: M410.07 | C99: Dismantling and storing road sign boards
A101: M410.07(a) | C101: Up to 2 m² | D101: No | E101: 5 | G101: 0.00
A103: M410.07(b) | C103: Exceeding 2 m² but not 10 m² | D103: No | E103: 5 | G103: 0.00
A105: M410.07(c) | C105: Exceeding 10 m² | D105: No | E105: 5 | G105: 0.00
A107: M410.08 | C107: Removal of road sign supports | D107: No | E107: 10 | G107: 0.00
A109: M410.09 | C109: Repair of road sign faces | D109: m2 | E109: 10 | G109: 0.00
A111: M410.11 | C111: Gravel drainage layer below road sign footings | D111: m3 | E111: 10 | G111: 0.00
A113: M410.12 | C113: Procurement of road sign boards
A115: M410.12(a) | C115: Procurement of road sign boards | D115: Prov.sum | E115: 1 | F115: 500,000.00 | G115: 500,000.00
A117: M410.12(b) | C117: Overhead charges and profit in respect of subitem M410.12(a) | D117: % | E117: =G115 -> 500,000 | G117: 0.00
A119: M410.13 | C119: Erection and repairs of gantry structures
A121: M410.13(a) | C121: Erection and repairs of gantry structures | D121: Prov.sum | E121: 1 | F121: 500,000.00 | G121: 500,000.00
A123: M410.13(b) | C123: Overhead charges and profit in respect
C124: of subitem M410.13(a) | D124: % | E124: =G121 -> 500,000 | G124: =ROUND(E124*(ROUND(F124,2)),2) -> 0.00
A126: M410.14 | C126: Supply of Road Signs
A128: M410.14(a) | C128: Road signs:R - and TR- series
A130: M410.14(a)(i) | C130: 900mm | D130: No | E130: 50 | G130: 0.00
A132: M410.14(a)(ii) | C132: 1200mm | D132: No | E132: 50 | G132: 0.00
A134: M410.14(b) | C134: Road signs: W- series
A136: M410.14(b)(i) | C136: 1200mm | D136: No | E136: 50 | G136: 0.00
A138: M410.14(b)(ii) | C138: 1500mm | D138: No | E138: 50 | G138: 0.00
A140: M410.14(c) | C140: Road signs: TW- series
A142: M410.14(c)(i) | C142: 1200mm | D142: No | E142: 50 | G142: 0.00
A144: M410.14(c)(ii) | C144: 1500mm | D144: No | E144: 50 | G144: 0.00
A145: M4100 | C145: TOTAL CARRIED TO SUMMARY | G145: =SUM(G79:G144) -> 1 000 000.00

Sheet Part B - M4200 Toll
A1: ='Part A - Mng M0200 Toll'!A1 -> CONTRACT NRA X.002-162-2023/1 TOLL
A2: ='Part A - Mng M0200 Toll'!A2 -> SCHEDULE A: ROUTINE ROAD MAINTENNACE OF GAUTENG JOHANNESBURG FREEWAYS | G2: SECTION M4200
A3: PART B : OPERATIONAL
A5: ITEM NO | C5: DESCRIPTION | D5: UNIT | E5: QUANTITY | F5: RATE | G5: AMOUNT
A8: M420 | C8: ROAD SIGN CLEANING
A10: M420.01 | C10: Road sign cleaning
A12: M420.01(a) | C12: Cleaning of guard rail reflectors (all types)
A14: M420.01(a)(i) | C14: Cleaning of guard rail reflectors | D14: No | E14: 5,000 | G14: =F14*E14 -> 0.00
A16: M420.01(b) | C16: Cleaning of road signs
A18: M420.01(b)(i) | C18: Area up to 2 m² | D18: No | E18: 500 | G18: =F18*E18 -> 0.00
A20: M420.01(b)(ii) | C20: Area exceeding 2 m² up to 10 m² | D20: No | E20: 250 | G20: =F20*E20 -> 0.00
A22: M420.01(b)(iii) | C22: Area exceeding 10 m² | D22: No | E22: 100 | G22: =F22*E22 -> 0.00
A24: M420.01(c) | C24: Cleaning of overhead road signs (all sizes) | D24: No | E24: 20 | G24: =F24*E24 -> 0.00
A26: M420.02 | C26: Removal of graffiti
A28: M420.02(a) | C28: From road signs | D28: m2 | E28: 50 | G28: =F28*E28 -> 0.00
A30: M420.02(b) | C30: From structures | D30: m2 | E30: 40 | G30: =F30*E30 -> 0.00
A33: M421 | C33: REMOVAL OF ILLEGAL SIGNS
A35: M421.01 | C35: Removal of illegal signs
A37: M421.01(a) | C37: Signs within the road reserve:
A39: M421.01(a)(i) | C39: Area exceeding 0,5 m² up to 2 m² | D39: No | E39: 10 | G39: =F39*E39 -> 0.00
A41: M421.01(a)(ii) | C41: Area exceeding 2 m² up to 10 m² | D41: No | E41: 10 | G41: =F41*E41 -> 0.00
A43: M421.01(a)(iii) | C43: Area exceeding 10 m² | D43: No | E43: 10 | G43: =F43*E43 -> 0.00
A45: M421.01(b) | C45: Signs outside the road reserve:
A47: M421.01(b)(i) | C47: Signs outside the road reserve (Any size) | D47: Prov sum | E47: 1 | F47: 250,000.00 | G47: =F47*E47 -> 250,000.00
A49: M421.01(b)(ii) | C49: The Contractors overhead charges and profit in respect with item M421.01(b)(i) | D49: % | E49: =G47 -> 250,000 | G49: =F49*E49 -> 0.00
G50: =IF(OR(AND(E50="Prov",F50="Sum"),(F50="PC Sum")),". . . . . . . . .00",IF(ISERR(E50*F50),"",IF(E50*F50=0,"",ROUND(E50*F50,2)))) -> 
A67: =A8 -> M420 | C67: TOTAL CARRIED TO SUMMARY | G67: =SUM(G7:G65) -> 250 000.00
D73: `

Sheet Part B - M4300 Toll
A1: ='Part A - Mng M0200 Toll'!A1 -> CONTRACT NRA X.002-162-2023/1 TOLL
A2: ='Part A - Mng M0200 Toll'!A2 -> SCHEDULE A: ROUTINE ROAD MAINTENNACE OF GAUTENG JOHANNESBURG FREEWAYS | G2: SECTION M4300
A3: PART B : OPERATIONAL
A5: ITEM NO | C5: DESCRIPTION | D5: UNIT | E5: QUANTITY | F5: RATE | G5: AMOUNT
A8: M430 | C8: ROADSTUDS
A10: M430.01 | C10: Procurement and Installation of roadstuds
A12: M430.01(a) | C12: Procurement and Installation of roadstuds | D12: Prov sum | E12: 1 | F12: 50,000.00 | G12: =F12*E12 -> 50,000.00
A14: M430.01(b) | C14: The Contractors overhead charges and profit in
C15: respect of sub-item M430.01(a) | D15: % | E15: =G12 -> 50,000 | G15: =F15*E15 -> 0.00
A17: M430.02 | C17: Removal of damaged roadstuds
A19: M430.02(a) | C19: Surface type
A21: M430.02(a)(i) | C21: Bituminous pavements | D21: No | E21: 100 | G21: =F21*E21 -> 0.00
A23: M430.02(a)(ii) | C23: Concrete pavements | D23: No | E23: 50 | G23: =F23*E23 -> 0.00
A25: M430.02(b) | C25: Embedded type
A27: M430.02(b)(i) | C27: Bituminous pavements | D27: No | E27: 100 | G27: =F27*E27 -> 0.00
A29: M430.02(b)(ii) | C29: Concrete pavements | D29: No | E29: 40 | G29: =F29*E29 -> 0.00
A31: M430.02(c) | C31: Glass type MDS | D31: No | E31: 100 | G31: =F31*E31 -> 0.00
A33: M430.03 | C33: Replacement of roadstuds
A35: M430.03(a) | C35: Surface type with shank | D35: No | E35: 100 | G35: =F35*E35 -> 0.00
A37: M430.03(b) | C37: Surface type without shank | D37: No | E37: 100 | G37: =F37*E37 -> 0.00
A39: M430.03(c) | C39: Embedded type | D39: No | E39: 250 | G39: =F39*E39 -> 0.00
G42: =IF(OR(AND(E42="Prov",F42="Sum"),(F42="PC Sum")),". . . . . . . . .00",IF(ISERR(E42*F42),"",IF(E42*F42=0,"",ROUND(E42*F42,2)))) -> 
A66: =A8 -> M430 | C66: TOTAL CARRIED TO SUMMARY | G66: =SUM(G7:G64) -> 50 000.00
D73: `

Sheet Part B - M4400 Toll
A1: ='Part A - Mng M0200 Toll'!A1 -> CONTRACT NRA X.002-162-2023/1 TOLL
A2: ='Part A - Mng M0200 Toll'!A2 -> SCHEDULE A: ROUTINE ROAD MAINTENNACE OF GAUTENG JOHANNESBURG FREEWAYS | G2: SECTION M4400
A3: PART B : OPERATIONAL
A5: ITEM NO | C5: DESCRIPTION | D5: UNIT | E5: QUANTITY | F5: RATE | G5: AMOUNT
A8: M440 | C8: GUARD-RAIL ERECTION AND MAINTENANCE
A10: M440.01 | C10: Supply and erection of new galvanised guard rails
A12: M440.01(a) | C12: 3,81 m guardrail | D12: m | E12: 20 | G12: =IF(OR(AND(E12="Prov",F12="Sum"),(F12="PC Sum")),". . . . . . . . .00",IF(ISERR(E12*F12),"",IF(E12*F12=0,"",ROUND(E12*F12,2)))) -> 
A15: M440.02 | C15: Supply and erection of new galvanised curved guard rails
C16: factory bent to a radius of less than 45,0 m
A18: M440.02(a) | C18: 3,81 m guardrail | D18: m | E18: 5
A21: M440.03 | C21: Extra over for erection of guard rail posts
A23: M440.03(a) | C23: Additional timber posts for payment item M440.01, M440.02
A25: M440.03(a)(i) | C25: Timber Post | D25: No | E25: 10
A27: M440.03(a)(ii) | C27: Steel post | D27: No | E27: 10
A30: M440.03(b) | C30: Excavation in hard material
A32: M440.03(b)(i) | C32: Timber Post | D32: No | E32: 10
A34: M440.03(b)(ii) | C34: Steel post | D34: No | E34: 5
A36: M440.03(c) | C36: Backfilling guard-rail post with soilcrete
A38: M440.03(c)(i) | C38: Timber Post | D38: No | E38: 10
A40: M440.03(c)(ii) | C40: Steel post | D40: No | E40: 10
A42: M440.03(d) | C42: Backfilling guard-rail post with concrete
A44: M440.03(d)(i) | C44: Timber Post | D44: No | E44: 10
A46: M440.03(d)(ii) | C46: Steel post | D46: No | E46: 10
A48: M440.04 | C48: End units
A50: M440.04(a) | C50: End wings
A52: M440.04(a)(i) | C52: 3,81 m guardrail | D52: No | E52: 2
A55: M440.04(b) | C55: Terminal sections in accordance with the drawings where
C56: single guard rail sections are used
A58: M440.04(b)(i) | C58: 3,81 m guardrail | D58: No | E58: 2
C73: CARRIED FORWARD | G73: =SUM(G8:G72) -> 0.00
A74: =A1 -> CONTRACT NRA X.002-162-2023/1 TOLL
A75: =A2 -> SCHEDULE A: ROUTINE ROAD MAINTENNACE OF GAUTENG JOHANNESBURG FREEWAYS | G75: SECTION M4400
A76: =A3 -> PART B : OPERATIONAL
A78: ITEM NO | C78: DESCRIPTION | D78: UNIT | E78: QUANTITY | F78: RATE | G78: AMOUNT
D79: `
C80: BROUGHT FORWARD | G80: =G73 -> 0.00
A82: M440.04(c) | C82: Terminal sections in accordance with the drawings where
C83: double guard rail sections are used
A85: M440.04(c)(i) | C85: 3,81 m guardrail | D85: No | E85: 4 | G85: =IF(OR(AND(E85="Prov",F85="Sum"),(F85="PC Sum")),". . . . . . . . .00",IF(ISERR(E85*F85),"",IF(E85*F85=0,"",ROUND(E85*F85,2)))) -> 
A88: M440.04(d) | C88: Bull nose end units
A90: M440.04(d)(i) | C90: 3,81 m guardrail | D90: No | E90: 4
A93: M440.04(e) | C93: End unit connecting to Bridge barrier | D93: No | E93: 5
A95: M440.05 | C95: Guard rail reflectors | D95: No | E95: 100
A97: M440.06 | C97: Removal of damaged guard rails and re-erection of
C98: guard rails with new material
A100: M440.06(a) | C100: Guard rails
A102: M440.06(a)(i) | C102: 3,81 m guardrail | D102: m | E102: 7,500
A105: M440.06(b) | C105: End wings
A107: M440.06(b)(i) | C107: 3,81 m guardrail | D107: No | E107: 20
A110: M440.06(c) | C110: Terminal sections with single guard rails
A112: M440.06(c)(i) | C112: 3,81 m guardrail | D112: No | E112: 5
A115: M440.06(d) | C115: Terminal sections with double guard rails
A117: M440.06(d)(i) | C117: 3,81 m guardrail | D117: No | E117: 5
A120: M440.06(e) | C120: Extra over for providing additional guard-rail posts
A122: M440.06(e)(i) | C122: Timber post | D122: No | E122: 20
A124: M440.06(e)(ii) | C124: Steel Post (Z post) | D124: No | E124: 20
C149: CARRIED FORWARD | G149: =SUM(G80:G148) -> 0.00
A150: =A1 -> CONTRACT NRA X.002-162-2023/1 TOLL
A151: =A2 -> SCHEDULE A: ROUTINE ROAD MAINTENNACE OF GAUTENG JOHANNESBURG FREEWAYS | G151: SECTION M4400
A152: =A3 -> PART B : OPERATIONAL
A154: ITEM NO | C154: DESCRIPTION | D154: UNIT | E154: QUANTITY | F154: RATE | G154: AMOUNT
C156: BROUGHT FORWARD | G156: =G149 -> 0.00
A158: M440.07 | C158: Providing of new material required for the re-erection of gaurdrails
A160: M440.07(a ) | C160: Supply of new straight guardrails (3,81m guardrails) | D160: m | E160: 2,000 | G160: =IF(OR(AND(E160="Prov",F160="Sum"),(F160="PC Sum")),". . . . . . . . .00",IF(ISERR(E160*F160),"",IF(E160*F160=0,"",ROUND(E160*F160,2)))) -> 
A163: M440.07(b) | C163: Supply of new curved guardrails (3,81m guardrails) | D163: m | E163: 20
A166: M440.07(c) | C166: Timber posts | D166: No | E166: 2000
A168: M440.07(d ) | C168: Spacer blocks (3.81m guardrail) | D168: No | E168: 2,000
A171: M440.07(e ) | C171: Steel posts
A173: M440.07(e ) (i) | C173: Z-post (3.81m guardrail) | D173: No | E173: 20
A176: M440.07(f) | C176: Guardrail reflectors
A178: M440.07(f)(i) | C178: Type D1 (A) | D178: No | E178: 1,500
A180: M440.07(g) | C180: End Units
A182: M440.07(g)(i) | C182: End wings | D182: No | E182: 50
A184: M440.07(g)(ii) | C184: Terminal sections with single guardrails (3.81m guardrail) | D184: No | E184: 5
A187: M440.07(g)(iii) | C187: Terminal sections with double guardrails (3.81m guardrail) | D187: No | E187: 5
A190: M440.07(g)(iv) | C190: Bull nose end units | D190: No | E190: 20
A192: M440.09 | C192: Reinstatement of concrete to guardrail post (15/19) | D192: m3 | E192: 50
A194: M440.10 | C194: Re-alignment of guard rails
A196: M440.10(i) | C196: 3,81 m guardrail | D196: m | E196: 2,000
F198: .
A199: M440.12 | C199: Installation and repair of wire rope safety fence
A201: M440.12(a) | C201: Installation and repair of wire rope safety fence | D201: Prov Sum | E201: 1 | F201: 200,000.00 | G201: 200,000.00
A203: M440.12(b) | C203: Handling costs and profit in respect of sub-item M440.12(a) | D203: % | E203: =G201 -> 200,000
C223: CARRIED FORWARD | G223: =SUM(G156:G222) -> 200,000.00
A224: =A1 -> CONTRACT NRA X.002-162-2023/1 TOLL
A225: =A2 -> SCHEDULE A: ROUTINE ROAD MAINTENNACE OF GAUTENG JOHANNESBURG FREEWAYS | G225: SECTION M4400
A226: =A3 -> PART B : OPERATIONAL
A228: ITEM NO | C228: DESCRIPTION | D228: UNIT | E228: QUANTITY | F228: RATE | G228: AMOUNT
C230: BROUGHT FORWARD | G230: =G223 -> 200,000.00
A232: M440.14 | C232: Repair of damaged wire rope safety fence and re-erection of
C233: wire rope safety fence with new, recovered or
C234: renovated material
A236: M440.14(a) | C236: Repair of Wire Rope Safety Fence Installation | D236: m | E236: 3,000 | G236: =IF(OR(AND(E236="Prov",F236="Sum"),(F236="PC Sum")),". . . . . . . . .00",IF(ISERR(E236*F236),"",IF(E236*F236=0,"",ROUND(E236*F236,2)))) -> 
A238: M440.14(c) | C238: Anchor Blocks | D238: No | E238: 2
A240: M440.15 | C240: Re-tensioning of wire rope safety fence | D240: No | E240: 1
A242: M440.16 | C242: Installation and repair of Impact Antenuators -
C243: Crash Cushion
A245: M440.16(a) | C245: Installation and repair of Impact Antenuators - Crash Cushion | D245: Prov Sum | E245: 1 | F245: 500,000.00 | G245: 500,000.00
A247: M440.16(b) | C247: The Contractors overhead charges and profit in respect of
C248: sub-item M440.16(a) | D248: % | E248: =G245 -> 500,000 | G248: =IF(OR(AND(E248="Prov",F248="Sum"),(F248="PC Sum")),". . . . . . . . .00",IF(ISERR(E248*F248),"",IF(E248*F248=0,"",ROUND(E248*F248,2)))) -> 
A250: M440.17 | C250: Repairing of damaged wire rope safety fence
A252: M440.17(a) | C252: Safe Fence materials
A254: M440.17(a)(i) | C254: Stainless steel rigging screws | D254: No | E254: 5
A255: M440.17(a)(ii) | C255: Stainless steel swage fittings | D255: No | E255: 5
A256: M440.17(a)(iii) | C256: Stainless steel flat bar to end anchor | D256: No | E256: 5
A257: M440.17(a)(iv) | C257: Galvanised steel post | D257: No | E257: 1,000
A258: M440.17(a)(v) | C258: Stainless steel stiffening frame | D258: No | E258: 1,000
A259: M440.17(a)(vi) | C259: Steel spreader to end post | D259: No | E259: 1,000
A260: M440.17(a)(vii) | C260: Plastic spreader | D260: No | E260: 1,000
A261: M440.17(a)(viii) | C261: Plastic ground cover | D261: No | E261: 1,000
A262: M440.17(a)(ix) | C262: Plastic post caps | D262: No | E262: 1,000
A263: M440.17(a)(x) | C263: Reflective strips to post caps (Class 3 High Int) | D263: No | E263: 1,000
A264: M440.17(a)(xi) | C264: Reflective strips to post (Class 3 High Int) | D264: No | E264: 1,000
A265: M440.17(a)(xii) | C265: Pastic ties to post cap | D265: No | E265: 1,000
A266: M440.17(a)(xiii) | C266: Galvanised wire rope | D266: m | E266: 5
A267: M440.17(a)(xiv) | C267: End anchor frames galvanised | D267: No | E267: 5
A268: M440.17(a)(xv) | C268: Pre cast footings 200 diameter x 600 mm | D268: No | E268: 5
A270: M440.17(b) | C270: Brifen materials (Highway Safety Products)
A272: M440.17(b)(i) | C272: Wire rope including threaded terminals | D272: m | E272: 10
A273: M440.17(b)(ii) | C273: Wire rope excluding threaded terminals | D273: m | E273: 10
A274: M440.17(b)(iii) | C274: Threaded terminals, excluding swaging | D274: No | E274: 10
A275: M440.17(b)(iv) | C275: Rigging screw | D275: No | E275: 10
A276: M440.17(b)(v) | C276: Safety check rope | D276: No | E276: 10
A277: M440.17(b)(vi) | C277: Rope connection | D277: No | E277: 10
A278: M440.17(b)(vii) | C278: Line post "S" type | D278: No | E278: 3,000
A279: M440.17(b)(viii) | C279: Deflection post "S" type | D279: No | E279: 25
A280: M440.17(b)(ix) | C280: Locating peg (6mmx25mm galv bolt and nut) | D280: No | E280: 200
A281: M440.17(b)(x) | C281: Cap and relfective material (incl cable ties) Class 3 High
C282: intensity reflective material | D282: No | E282: 500 | G282: =IF(OR(AND(E282="Prov",F282="Sum"),(F282="PC Sum")),". . . . . . . . .00",IF(ISERR(E282*F282),"",IF(E282*F282=0,"",ROUND(E282*F282,2)))) -> 
A283: M440.17(b)(xi) | C283: Pre cast socket with galvanised sleeve | D283: No | E283: 10
A284: M440.17(b)(xii) | C284: Excluder / dust cover | D284: No | E284: 20
A285: M440.17(b)(xiii) | C285: End anchor frame "Z" | D285: No | E285: 5
A286: M440.17(b)(xiv) | C286: Cast in situ anchor complete | D286: No | E286: 5
A288: M440.17(c) | C288: Placement of concrete barriers
A290: M440.17(c)(i) | C290: Loading of barriers | D290: m | E290: 1,200
A291: M440.17(c)(ii) | C291: Off loading of barriers | D291: m | E291: 1,200
A292: M440.17(c)(iii) | C292: Leveling and placing of barriers in position | D292: m | E292: 1,200
A293: M440.17(c)(iv) | C293: Tieing barriers together (Doweling) | D293: No | E293: 750
A294: M440.17(c)(v) | C294: Overhaul for transport barriers | D294: m/km | E294: 12,500
A299: =A8 -> M440 | C299: TOTAL CARRIED TO SUMMARY | G299: =SUM(G230:G294) -> 700 000.00

Sheet Part B - M4500 Toll
A1: ='Part A - Mng M0200 Toll'!A1 -> CONTRACT NRA X.002-162-2023/1 TOLL
A2: ='Part A - Mng M0200 Toll'!A2 -> SCHEDULE A: ROUTINE ROAD MAINTENNACE OF GAUTENG JOHANNESBURG FREEWAYS | G2: SECTION M4500
A3: PART B : OPERATIONAL
A5: ITEM NO | C5: DESCRIPTION | D5: UNIT | E5: QUANTITY | F5: RATE | G5: AMOUNT
A8: M450 | C8: DAZZLE SCREEN ERECTION AND REPLACEMENT
A10: M450.01 | C10: Supply and erection of dazzle screens
A12: M450.01(a) | C12: Metal | D12: m | E12: 20 | G12: =ROUND(E12*(ROUND(F12,2)),2) -> 0.00
A14: M450.02 | C14: Supply and erection of dazzle screen supporting posts
A16: M450.02(a) | C16: Metal | D16: No | E16: 20 | G16: =ROUND(E16*(ROUND(F16,2)),2) -> 0.00
A18: M450.03 | C18: Removal of damaged dazzle screens and supporting posts | D18: m | E18: 20 | G18: 0.00
G28: =IF(OR(AND(E28="Prov",F28="Sum"),(F28="PC Sum")),". . . . . . . . .00",IF(ISERR(E28*F28),"",IF(E28*F28=0,"",ROUND(E28*F28,2)))) -> 
A71: =A8 -> M450 | C71: TOTAL CARRIED TO SUMMARY | G71: =SUM(G7:G69) -> 0.00

Sheet Part B - M4600 Toll
A1: ='Part A - Mng M0200 Toll'!A1 -> CONTRACT NRA X.002-162-2023/1 TOLL
A2: ='Part A - Mng M0200 Toll'!A2 -> SCHEDULE A: ROUTINE ROAD MAINTENNACE OF GAUTENG JOHANNESBURG FREEWAYS | G2: SECTION M4600
A3: PART B : OPERATIONAL
A5: ITEM NO | C5: DESCRIPTION | D5: UNIT | E5: QUANTITY | F5: RATE | G5: AMOUNT
A8: M460 | C8: ROAD MARKINGS
A10: M460.02 | C10: Retro-reflective road-marking paint:
A12: M460.02(a) | C12: White lines (broken or unbroken) (width of line
C13: indicated)
A15: M460.02(a)(i) | C15: 100mm wide | D15: km | E15: 20 | G15: =ROUND(E15*(ROUND(F15,2)),2) -> 0.00
A17: M460.02(a)(ii) | C17: 150mm wide | D17: km | E17: 5 | G17: =ROUND(E17*(ROUND(F17,2)),2) -> 0.00
A19: M460.02(a)(iii) | C19: 200mm wide | D19: km | E19: 5 | G19: 0.00
A21: M460.02(a)(iv) | C21: 300mm wide | D21: km | E21: 5 | G21: 0.00
A23: M460.02(b) | C23: Yellow lines (broken or unbroken) (width of line indicated)
A25: M460.02(b)(i) | C25: 100mm Wide | D25: km | E25: 10 | G25: 0.00
A27: M460.02(b)(ii) | C27: 150mm Wide | D27: km | E27: 5 | G27: 0.00
A29: M460.02(b)(iii) | C29: 300mm wide | D29: km | E29: 5 | G29: 0.00
A31: M460.02(d) | C31: White lettering and symbols | D31: m2 | E31: 100 | G31: 0.00
A33: M460.02(f) | C33: Transverse lines, painted island and arrestor bed
C34: markings (any colour) | D34: m2 | E34: 100 | G34: =ROUND(E34*(ROUND(F34,2)),2) -> 0.00
A36: M460.04 | C36: Setting out and pre-marking the lines (excluding traffic-
C37: island markings, lettering and symbols) | D37: km | E37: 50 | G37: =ROUND(E37*(ROUND(F37,2)),2) -> 0.00
A39: M460.05 | C39: Removal of existing, temporary or permanent road
C40: markings by:
A42: M460.05(a) | C42: Sandblasting | D42: m2 | E42: 500 | G42: 0.00
A44: M460.06 | C44: Road markings:
A46: M460.06(a) | C46: Road markings: | D46: Prov Sum | E46: 1 | F46: 500,000.00 | G46: =ROUND(E46*(ROUND(F46,2)),2) -> 500 000.00
A48: M460.06(b) | C48: The Contractors overhead charges and profit in respect
C49: of sub-item M460.06(a) | D49: % | E49: =G46 -> 500,000 | G49: =ROUND(E49*(ROUND(F49,2)),2) -> 0.00
G52: =IF(OR(AND(E52="Prov",F52="Sum"),(F52="PC Sum")),". . . . . . . . .00",IF(ISERR(E52*F52),"",IF(E52*F52=0,"",ROUND(E52*F52,2)))) -> 
A73: =A8 -> M460 | C73: TOTAL CARRIED TO SUMMARY | D73: ` | G73: =SUM(G7:G71) -> 500 000.00

Sheet Part B - M5100 Toll
A1: ='Part A - Mng M0200 Toll'!A1 -> CONTRACT NRA X.002-162-2023/1 TOLL
A2: ='Part A - Mng M0200 Toll'!A2 -> SCHEDULE A: ROUTINE ROAD MAINTENNACE OF GAUTENG JOHANNESBURG FREEWAYS | G2: SECTION M5100
A3: PART B : OPERATIONAL
A5: ITEM NO | C5: DESCRIPTION | D5: UNIT | E5: QUANTITY | F5: RATE | G5: AMOUNT
A8: M510 | C8: GENERAL EROSION PROTECTION
A10: M510.01 | C10: Stone pitching
A12: M510.01(b) | C12: Grouted pitching | D12: m2 | E12: 100 | G12: =ROUND(E12*(ROUND(F12,2)),2) -> 0.00
A14: M510.01(d) | C14: Grouted pitching on a concrete bed (total thickness 200mm) | D14: m2 | E14: 100 | G14: =ROUND(E14*(ROUND(F14,2)),2) -> 0.00
A16: M510.03 | C16: Foundations
A18: M510.03(a) | C18: Excavation of foundation trenches | D18: m3 | E18: 10 | G18: 0.00
A20: M510.03(b) | C20: Concrete foundations | D20: m3 | E20: 10 | G20: 0.00
A22: M510.04 | C22: Stone masonry walls
A24: M510.04(b) | C24: Cement-mortared stone walls | D24: m3 | E24: 50 | G24: 0.00
A26: M510.05 | C26: Precast concrete block retaining walls
A28: M510.05(a) | C28: Precast concrete block retaining walls | D28: Prov Sum | E28: 1 | F28: 150,000.00 | G28: 150 000.00
A30: M510.05(b) | C30: Overhead charges and profit in respect of subitem M510.05(a) | D30: % | E30: =G28 -> 150,000 | G30: 0.00
A32: M510.06 | C32: Concrete paving and block paving
A34: M510.06(b) | C34: Segmented block paving (type, 80mm) | D34: m2 | E34: 100 | G34: 0.00
A36: M510.06(c) | C36: Prefabricated concrete grass blocks | D36: m2 | E36: 50 | G36: 0.00
A38: M510.06(d) | C38: Prefabricated concrete paving blocks for sidewalk pavement (50mm) | D38: m2 | E38: 100 | G38: 0.00
A40: M510.07 | C40: Concrete edge beams | D40: m3 | E40: 10 | G40: 0.00
A42: M510.08 | C42: Spraying of vegetation destroyer and ant poison
A44: M510.08(a) | C44: Herbicide
A46: M510.08(a)(i) | C46: Selective (contractor to specify brand name) | D46: Litre | E46: 50 | G46: 0.00
A48: M510.08(a)(ii) | C48: Non selective (contractor to specify brand name) | D48: Litre | E48: 50 | G48: 0.00
A50: M510.08(b) | C50: Ant poison (Contractor to specify brand name) | D50: Litre | E50: 50 | G50: 0.00
A52: M510.09 | C52: Biodegradable Fabric
A54: M510.09(a) | C54: Biodegradable woven fabric, jute yarn | D54: Prov Sum | E54: 1 | F54: 50,000.00 | G54: 50 000.00
A56: M510.09(b) | C56: Overhead charges and profit in respect of subitem M510.09(a) | D56: % | E56: =G54 -> 50,000 | G56: 0.00
D73: `
A74: M5100 | C74: TOTAL CARRIED TO SUMMARY | G74: =SUM(G8:G73) -> 200 000.00

Sheet Part B - M5200 Toll
A1: ='Part A - Mng M0200 Toll'!A1 -> CONTRACT NRA X.002-162-2023/1 TOLL
A2: ='Part A - Mng M0200 Toll'!A2 -> SCHEDULE A: ROUTINE ROAD MAINTENNACE OF GAUTENG JOHANNESBURG FREEWAYS | G2: SECTION M5200
A3: PART B : OPERATIONAL
A5: ITEM NO | C5: DESCRIPTION | D5: UNIT | E5: QUANTITY | F5: RATE | G5: AMOUNT
A8: M520 | C8: GABION PROTECTION
A10: M520.01 | C10: Foundation trench excavation and backfilling
A12: M520.01(a) | C12: In solid rock (material which requires blasting) | D12: m3 | E12: 50 | G12: =ROUND(E12*(ROUND(F12,2)),2) -> 0.00
A14: M520.01(b) | C14: In all other classes of material | D14: m3 | E14: 50 | G14: 0.00
A16: M520.02 | C16: Surface preparation for bedding the gabions | D16: m2 | E16: 80 | G16: 0.00
A18: M520.03 | C18: Gabions
A20: M520.03(a) | C20: Gabion baskett (1000x2000 and 80x100x2.5mm,
C21: diaphragm spacing 1000mm) | D21: m3 | E21: 100 | G21: =ROUND(E21*(ROUND(F21,2)),2) -> 0.00
A23: M520.03(c) | C23: Gagion mattresses (0.3 by 80x100, wire 2.2mm,
C24: diaphragm spacing 1000mm) | D24: m3 | E24: 50 | G24: =ROUND(E24*(ROUND(F24,2)),2) -> 0.00
A26: M520.04 | C26: Geotextile (specify type and grade) | D26: m2 | E26: 200 | G26: 0.00
G41: =IF(OR(AND(E41="Prov",F41="Sum"),(F41="PC Sum")),". . . . . . . . .00",IF(ISERR(E41*F41),"",IF(E41*F41=0,"",ROUND(E41*F41,2)))) -> 
A70: =A8 -> M520 | C70: TOTAL CARRIED TO SUMMARY | G70: =SUM(G7:G68) -> 0.00
D73: `

Sheet Part B - M6100 Toll
A1: ='Part A - Mng M0200 Toll'!A1 -> CONTRACT NRA X.002-162-2023/1 TOLL
A2: ='Part A - Mng M0200 Toll'!A2 -> SCHEDULE A: ROUTINE ROAD MAINTENNACE OF GAUTENG JOHANNESBURG FREEWAYS | G2: SECTION M6100
A3: PART B : OPERATIONAL
A5: ITEM NO | C5: DESCRIPTION | D5: UNIT | E5: QUANTITY | F5: RATE | G5: AMOUNT
A8: M610 | C8: GENERAL AND SHOULDER MOW
A10: M610.04 | C10: General mow - performance based
A12: M610.04(a) | C12: Reserve with dual carriageway (State section
C13: and km distance incl. I/C)
A15: M610.04(a)(i) | C15: N1 section 19 distance 36.4 km (3 interchanges) | D15: Month | E15: 6 | G15: =ROUND(E15*(ROUND(F15,2)),2) -> 0.00
A17: M610.04(a)(ii) | C17: N1 section 19 distance 17,2 km (1 interchange) | D17: Month | E17: 6 | G17: 0.00
A19: M610.04(a)(iii) | C19: N1 section 20 distance 57,6 km (14 interchanges) | D19: Month | E19: 6 | G19: 0.00
A21: M610.04(a)(iv) | C21: N1 section 21 distance 6,2 km (2 interchanges) | D21: Month | E21: 6 | G21: 0.00
A23: M610.04(a)(v) | C23: N3 section 12 distance 12,3 km (5 interchanges) | D23: Month | E23: 6 | G23: 0.00
A25: M610.04(a)(vi) | C25: N12 section 18 distance 10,3 km (4 interchanges) | D25: Month | E25: 6 | G25: =ROUND(E25*(ROUND(F25,2)),2) -> 0.00
A27: M610.04(a)(vii) | C27: N17 section 01 distance 6,8 km (3 interchanges) | D27: Month | E27: 6 | G27: 0.00
A29: M611.03 | C29: Mowing of additional areas
A31: M611.03(a) | C31: Ad-hoc areas | D31: m2 | E31: 10,000 | G31: 0.00
A33: M611.03(c) | C33: Fence line
A35: M611.03(c)(i) | C35: 1,0m wide | D35: km | E35: 50 | G35: 0.00
A37: M611.03(d) | C37: 1,0m wide either side of concrete drains and pedestian path | D37: km | E37: 50 | G37: 0.00
A39: M611.03(e) | C39: Mowing of additional Sanral properties | D39: ha | E39: 20 | G39: 0.00
A69: M6100 | C69: TOTAL CARRIED TO SUMMARY | G69: =SUM(G8:G68) -> 0.00
D73: `

Sheet Part B - M6200 Toll
A1: ='Part A - Mng M0200 Toll'!A1 -> CONTRACT NRA X.002-162-2023/1 TOLL
A2: ='Part A - Mng M0200 Toll'!A2 -> SCHEDULE A: ROUTINE ROAD MAINTENNACE OF GAUTENG JOHANNESBURG FREEWAYS | G2: SECTION M6200
A3: PART B : OPERATIONAL
A5: ITEM NO | C5: DESCRIPTION | D5: UNIT | E5: QUANTITY | F5: RATE | G5: AMOUNT
A8: M620 | C8: CHEMICAL CONTROL OF UNDESIRABLE VEGETATION
A10: M620.01 | C10: Annual chemical eradication of undesirable vegetation
A12: M620.01(a) | C12: Reserve with dual carriageway (State section and
C13: km distance incl. Interchanges)
A15: M620.01(a)(i) | C15: N1 section 19 distance 36.4 km (3 interchanges) | D15: No | E15: 1 | G15: =ROUND(E15*(ROUND(F15,2)),2) -> 0.00
A17: M620.01(a)(ii) | C17: N1 section 19 distance 17,2 km (1 interchange) | D17: No | E17: 1 | G17: 0.00
A19: M620.01(a)(iii) | C19: N1 section 20 distance 57,6 km (14 interchanges) | D19: No | E19: 1 | G19: 0.00
A21: M620.01(a)(iv) | C21: N1 section 21 distance 6,2 km (2 interchanges) | D21: No | E21: 1 | G21: 0.00
A23: M620.01(a)(v) | C23: N3 section 12 distance 12,3 km (5 interchanges) | D23: No | E23: 1 | G23: 0.00
A25: M620.01(a)(vi) | C25: N12 section 18 distance 10,3 km (4 interchanges) | D25: No | E25: 1 | G25: =ROUND(E25*(ROUND(F25,2)),2) -> 0.00
A27: M620.01(a)(vii) | C27: N17 section 01 distance 6,8 km (3 interchanges) | D27: No | E27: 1 | G27: 0.00
A29: M620.02 | C29: Additional chemical eradication of undesirable vegetation and control
C30: of vegetation growth on instruction from the Engineer
A32: M620.02(a) | C32: Isolated areas | D32: m2 | E32: 10000 | G32: 0.00
A34: M620.02(b) | C34: Dense areas (areas more than 20% infested) | D34: ha | E34: 50 | G34: 0.00
A36: M620.02(c) | C36: Shoulder weedspray | D36: km | E36: 50 | G36: 0.00
A38: M620.02(d) | C38: Extra over sub-item M620.02 (c) under guardrails | D38: km | E38: 50 | G38: 0.00
A40: M620.02(e) | C40: Between road reserve fence and neighbouring solid wall | D40: m2 | E40: 10,000 | G40: 0.00
A42: M620.02(g) | C42: Openings, cracks and jointson concrete channels,
C43: lay-byes and block paved areas, and joints between the
C44: road pavement and concrete channels
A46: M620.02(g)(i) | C46: Road reserve with dual carriageway(State section and
C47: km distance incl. Interchanges)
A49: M620.02(g)(i)(a) | C49: N1 section 19 distance 36.4 km (3 interchanges) | D49: No | E49: 1 | G49: 0.00
A51: M620.02(g)(i)(b) | C51: N1 section 19 distance 17,2 km (1 interchange) | D51: No | E51: 1 | G51: 0.00
A53: M620.02(g)(i)(c ) | C53: N1 section 20 distance 57,6 km (14 interchanges) | D53: No | E53: 1 | G53: 0.00
A55: M620.02(g)(i)(d ) | C55: N1 section 21 distance 6,2 km (2 interchanges) | D55: No | E55: 1 | G55: 0.00
A57: M620.02(g)(i)(e) | C57: N3 section 12 distance 12,3 km (5 interchanges) | D57: No | E57: 1 | G57: 0.00
A59: M620.02(g)(i)(f) | C59: N12 section 18 distance 10,3 km (4 interchanges) | D59: No | E59: 1 | G59: =ROUND(E59*(ROUND(F59,2)),2) -> 0.00
A61: M620.02(g)(i)(g) | C61: N17 section 01 distance 6,8 km (3 interchanges) | D61: No | E61: 1 | G61: 0.00
D73: `
A75: M6200 | C75: TOTAL CARRIED TO SUMMARY | G75: =SUM(G12:G74) -> 0.00

Sheet Part B - M6300 Toll
A1: ='Part A - Mng M0200 Toll'!A1 -> CONTRACT NRA X.002-162-2023/1 TOLL
A2: ='Part A - Mng M0200 Toll'!A2 -> SCHEDULE A: ROUTINE ROAD MAINTENNACE OF GAUTENG JOHANNESBURG FREEWAYS | G2: SECTION M6300
A3: PART B : OPERATIONAL
A5: ITEM NO | C5: DESCRIPTION | D5: UNIT | E5: QUANTITY | F5: RATE | G5: AMOUNT
A8: M630 | C8: REMOVAL OF UNDESIRABLE VEGETATION: PHYSICAL ERADICATION
A10: M630.01 | C10: Eradication of undesired vegetation
A12: M630.01(a) | C12: Initial eradication
A14: M630.01(a)(i) | C14: Undesirable vegetation and trees with a girth of | D14: LS | E14: 1 | G14: =ROUND(E14*(ROUND(F14,2)),2) -> 0.00
C15: 0 to 150mm (for entire route)
A17: M630.01(a)(ii) | C17: Trees with a girth exceeding 151mm to 500mm | D17: LS | E17: 1 | G17: =ROUND(E17*(ROUND(F17,2)),2) -> 0.00
C18: for entire route
A20: M630.01(b) | C20: Annual Eradication (specify section and km
C21: distance including interchanges)
A23: M630.01(b)(i) | C23: N1 section 19 distance 36.4 km (3 interchanges) | D23: No | E23: 1 | G23: =ROUND(E23*(ROUND(F23,2)),2) -> 0.00
A24: M630.01(b)(ii) | C24: N1 section 19 distance 17,2 km (1 interchange) | D24: No | E24: 1 | G24: 0.00
A25: M630.01(b)(iii) | C25: N1 section 20 distance 57,6 km (14 interchanges) | D25: No | E25: 1 | G25: 0.00
A26: M630.01(b)(iv) | C26: N1 section 21 distance 6,2 km (2 interchanges) | D26: No | E26: 1 | G26: 0.00
A27: M630.01(b)(v) | C27: N3 section 12 distance 12,3 km (5 interchanges) | D27: No | E27: 1 | G27: 0.00
A28: M630.01(b)(vi) | C28: N12 section 18 distance 10,3 km (4 interchanges) | D28: No | E28: 1 | G28: 0.00
A29: M630.01(b)(vii) | C29: N17 section 01 distance 6,8 km (3 interchanges) | D29: No | E29: 1 | G29: 0.00
A31: M630.02 | C31: Tree felling on instruction from the Engineer
A33: M630.02(a) | C33: Girth exceeding 150 mm to 500 mm | D33: No | E33: 10 | G33: =ROUND(E33*(ROUND(F33,2)),2) -> 0.00
A35: M630.02(b) | C35: Girth exceeding 500 mm up to 1 000 mm | D35: No | E35: 50 | G35: 0.00
A37: M630.02(c) | C37: Girth exceeding 1 000 mm up to 2 000 mm | D37: No | E37: 50 | G37: 0.00
A39: M630.02(d) | C39: Girth exceeding 2 000 mm up to 4 000 mm | D39: No | E39: 50 | G39: 0.00
A41: M630.02(e) | C41: Girth exceeding 4 000 mm | D41: No | E41: 50 | G41: 0.00
A43: M630.03 | C43: Burning of fire breaks per operation
A45: M630.03(a) | C45: 5m wide fire breaks in median
A47: M630.03(a)(i) | C47: N1 section 19 distance 36.4 km (3 interchanges) | D47: No | E47: 1 | G47: =ROUND(E47*(ROUND(F47,2)),2) -> 0.00
A48: M630.03(a)(ii) | C48: N1 section 19 distance 17,2 km (1 interchange) | D48: No | E48: 1 | G48: 0.00
A49: M630.03(a)(iii) | C49: N1 section 20 distance 57,6 km (14 interchanges) | D49: No | E49: 1 | G49: 0.00
A50: M630.03(a)(iv) | C50: N12 section 18 distance 10,3 km (4 interchanges) | D50: No | E50: 1 | G50: 0.00
A52: M630.03(c) | C52: 5m wide fire breaks next to road reserve fence
A54: M630.03(b)(i) | C54: N1 section 19 distance 36.4 km (3 interchanges) | D54: No | E54: 1 | G54: 0.00
A55: M630.03(b)(ii) | C55: N1 section 19 distance 17,2 km (1 interchange) | D55: No | E55: 1 | G55: 0.00
A56: M630.03(b)(iii) | C56: N1 section 20 distance 57,6 km (14 interchanges) | D56: No | E56: 1 | G56: 0.00
A57: M630.03(b)(iv) | C57: N1 section 21 distance 6,2 km (2 interchanges) | D57: No | E57: 1 | G57: 0.00
A58: M630.03(b)(v) | C58: N3 section 12 distance 12,3 km (5 interchanges) | D58: No | E58: 1 | G58: 0.00
A59: M630.03(b)(vi) | C59: N12 section 18 distance 10,3 km (4 interchanges) | D59: No | E59: 1 | G59: 0.00
A60: M630.03(b)(vii) | C60: N17 section 01 distance 6,8 km (3 interchanges) | D60: No | E60: 1 | G60: 0.00
A62: M630.04 | C62: Additional eradiction of undesired vegetation as
C63: instructed by the Engineer | D63: ha | E63: 5 | G63: =ROUND(E63*(ROUND(F63,2)),2) -> 0.00
G65: =IF(OR(AND(E65="Prov",F65="Sum"),(F65="PC Sum")),". . . . . . . . .00",IF(ISERR(E65*F65),"",IF(E65*F65=0,"",ROUND(E65*F65,2)))) -> 
A70: =A8 -> M630 | C70: TOTAL CARRIED TO SUMMARY | G70: =SUM(G7:G68) -> 0.00
D72: `

Sheet Part B - M6400 Toll
A1: ='Part A - Mng M0200 Toll'!A1 -> CONTRACT NRA X.002-162-2023/1 TOLL
A2: ='Part A - Mng M0200 Toll'!A2 -> SCHEDULE A: ROUTINE ROAD MAINTENNACE OF GAUTENG JOHANNESBURG FREEWAYS | G2: SECTION M6400
A3: PART B : OPERATIONAL
A5: ITEM NO | C5: DESCRIPTION | D5: UNIT | E5: QUANTITY | F5: RATE | G5: AMOUNT
A8: M640 | C8: MAINTENANCE AND ESTABLISHMENT OF PLANTS,
C9: TREES AND SHRUBS
A11: M640.02 | C11: Trimming of shrubs and hedges
A13: M640.02(a) | C13: Annual trimming of shrubs and hedges
A15: M640.02(a)(i) | C15: Reserve with dual carriageway (State section
C16: and km distance incl. Intersections)
A18: M640.02(a)(i)(a) | C18: N1 section 19 distance 36.4 km (3 interchanges) | D18: No | E18: 1 | G18: =ROUND(E18*(ROUND(F18,2)),2) -> 0.00
A19: M640.02(a)(i)(b) | C19: N1 section 19 distance 17,2 km (1 interchange) | D19: No | E19: 1 | G19: 0.00
A20: M640.02(a)(i)(c ) | C20: N1 section 20 distance 15 km (14 interchanges) | D20: No | E20: 1 | G20: 0.00
A21: M640.02(a)(i)(e) | C21: N3 section 12 distance 2 km (5 interchanges) | D21: No | E21: 1 | G21: 0.00
A22: M640.02(a)(i)(f ) | C22: N12 section 18 distance 5 km (4 interchanges) | D22: No | E22: 1 | G22: 0.00
A24: M640.03 | C24: Preparing plant holes
A26: M640.03(a) | C26: Trees | D26: No | E26: 50 | G26: =ROUND(E26*(ROUND(F26,2)),2) -> 0.00
A28: M640.04 | C28: Supply of trees,shrubs and hedge plants
A30: M640.04(a) | C30: Supply of trees,shrubs and hedge plants | D30: Prov Sum | E30: 1 | F30: 50,000.00 | G30: =ROUND(E30*(ROUND(F30,2)),2) -> 50,000.00
A32: M640.04(b) | C32: The Contractors overhead charges and profit in
C33: respect of sub-item M640.04(a) | D33: % | E33: =G30 -> 50,000 | G33: =ROUND(E33*(ROUND(F33,2)),2) -> 0.00
A35: M640.05 | C35: Watering of trees, shrubs and grass | D35: kl | E35: 5,000 | G35: =ROUND(E35*(ROUND(F35,2)),2) -> 0.00
A37: M640.06 | C37: Trimming of trees on instruction of engineer | D37: No | E37: 1,200 | G37: =ROUND(E37*(ROUND(F37,2)),2) -> 0.00
G50: =IF(OR(AND(E50="Prov",F50="Sum"),(F50="PC Sum")),". . . . . . . . .00",IF(ISERR(E50*F50),"",IF(E50*F50=0,"",ROUND(E50*F50,2)))) -> 
A69: =A8 -> M640 | C69: TOTAL CARRIED TO SUMMARY | G69: =SUM(G7:G67) -> 50 000.00
D73: `

Sheet Part B - M6500 Toll
A1: ='Part A - Mng M0200 Toll'!A1 -> CONTRACT NRA X.002-162-2023/1 TOLL
A2: ='Part A - Mng M0200 Toll'!A2 -> SCHEDULE A: ROUTINE ROAD MAINTENNACE OF GAUTENG JOHANNESBURG FREEWAYS | G2: SECTION M6500
A3: PART B : OPERATIONAL
A5: ITEM NO | C5: DESCRIPTION | D5: UNIT | E5: QUANTITY | F5: RATE | G5: AMOUNT
A8: M650 | C8: ESTABLISHMENT OF GRASS
A10: M650.01 | C10: Trimming for grassing
A12: M650.01(a) | C12: Machine trimming | D12: m2 | E12: 10 | G12: =ROUND(E12*(ROUND(F12,2)),2) -> 0.00
A14: M650.01(b) | C14: Hand trimming | D14: m2 | E14: 10 | G14: 0.00
A16: M650.02 | C16: Loosening of topsoil
A18: M650.02(a) | C18: Ripping | D18: ha | E18: 10 | G18: 0.00
A20: M650.02(b) | C20: Ploughing for loosening topsoil | D20: ha | E20: 10 | G20: 0.00
A22: M650.03 | C22: Topsoil placing
A24: M650.03(a) | C24: Flat areas | D24: m3 | E24: 10 | G24: 0.00
A26: M650.03(b) | C26: Slopes | D26: m3 | E26: 10 | G26: 0.00
A28: M650.04 | C28: Overhaul on material hauled in excess of 1,0 km | D28: m3 - km | E28: 20 | G28: 0.00
A30: M650.05 | C30: Chemical fertiliser and/or soil improvement material
C31: for grassing (2:3:2(22)+Zn) | D31: ton | E31: 10 | G31: =ROUND(E31*(ROUND(F31,2)),2) -> 0.00
A33: M650.07 | C33: Grassing
A35: M650.07(a) | C35: Grass runners (kikuyu) | D35: m2 | E35: 10 | G35: 0.00
A37: M650.07(b) | C37: Sodding
A39: M650.07(b)(i) | C39: Nursery sods (kikuyu) | D39: m2 | E39: 10 | G39: 0.00
A41: M650.07(b)(ii) | C41: Veld sods | D41: m2 | E41: 10 | G41: 0.00
A43: M650.07(c) | C43: Hydro seeding and hand sowing
A45: M650.07(c)(i) | C45: Providing an approved seed mixture for hydro
C46: seeding or hand sowing | D46: kg | E46: 10 | G46: =ROUND(E46*(ROUND(F46,2)),2) -> 0.00
A48: M650.07(c)(ii) | C48: Hydro seeding | D48: ha | E48: 10 | G48: 0.00
A50: M650.07(c)(iii) | C50: Hand sowing (labour-intensive) | D50: m2 | E50: 10 | G50: 0.00
G52: =IF(OR(AND(E52="Prov",F52="Sum"),(F52="PC Sum")),". . . . . . . . .00",IF(ISERR(E52*F52),"",IF(E52*F52=0,"",ROUND(E52*F52,2)))) -> 
A70: =A8 -> M650 | C70: TOTAL CARRIED TO SUMMARY | G70: =SUM(G7:G68) -> 0.00
D73: `

Sheet Part B - M9100 Toll
A1: ='Part A - Mng M0200 Toll'!A1 -> CONTRACT NRA X.002-162-2023/1 TOLL
A2: ='Part A - Mng M0200 Toll'!A2 -> SCHEDULE A: ROUTINE ROAD MAINTENNACE OF GAUTENG JOHANNESBURG FREEWAYS | G2: SECTION M9100
A3: PART B : OPERATIONAL
A5: ITEM NO | C5: DESCRIPTION | D5: UNIT | E5: QUANTITY | F5: RATE | G5: AMOUNT
A8: M910 | C8: DAYWORKS SCHEDULE
A10: M910.01 | C10: Labour during normal working hours
A12: M910.01(a) | C12: Unskilled | D12: hour | E12: 40 | G12: =ROUND(E12*(ROUND(F12,2)),2) -> 0.00
A14: M910.01(b) | C14: Semi-skilled | D14: hour | E14: 20 | G14: =ROUND(E14*(ROUND(F14,2)),2) -> 0.00
A16: M910.01(c) | C16: Skilled | D16: hour | E16: 20 | G16: =ROUND(E16*(ROUND(F16,2)),2) -> 0.00
A18: M910.01(d) | C18: Team Leader (Ganger) | D18: hour | E18: 10 | G18: =ROUND(E18*(ROUND(F18,2)),2) -> 0.00
A20: M910.01(e) | C20: Flagmen | D20: hour | E20: 50 | G20: =ROUND(E20*(ROUND(F20,2)),2) -> 0.00
A22: M910.02 | C22: Labour outside normal working hours
A24: M910.02(a) | C24: Outside normal working hours and Saturdays
A26: M910.02(a)(i) | C26: Unskilled | D26: hour | E26: 40 | G26: =ROUND(E26*(ROUND(F26,2)),2) -> 0.00
A28: M910.02(a)(ii) | C28: Semi-skilled | D28: hour | E28: 20 | G28: =ROUND(E28*(ROUND(F28,2)),2) -> 0.00
A30: M910.02(a)(iii) | C30: Skilled | D30: hour | E30: 20 | G30: =ROUND(E30*(ROUND(F30,2)),2) -> 0.00
A32: M910.02(a)(iv) | C32: Team Leader (Ganger) | D32: hour | E32: 10 | G32: =ROUND(E32*(ROUND(F32,2)),2) -> 0.00
A34: M910.02(a)(v) | C34: Flagmen | D34: hour | E34: 50 | G34: =ROUND(E34*(ROUND(F34,2)),2) -> 0.00
A36: M910.02(b) | C36: Sundays and public holidays
A38: M910.02(b)(i) | C38: Unskilled | D38: hour | E38: 200 | G38: =ROUND(E38*(ROUND(F38,2)),2) -> 0.00
A40: M910.02(b)(ii) | C40: Semi-skilled | D40: hour | E40: 80 | G40: =ROUND(E40*(ROUND(F40,2)),2) -> 0.00
A42: M910.02(b)(iii) | C42: Skilled | D42: hour | E42: 80 | G42: =ROUND(E42*(ROUND(F42,2)),2) -> 0.00
A44: M910.02(b)(iv) | C44: Team Leader (Ganger) | D44: hour | E44: 20 | G44: =ROUND(E44*(ROUND(F44,2)),2) -> 0.00
A46: M910.02(b)(v) | C46: Flagmen | D46: hour | E46: 200 | G46: =ROUND(E46*(ROUND(F46,2)),2) -> 0.00
A48: M910.03 | C48: Equipment and Transport
A50: M910.03(a) | C50: Tipper Trucks
A52: M910.03(a)(i) | C52: 3 to 5 ton capacity | D52: hour | E52: 20 | G52: =ROUND(E52*(ROUND(F52,2)),2) -> 0.00
A54: M910.03(a)(ii) | C54: More than 5 ton capacity | D54: hour | E54: 20 | G54: =ROUND(E54*(ROUND(F54,2)),2) -> 0.00
A56: M910.03(b) | C56: Loader (0,5 m3) bucket | D56: hour | E56: 50 | G56: =ROUND(E56*(ROUND(F56,2)),2) -> 0.00
A58: M910.03(c) | C58: Grader(CAT 140G or similar) | D58: hour | E58: 20 | G58: =ROUND(E58*(ROUND(F58,2)),2) -> 0.00
A71: M9100 | C71: CARRIED FORWARD | G71: =SUM(G7:G69) -> 0.00
A72: =$A$1 -> CONTRACT NRA X.002-162-2023/1 TOLL
A73: =$A$2 -> SCHEDULE A: ROUTINE ROAD MAINTENNACE OF GAUTENG JOHANNESBURG FREEWAYS | D73: ` | G73: =+G2 -> SECTION M9100
A74: =$A$3 -> PART B : OPERATIONAL
A76: ITEM NO | C76: DESCRIPTION | D76: UNIT | E76: QUANTITY | F76: RATE | G76: AMOUNT
C79: BROUGHT FORWARD | G79: =G71 -> 0.00
A81: M910.03(d) | C81: Compactor (Bomag BW 90 or similar) | D81: hour | E81: 50 | G81: =ROUND(E81*(ROUND(F81,2)),2) -> 0.00
A83: M910.03(e) | C83: Water truck (5 000 l) | D83: hour | E83: 50 | G83: =ROUND(E83*(ROUND(F83,2)),2) -> 0.00
A85: M910.03(h) | C85: Suitable truck/bus for transporting labourers (20) | D85: hour | E85: 50 | G85: =ROUND(E85*(ROUND(F85,2)),2) -> 0.00
A87: M910.03(i) | C87: Safety vehicle for pre-marking purposes | D87: hour | E87: 50 | G87: =ROUND(E87*(ROUND(F87,2)),2) -> 0.00
A89: M910.03(j) | C89: Compressor (air) including hoses and
C90: tools (150 to 200) | D90: hour | E90: 50 | G90: =ROUND(E90*(ROUND(F90,2)),2) -> 0.00
A92: M910.03(k) | C92: Dewatering pump including generators and
C93: accessories (100mm, dirty water) | D93: hour | E93: 50 | G93: =ROUND(E93*(ROUND(F93,2)),2) -> 0.00
A95: M910.03(l) | C95: Mobile electric welding sets and accessories (350amp) | D95: hour | E95: 50 | G95: =ROUND(E95*(ROUND(F95,2)),2) -> 0.00
A97: M910.03(m) | C97: Cutting torch with mobile electric and oxy
C98: acetylene installation | D98: hour | E98: 50 | G98: =ROUND(E98*(ROUND(F98,2)),2) -> 0.00
A100: M910.03(n) | C100: Mobile concrete mixer (500 l) | D100: hour | E100: 20 | G100: =ROUND(E100*(ROUND(F100,2)),2) -> 0.00
A102: M910.03(o) | C102: Flat bed truck (7 ton) | D102: hour | E102: 50 | G102: =ROUND(E102*(ROUND(F102,2)),2) -> 0.00
A104: M910.03(p) | C104: Light delivery vehicle (LDV) | D104: hour | E104: 50 | G104: =ROUND(E104*(ROUND(F104,2)),2) -> 0.00
A106: M910.03(q) | C106: Centremount cranes (6 ton) | D106: hour | E106: 30 | G106: =ROUND(E106*(ROUND(F106,2)),2) -> 0.00
A108: M910.03(r) | C108: Portable generator set (6.5 KVa) | D108: hour | E108: 50 | G108: =ROUND(E108*(ROUND(F108,2)),2) -> 0.00
A110: M910.03(s) | C110: TLB | D110: hour | E110: 50 | G110: =ROUND(E110*(ROUND(F110,2)),2) -> 0.00
A112: M910.03(t) | C112: Bobcat | D112: hour | E112: 50 | G112: =ROUND(E112*(ROUND(F112,2)),2) -> 0.00
A114: M910.03(v) | C114: Excavator (18-22 ton tracked) | D114: hour | E114: 50 | G114: =ROUND(E114*(ROUND(F114,2)),2) -> 0.00
A116: M910.03(w) | C116: Sky-jack 5 m | D116: hour | E116: 30 | G116: =ROUND(E116*(ROUND(F116,2)),2) -> 0.00
A118: M910.03(x) | C118: Establishment of loader (bucket 0,5 cubic metre) to site | D118: No | E118: 5 | G118: =ROUND(E118*(ROUND(F118,2)),2) -> 0.00
A120: M910.03(y) | C120: Establishment of Grader (CAT 140 G or similar) | D120: No | E120: 5 | G120: =ROUND(E120*(ROUND(F120,2)),2) -> 0.00
A122: M910.03(z) | C122: Establishment of Excavator (18-22 ton tracked) | D122: No | E122: 5 | G122: =ROUND(E122*(ROUND(F122,2)),2) -> 0.00
A142: M9100 | C142: CARRIED FORWARD | G142: =SUM(G78:G140) -> 0.00
A143: =$A$1 -> CONTRACT NRA X.002-162-2023/1 TOLL
A144: =$A$2 -> SCHEDULE A: ROUTINE ROAD MAINTENNACE OF GAUTENG JOHANNESBURG FREEWAYS | G144: =+G73 -> SECTION M9100
A145: =$A$3 -> PART B : OPERATIONAL
A147: ITEM NO | C147: DESCRIPTION | D147: UNIT | E147: QUANTITY | F147: RATE | G147: AMOUNT
C150: BROUGHT FORWARD | G150: =G142 -> 0.00
A152: M910.04 | C152: Procurement of materials
A154: M910.04(a) | C154: Procurement of materials | D154: Prov Sum | E154: 1 | F154: 1,000,000.00 | G154: =ROUND(E154*(ROUND(F154,2)),2) -> 1,000,000.00
A156: M910.04(b) | C156: The Contractors overhead charges and profit in
C157: respect of sub-item M910.04 (a) | D157: % | E157: =G154 -> 1,000,000 | G157: =ROUND(E157*(ROUND(F157,2)),2) -> 0.00
A159: M910.05 | C159: Extra over item M910.03 for establishment,
C160: within 24 hours of
A162: M910.05(a) | C162: Tipper Trucks | D162: No | E162: 1 | G162: =ROUND(E162*(ROUND(F162,2)),2) -> 0.00
A164: M910.05(a)(i) | C164: 3 to 5 ton capacity | D164: No | E164: 1 | G164: =ROUND(E164*(ROUND(F164,2)),2) -> 0.00
A166: M910.05(a)(ii) | C166: More than 5 ton capacity | D166: No | E166: 1 | G166: =ROUND(E166*(ROUND(F166,2)),2) -> 0.00
A168: M910.05(b) | C168: Dewatering pump including generators and
C169: accessories (specify size) | D169: No | E169: 1 | G169: =ROUND(E169*(ROUND(F169,2)),2) -> 0.00
A171: M910.05(c) | C171: Water truck (5 000 l) | D171: No | E171: 1 | G171: =ROUND(E171*(ROUND(F171,2)),2) -> 0.00
A173: M910.05(d) | C173: TLB | D173: No | E173: 1 | G173: =ROUND(E173*(ROUND(F173,2)),2) -> 0.00
A175: M910.05(e) | C175: Bobcat | D175: No | E175: 1 | G175: =ROUND(E175*(ROUND(F175,2)),2) -> 0.00
A177: M910.06 | C177: Repairs to the road network
A179: M910.06(a) | C179: Repairs to the road network | D179: Prov Sum | E179: 1 | F179: 1,500,000.00 | G179: =ROUND(E179*(ROUND(F179,2)),2) -> 1,500,000.00
A181: M910.06(b) | C181: The Contractor’s overhead charges and profit in
C182: respect of sub-item M910.06(a) | D182: % | E182: =G179 -> 1,500,000 | G182: =ROUND(E182*(ROUND(F182,2)),2) -> 0.00
A184: M910.07 | C184: Minor road infrastructure
A186: M910.07(a) | C186: Minor Infrastructure | D186: Prov Sum | E186: 1 | F186: 500,000.00 | G186: =ROUND(E186*(ROUND(F186,2)),2) -> 500,000.00
A188: M910.07(b) | C188: The Contractors overhead charges and profit in
C189: respect of subitem M910.07(a) | D189: % | E189: =G186 -> 500,000 | G189: =ROUND(E189*(ROUND(F189,2)),2) -> 0.00
A213: M9100 | C213: TOTAL CARRIED TO SUMMARY | G213: =SUM(G149:G211) -> 3 000 000.00

Sheet Part C - M9200 Toll
A1: ='Part A - Mng M0200 Toll'!A1 -> CONTRACT NRA X.002-162-2023/1 TOLL
A2: ='Part A - Mng M0200 Toll'!A2 -> SCHEDULE A: ROUTINE ROAD MAINTENNACE OF GAUTENG JOHANNESBURG FREEWAYS | G2: SECTION M9200
A3: PART C : TARGETED ENTERPRISE
A5: ITEM NO | C5: DESCRIPTION | D5: UNIT | E5: QUANTITY | F5: RATE | G5: AMOUNT
A8: M920 | C8: TARGETED ENTERPISE
G9: =IF(OR(AND(E9="Prov",F9="Sum"),(F9="PC Sum")),". . . . . . . . .00",IF(ISERR(E9*F9),"",IF(E9*F9=0,"",ROUND(E9*F9,2)))) -> 
A10: M920.01 | C10: Additional costs for sub-contractors
A12: M920.01(a) | C12: Establishment on site and general obligations
C13: of sub-contractors | D13: Prov Sum | E13: 1 | F13: 19 718 400.00 | G13: 19,718,400.00
A15: M920.02 | C15: Construction Works by Targeted Enterprise
A17: M920.02(a) | C17: Payment associated with the construction works
C18: carried out by Targeted Enterprise sub-contractors
C19: of all levels of contractor grading designation
C20: appointed in terms of Part D | D20: PrimeCost | E20: 1.00 | F20: 140,580,000.00 | G20: 140,580,000.00
A22: M920.02(b) | C22: Handling cost and profit in respect of payments
C23: Associated with subitem M920.02(a) | D23: % | E23: =G20 -> 140 580 000
A67: =A8 -> M920 | C67: TOTAL CARRIED TO SUMMARY | G67: =SUM(G7:G65) -> 160 298 400.00
D73: `

Sheet Summary Toll
A1: SUMMARY OF BILL OF QUANTITIES
A2: ='Part A - Mng M0200 Toll'!A1 -> CONTRACT NRA X.002-162-2023/1 TOLL
A3: ='Part A - Mng M0200 Toll'!A2 -> SCHEDULE A: ROUTINE ROAD MAINTENNACE OF GAUTENG JOHANNESBURG FREEWAYS
A5: SECTION | B5: DESCRIPTION | D5: AMOUNT
B7: PART A : MANAGEMENT SECTION
A8: M0300 | B8: CONTRACTOR'S ESTABLISHMENT ON SITE AND GENERAL OBLIGATIONS | D8: ='Part A - Mng M0300 Toll'!G64 -> 2 250 000.00
A9: M0200 | B9: GENERAL REQUIREMENTS AND PROVISION | D9: ='Part A - Mng M0200 Toll'!G140 -> 1 735 000.00
A10: M0400 | B10: ROUTE PATROL SERVICES | D10: ='Part A - Mng M0400 Toll'!G66 -> 1 000 000.00
A11: M0500 | B11: ACCOMMODATION OF TRAFFIC | D11: ='Part A - Mng M0500 Toll'!G73 -> 0.00
A12: M0600 | B12: SKILLS DEVELOPMENT | D12: ='Part A - Mng M0600 Toll'!G54 -> 853 582.00
A13: M1100 | B13: PAVEMENT LAYERS REPAIR | D13: ='Part A - Mng M1100 Toll'!G67 -> 0.00
A14: M1200 | B14: REPAIR OF POTHOLES, EDGE BREAKS AND SURFACE FAILURES | D14: ='Part A - Mng M1200 Toll'!G66 -> 0.00
A15: M1600 | B15: SURFACE TREATMENT OF SURFACED ROADS | D15: ='Part A - Mng M1600 Toll'!G68 -> 1 000 000.00
A16: M7100 | B16: EMERGENCY STANDBY TEAM | D16: ='Part A - Mng M7100 Toll'!G66 -> 0.00
A17: M7200 | B17: ALL-EMERGENCY NORMALISATION | D17: ='Part A - Mng M7200 Toll'!G69 -> 2 000 000.00
A18: M8100 | B18: MINOR REPAIRS TO STRUCTURES | D18: ='Part A - Mng M8100 Toll'!G70 -> 10 000 000.00
A20: SUB-TOTAL PART A : MANAGEMENT SECTION | D20: =SUM(D8:D19) -> 18 838 582.00
B21: PART B : OPERATIONAL SECTION
A22: M1300 | B22: CRACK SEALING | D22: =' Part B - M1300 Toll'!G67 -> 0.00
A23: M1500 | B23: CRACK AND JOINT SEALING OF CONCRETE PAVEMENTS | D23: =' Part B - M1500 Toll'!G73 -> 300 000.00
A24: M1700 | B24: REPAIR OF SLOPE FAILURES AND WASHAWAYS | D24: ='Part B - M1700 Toll'!G69 -> 150 000.00
A25: M2100 | B25: REPAIR AND MAINTENANCE OF INLET AND OUTLET STRUCTURES | D25: ='Part B - M2100 Toll'!G135 -> 1 030 000.00
A26: M2200 | B26: SUBSOIL DRAIN INSTALLATION AND MAINTENANCE | D26: ='Part B - M2200 Toll'!G69 -> 0.00
A27: M2300 | B27: CLEANING OF WATERWAY STRUCTURES | D27: ='Part B - M2300 Toll'!G70 -> 0.00
A28: M2400 | B28: CLEANING OF PREFABRICATED CULVERTS | D28: ='Part B - M2400 Toll'!G71 -> 0.00
A29: M2500 | B29: CLEANING OF CONCRETE DRAINS AND CHANNELS | D29: ='Part B - M2500 Toll'!G65 -> 0.00
A30: M2600 | B30: CLEANING AND MAINTENANCE OF EXISTING EARTH CHANNELS | D30: ='Part B - M2600 Toll'!G66 -> 0.00
A31: M2700 | B31: EDGE BUILD-UP REMOVAL | D31: ='Part B - M2700 Toll'!G67 -> 0.00
A32: M2800 | B32: CONCRETE CHANNEL CONSTRUCTION AND MAINT. OF EXISTING CHANNELS | D32: ='Part B - M2800 Toll'!G133 -> 0.00
A33: M3100 | B33: FENCING | D33: ='Part B - M3100 Toll'!G204 -> 400 000.00
A34: M3200 | B34: COLLECTION AND REMOVAL OF DEBRIS AND LITTER | D34: ='Part B - M3200 Toll'!G139 -> 0.00
A35: M3300 | B35: SHOULDER REPAIRS | D35: =' Part B - M3300 Toll'!G74 -> 0.00
A36: M3500 | B36: STABILISATION OF CUTTINGS | D36: ='Part B - M3500 Toll'!G74 -> 100 000.00
A37: M4100 | B37: ERECTION AND REPAIR OF PERMANENT ROAD TRAFFIC SIGNS | D37: ='Part B - M4100 Toll'!G145 -> 1 000 000.00
A38: M4200 | B38: ROAD SIGN CLEANING AND REMOVAL OF ILLEGAL SIGNS | D38: ='Part B - M4200 Toll'!G67 -> 250 000.00
A39: M4300 | B39: ROADSTUDS | D39: ='Part B - M4300 Toll'!G66 -> 50 000.00
A40: M4400 | B40: GUARDRAIL ERECTION AND MAINTENANCE | D40: ='Part B - M4400 Toll'!G299 -> 700 000.00
A41: M4500 | B41: DAZZLE SCREEN ERECTION AND REPLACEMENT | D41: ='Part B - M4500 Toll'!G71 -> 0.00
A42: M4600 | B42: ROAD MARKINGS | D42: ='Part B - M4600 Toll'!G73 -> 500 000.00
A43: M5100 | B43: GENERAL EROSION PROTECTION | D43: ='Part B - M5100 Toll'!G74 -> 200 000.00
A44: M5200 | B44: GABION PROTECTION | D44: ='Part B - M5200 Toll'!G70 -> 0.00
A45: M6100 | B45: CONTROLLING VEGETATION GROWTH: MOWING AND CUTTING | D45: ='Part B - M6100 Toll'!G69 -> 0.00
A46: M6200 | B46: CHEMICAL CONTROL OF VEG. AND ERADICATION OF UNDESIRABLE VEGETATION | D46: ='Part B - M6200 Toll'!G75 -> 0.00
A47: M6300 | B47: REMOVAL OF UNDESIRABLE VEGETATION: PHYSICAL ERADICATION | D47: ='Part B - M6300 Toll'!G70 -> 0.00
A48: M6400 | B48: MAINTENANCE AND ESTABLISHMENT OF PLANTS, TREES AND SHRUBS | D48: ='Part B - M6400 Toll'!G69 -> 50 000.00
A49: M6500 | B49: ESTABLISHMENT OF GRASS | D49: ='Part B - M6500 Toll'!G70 -> 0.00
A50: M9100 | B50: DAYWORKS SCHEDULE | D50: ='Part B - M9100 Toll'!G213 -> 3 000 000.00
A52: SUB-TOTAL PART B : OPERATIONAL SECTION | D52: =SUM(D22:D49) -> 4 730 000.00
B53: PART C : TARGETED ENTERPRISE
A54: M9200 | B54: TARGETED ENTERPRISE | D54: ='Part C - M9200 Toll'!G67 -> 160 298 400.00
A56: SUB-TOTAL PART C : TARGETED ENTERPRISE | D56: =SUM(D54) -> 160 298 400.00
A58: TOTAL | D58: =D20+D52+D56 -> 183 866 982.00

Sheet SUMMARY OF PRICING SCHEDULE T
B2: C2.3 | C2: SUMMARY OF PRICING SCHEDULE
B4: CONTRACT SANRAL NRA X.002-162-2023/1 (TOLL) & N.017-010-2023/1 (NON-TOLL) FOR THE ROUTINE ROAD MAINTENANCE OF NATIONAL ROUTE 1 SECTION 19, N1 SECTION 20, N1 SECTION 21, N3 SECTION 12, N12 SECTION 18 & N17 SECTION 1 (JOHANNESBURG RRM)
B7: PART A: | C7: MANAGEMENT CONTRACTOR | G7: ='Summary Toll'!D20 -> R18,838,582.00
B9: PART B: | C9: OPERATIONS CONTRACTOR | G9: ='Summary Toll'!D52 -> R4,730,000.00
B11: PART C: | C11: TARGETED ENTERPRISE | G11: ='Summary Toll'!D56 -> R160,298,400.00
B13: SUB TOTAL | G13: =G7+G9+G11 -> R183,866,982.00

Sheet Part A - Mng M0300 Non-toll
A1: CONTRACT NRA N.017-010-2023/1 NON- TOLL
A2: SCHEDULE A: ROUTINE ROAD MAINTENNACE OF GAUTENG JOHANNESBURG FREEWAYS | G2: SECTION M0300
A3: PART A : MANAGEMENT
A5: ITEM NO | C5: DESCRIPTION | D5: UNIT | E5: QUANTITY | F5: RATE | G5: AMOUNT
A8: M0300 | C8: CONTRACTOR'S ESTABLISHMENT ON SITE
C9: AND GENERAL OBLIGATIONS
G10: =IF(OR(AND(E10="Prov",F10="Sum"),(F10="PC Sum")),". . . . . . . . .00",IF(ISERR(E10*F10),"",IF(E10*F10=0,"",ROUND(E10*F10,2)))) -> 
A11: M030.01 | C11: Fixed obligations | D11: LS | E11: 1 | G11: =E11*F11 -> 0.00
A13: M030.02 | C13: Value related obligations | D13: LS | E13: 1 | G13: =E13*F13 -> 0.00
A15: M030.03 | C15: Time related obligations
A17: M030.03(a) | C17: General obligations | D17: Month | E17: 60 | G17: =E17*F17 -> 0.00
A19: M030.03(b) | C19: Occupational health and safety obligations | D19: Month | E19: 60 | G19: =E19*F19 -> 0.00
A21: M030.03(c) | C21: Environmental obligations | D21: Month | E21: 60 | G21: 0.00
A23: M030.03(d) | C23: Reporting obligations | D23: Month | E23: 60 | G23: 0.00
A25: M030.05 | C25: Tenders Process for Targeted Enterprises
A27: M030.05(a) | C27: Contractor's charge for the management for the
C28: and execution of the Targeted Enterprise
C29: procurement process:
A31: M030.05(a)i | C31: Procurement process for the tatality of all tenders
C32: concluded for the appointment of Targeted
C33: Enterprise subcontractors of CIDB 1 CE and
C34: 2 CE contractor grading | D34: No | E34: 3 | G34: =F34*E34 -> 0.00
A36: M030.05(a)ii | C36: Procurement process for the tatality of all tenders
C37: concluded for the appointment of Targeted
C38: Enterprise subcontractors of CIDB 3 CE and
C39: 4 CE contractor grading | D39: No | E39: 2 | G39: =F39*E39 -> 0.00
A41: M030.05(a)iii | C41: Procurement process for the tatality of all tenders
C42: concluded for the appointment of Targeted
C43: Enterprise subcontractors of CIDB 5 CE and
C44: higher contractor grading | D44: No | E44: 2 | G44: 0.00
A46: M030.06 | C46: Responsibility of the contractor towards
C47: Targeted Enterprises
A49: M030.06(a) | C49: Contractor's establishment, management,j
C50: management support, assistance, coaching,
C51: guidance, mentoring and supervision of
C52: Targeted Enterprises | D52: Month | E52: 60 | G52: =F52*E52 -> 0.00
A54: M030.08 | C54: Preparing and maintaining a Portfolio of Evidence
C55: for each subcontractors
A57: M030.08(a) | C57: Preparing and maintaining a Portfolio of Evidence
C58: for each subcontractors | D58: Prov Sum | E58: 1 | F58: 250000.00 | G58: 250,000.00
A60: M030.08(b) | C60: The Contractors overhead charges and profit in
C61: respect of sub-item M030.08(a) | D61: % | E61: =G58 -> 250000 | G61: 0.00
A64: =A8 -> M0300 | C64: TOTAL CARRIED TO SUMMARY | G64: =SUM(G7:G62) -> 250 000.00

Sheet Part A - Mng M0200 Non-toll
A1: ='Part A - Mng M0300 Non-toll'!A1 -> CONTRACT NRA N.017-010-2023/1 NON- TOLL
A2: ='Part A - Mng M0300 Non-toll'!A2 -> SCHEDULE A: ROUTINE ROAD MAINTENNACE OF GAUTENG JOHANNESBURG FREEWAYS | G2: SECTION M0200
A3: ='Part A - Mng M0300 Non-toll'!A3 -> PART A : MANAGEMENT
A5: ITEM NO | C5: DESCRIPTION | D5: UNIT | E5: QUANTITY | F5: RATE | G5: AMOUNT
A8: M0200 | C8: GENERAL REQUIREMENTS AND PROVISIONS
G9: =IF(OR(AND(E9="Prov",F9="Sum"),(F9="PC Sum")),". . . . . . . . .00",IF(ISERR(E9*F9),"",IF(E9*F9=0,"",ROUND(E9*F9,2)))) -> 
A10: M020.01 | C10: Information signboards
B12: (a) | C12: Type 1 (large) | D12: No | E12: 2
B14: (b) | C14: Type 2 (small) | D14: No | E14: 2
A16: M020.02 | C16: Compensation to landowners
A18: M020.02(a) | C18: Compensation for landowners | D18: Prov Sum | E18: 1 | F18: 100 000.00 | G18: =F18*E18 -> 100,000.00
A20: M020.02(b) | C20: The contractors overhead charges and profit in
C21: respect of sub-item M020.02(a) above | D21: % | E21: =G18 -> 100 000 | G21: =F21*E21 -> 0.00
A23: M020.03 | C23: Advertising cost
B25: (a) | C25: Advertising cost | D25: Prov Sum | E25: 1 | F25: 20 000.00 | G25: 20,000.00
B27: (b) | C27: The Contractor's overhead charges and profit
C28: in respect of sub-item PM020.03 (a) | D28: % | E28: =G25 -> 20 000.00 | G28: =IF(OR(AND(E28="Prov",F28="Sum"),(F28="PC Sum")),". . . . . . . . .00",IF(ISERR(E28*F28),"",IF(E28*F28=0,"",ROUND(E28*F28,2)))) -> 
A30: M020.04 | C30: Stakeholder and Community Liaison and Social
C31: Facilitation
A33: M020.04(a) | C33: Cost of Liaison, Social Facilitation and PLC Support | D33: Prov Sum | E33: 1 | F33: 100 000.00 | G33: =F33*E33 -> 100,000.00
A35: M020.04(b) | C35: Handling cost and profit in respect of
C36: of sub-item PM020.04 (a) | D36: % | E36: =G33 -> 100,000.00 | G36: =F36*E36 -> 0.00
A38: M020.05 | C38: Target Group Particiipation
A40: M020.05(a) | C40: Contract Participation Performance Bonus | D40: Prov Sum | E40: 1 | F40: 100 000.00 | G40: =F40*E40 -> 100,000.00
A43: M020.06 | C43: Training Costs:
A45: M020.06(a)i | C45: Accredited generic skills training | D45: Prime Cost | E45: 1.00 | F45: 100 000.00 | G45: 100,000.00
A47: M020.06(a)ii | C47: Community skills training | D47: Prime Cost | E47: 1.00 | F47: 100,000 | G47: 100,000.00
A49: M020.06(a)iii | C49: Handling cost and profit in respect of sub-item | G49: =IF(OR(AND(E49="Prov",F49="Sum"),(F49="PC Sum")),". . . . . . . . .00",IF(ISERR(E49*F49),"",IF(E49*F49=0,"",ROUND(E49*F49,2)))) -> 
C50: M020.06(a)I and M020.06(a)ii | D50: % | E50: =G45+G47 -> 200,000.00
A52: M020.06(b) | C52: Other costs during training | D52: Prov Sum | E52: 1 | F52: 50 000.00 | G52: 50,000.00
A54: M020.06(c) | C54: Training Venue | D54: Lump Sum | E54: 1
A56: M020.07 | C56: Wellness Program
A58: M020.07(a) | C58: Office Facilities for Wellness Champion | D58: Month | E58: 60
A60: M020.07(b) | C60: Wellness Champion | D60: Prov Sum | E60: 1 | F60: 100 000.00 | G60: 100,000.00
A62: M020.07(c) | C62: Venue for ACT process | D62: Prov Sum | E62: 1 | F62: 15 000.00 | G62: 15,000.00
A64: M020.07(d) | C64: Transport for workers and their immediate families
C65: for ACT process | D65: Prov Sum | E65: 1 | F65: 50000.00 | G65: 50,000.00
A69: =A8 -> M0200 | C69: CARRIED FORWARD | G69: =SUM(G7:G67) -> 735 000.00
A71: =A1 -> CONTRACT NRA N.017-010-2023/1 NON- TOLL
A72: =A2 -> SCHEDULE A: ROUTINE ROAD MAINTENNACE OF GAUTENG JOHANNESBURG FREEWAYS | G72: =G2 -> SECTION M0200
A73: =$A$3 -> PART A : MANAGEMENT
A75: ITEM NO | C75: DESCRIPTION | D75: UNIT | E75: QUANTITY | F75: RATE | G75: AMOUNT
A78: =A69 -> M0200 | C78: BROUGHT FORWARD | G78: =G69 -> 735 000.00
G80: =IF(OR(AND(E80="Prov",F80="Sum"),(F80="PC Sum")),". . . . . . . . .00",IF(ISERR(E80*F80),"",IF(E80*F80=0,"",ROUND(E80*F80,2)))) -> 
A81: M020.07(e) | C81: Remuneration for workers during ACT process | D81: Prov Sum | E81: 1 | F81: 50000 | G81: 50,000.00
A83: M020.07(f) | C83: The contractors overhead charges and profit in
C84: respect of sub-item M020.07(b) to (e) | D84: % | E84: =G60+G62+G65+G81 -> 215,000.00
A86: M020.08 | C86: Transport for Wellness Champion | G86: =IF(OR(AND(E86="Prov",F86="Sum"),(F86="PC Sum")),". . . . . . . . .00",IF(ISERR(E86*F86),"",IF(E86*F86=0,"",ROUND(E86*F86,2)))) -> 
A88: M020.08(a) | C88: Transport for Wellness Champion | D88: Prov Sum | E88: 1 | F88: 50,000.00 | G88: 50,000.00
A90: M020.08(b) | C90: The contractors overhead charges and profit in
C91: respect of sub-item M020.08(a) | D91: % | E91: =G88 -> 50,000.00
A93: M020.09 | C93: Provision of Security of Services
A95: M020.09(a) | C95: Provision of grade C security guards | D95: Person/day | E95: 50
A97: M020.09(b) | C97: Provision of armed security guards | D97: Person/day | E97: 20
A99: M020.09(c) | C99: Provision of response vehicle | D99: h | E99: 50
A140: =A78 -> M0200 | C140: TOTAL CARRIED TO SUMMARY | G140: =SUM(G77:G138) -> 835 000.00

Sheet Part A - Mng M0400 Non-toll
A1: ='Part A - Mng M0200 Non-toll'!A1 -> CONTRACT NRA N.017-010-2023/1 NON- TOLL
A2: ='Part A - Mng M0200 Non-toll'!A2 -> SCHEDULE A: ROUTINE ROAD MAINTENNACE OF GAUTENG JOHANNESBURG FREEWAYS | G2: SECTION M0400
A3: ='Part A - Mng M0300 Non-toll'!A3 -> PART A : MANAGEMENT
A5: ITEM NO | C5: DESCRIPTION | D5: UNIT | E5: QUANTITY | F5: RATE | G5: AMOUNT
G7: =IF(OR(AND(E7="Prov",F7="Sum"),(F7="PC Sum")),". . . . . . . . .00",IF(ISERR(E7*F7),"",IF(E7*F7=0,"",ROUND(E7*F7,2)))) -> 
A8: M0400 | C8: ROUTE PATROL SERVICES
A10: M040.01 | C10: Route Patrol | D10: Month | E10: 60
A12: M040.03 | C12: Procurement and implementation of visual
C13: capturing devices for route patrol services
A15: M040.03(a) | C15: Procurement and implementation of visual | G15: =IF(OR(AND(E15="Prov",F15="Sum"),(F15="PC Sum")),". . . . . . . . .00",IF(ISERR(E15*F15),"",IF(E15*F15=0,"",ROUND(E15*F15,2)))) -> 
C16: capturing devices for route patrol services | D16: Prov Sum | E16: 1 | F16: 250 000.00 | G16: 250,000.00
A18: M040.03(b) | C18: The contractors overhead charges and profit in
C19: respect of sub-item M040.03(a) | D19: % | E19: =G16 -> 250 000
A66: =A8 -> M0400 | C66: TOTAL CARRIED TO SUMMARY | G66: =SUM(G7:G64) -> 250 000.00

Sheet Part A - Mng M0500 Non-toll
A1: ='Part A - Mng M0200 Non-toll'!A1 -> CONTRACT NRA N.017-010-2023/1 NON- TOLL
A2: ='Part A - Mng M0200 Non-toll'!A2 -> SCHEDULE A: ROUTINE ROAD MAINTENNACE OF GAUTENG JOHANNESBURG FREEWAYS | G2: SECTION M0500
A3: ='Part A - Mng M0300 Non-toll'!A3 -> PART A : MANAGEMENT
A5: ITEM NO | C5: DESCRIPTION | D5: UNIT | E5: QUANTITY | F5: RATE | G5: AMOUNT
A8: M0500 | C8: ACCOMMODATION OF TRAFFIC | G8: =IF(OR(AND(E8="Prov",F8="Sum"),(F8="PC Sum")),". . . . . . . . .00",IF(ISERR(E8*F8),"",IF(E8*F8=0,"",ROUND(E8*F8,2)))) -> 
A10: M050.01 | C10: Provision of temporary traffic control facilities
A12: M050.01(b) | C12: Road signs: R- and TR-series
A14: M050.01(b)i | C14: 1200mm | D14: No | E14: 12
A16: M050.01(b)ii | C16: 900mm | D16: No | E16: 12
A18: M050.01(c) | C18: Road signs: TW-series
A20: M050.01(c)i | C20: 1500mm | D20: No | E20: 12
A22: M050.01(c)ii | C22: 1200mm | D22: No | E22: 12
A24: M050.01(d) | C24: Rectangular road signs: TGS-, TIN- and TW-
C25: series (excluding delineators and barricades) | D25: m² | E25: 50 | G25: =IF(OR(AND(E25="Prov",F25="Sum"),(F25="PC Sum")),". . . . . . . . .00",IF(ISERR(E25*F25),"",IF(E25*F25=0,"",ROUND(E25*F25,2)))) -> 
A27: M050.01(e) | C27: Delineators
A29: M050.01(e)i | C29: 1000mm x 250mm | D29: No | E29: 500
A31: M050.01(e)iii | C31: Solid rubber moulded heavy duty bases for (e)i | D31: No | E31: 500
A33: M050.01(f) | C33: Barricades
A35: M050.01(f)i | C35: 2400mm x 400mm | D35: No | E35: 12
A37: M050.01(f)ii | C37: 1800mm x 300mm | D37: No | E37: 12
A39: M050.02 | C39: Accommodation of traffic and maintaining
C40: temporary deviations
A42: M050.02(a) | C42: General provisions | D42: month | E42: 60
A44: M050.02(b) | C44: Work undertaken by contractor | D44: month | E44: 60
A46: M050.02(d) | C46: Traffic Safety Officer | D46: month | E46: 60
A48: M050.03 | C48: Supply and use of truck-mounted attenuators ( One only) | D48: month | E48: 60
A50: M050.04 | C50: Additional lane closures | D50: No | E50: 25
G62: =IF(OR(AND(E62="Prov",F62="Sum"),(F62="PC Sum")),". . . . . . . . .00",IF(ISERR(E62*F62),"",IF(E62*F62=0,"",ROUND(E62*F62,2)))) -> 
A68: =A8 -> M0500 | C68: TOTAL CARRIED TO SUMMARY | G68: =SUM(G7:G66) -> 0.00

Sheet Part A - Mng M0600 Non-toll
A1: ='Part A - Mng M0200 Non-toll'!A1 -> CONTRACT NRA N.017-010-2023/1 NON- TOLL
A2: ='Part A - Mng M0200 Non-toll'!A2 -> SCHEDULE A: ROUTINE ROAD MAINTENNACE OF GAUTENG JOHANNESBURG FREEWAYS | G2: SECTION M0600
A3: ='Part A - Mng M0300 Non-toll'!A3 -> PART A : MANAGEMENT
A5: ITEM NO | C5: DESCRIPTION | D5: UNIT | E5: QUANTITY | F5: RATE | G5: AMOUNT
A8: M0600 | C8: SKILLS DEVELOPMENT | G8: =IF(OR(AND(E8="Prov",F8="Sum"),(F8="PC Sum")),". . . . . . . . .00",IF(ISERR(E8*F8),"",IF(E8*F8=0,"",ROUND(E8*F8,2)))) -> 
A10: M060.01(a) | C10: Contract skills Developemnt Goals (CSDG) | D10: Prime Cost | E10: 1 | F10: 281 872.00 | G10: 281,872.00
A66: =A8 -> M0600 | C66: TOTAL CARRIED TO SUMMARY | G66: =SUM(G7:G64) -> 281 872.00

Sheet Part A - Mng M1100 Non-toll
A1: ='Part A - Mng M0200 Non-toll'!A1 -> CONTRACT NRA N.017-010-2023/1 NON- TOLL
A2: ='Part A - Mng M0200 Non-toll'!A2 -> SCHEDULE A: ROUTINE ROAD MAINTENNACE OF GAUTENG JOHANNESBURG FREEWAYS | G2: SECTION M1100
A3: ='Part A - Mng M0300 Non-toll'!A3 -> PART A : MANAGEMENT
A5: ITEM NO | C5: DESCRIPTION | D5: UNIT | E5: QUANTITY | F5: RATE | G5: AMOUNT
A8: M110 | C8: PAVEMENT LAYERS REPAIR
A10: M110.01 | C10: Removal and excavating material from existing
C11: pavements (except milled material)
A13: M110.01(a) | C13: Area up to 50m2 | D13: m3 | E13: 100 | G13: =ROUND(E13*(ROUND(F13,2)),2) -> 0.00
A15: M110.02 | C15: Milling out material from existing pavements
A17: M110.02(b) | C17: Exceeding 30mm but no 60mm | D17: m3 | E17: 1,000 | G17: =ROUND(E17*(ROUND(F17,2)),2) -> 0.00
A19: M110.02(c) | C19: Exceeding 60mm but not exceeding 150mm | D19: m3 | E19: 100 | G19: =ROUND(E19*(ROUND(F19,2)),2) -> 0.00
A21: M110.02(d) | C21: Exceeding 150mm but not exceeding 250mm | D21: m3 | E21: 100 | G21: =ROUND(E21*(ROUND(F21,2)),2) -> 0.00
A23: M110.02(f) | C23: Establishment of milling machine on site | D23: No | E23: 8 | G23: =ROUND(E23*(ROUND(F23,2)),2) -> 0.00
A25: M110.02(g) | C25: Moving the milling machine on site for distance | D25: =IFERROR(VLOOKUP($B25,[1]Masterlist_4!$A$2:$J$1236,10,FALSE),"") -> 
C26: exceeding 5.0 | D26: No | E26: 8 | G26: =ROUND(E26*(ROUND(F26,2)),2) -> 0.00
A28: M110.03 | C28: Backfilling of base layer ffailures with:
A30: M110.03(c) | C30: Asphalt base (hot mix- continuously
C31: graded 28mm max)
A33: M110.03(c)(i) | C33: Areas up to 50m² | D33: ton | E33: 40 | G33: =ROUND(E33*(ROUND(F33,2)),2) -> 0.00
A35: M110.03(c)(ii) | C35: Areas exceeding 50m² up to 100m² | D35: ton | E35: 590 | G35: =ROUND(E35*(ROUND(F35,2)),2) -> 0.00
A37: M110.03(c)(iii) | C37: Areas exceeding 100m² | D37: ton | E37: 200 | G37: =ROUND(E37*(ROUND(F37,2)),2) -> 0.00
A39: M110.04 | C39: Surfacing of base layer repairs with:
A41: M110.04(a) | C41: Asphalt surfacing (hot mix- continuously graded medium)
A43: M110.04(a)(i) | C43: Areas up to 50m² | D43: ton | E43: 40 | G43: =ROUND(E43*(ROUND(F43,2)),2) -> 0.00
A45: M110.04(a)(ii) | C45: Areas exceeding 50m² up to 100m² | D45: ton | E45: 40 | G45: =ROUND(E45*(ROUND(F45,2)),2) -> 0.00
A47: M110.04(a)(iii) | C47: Areas exceeding 100m² | D47: ton | E47: 40 | G47: =ROUND(E47*(ROUND(F47,2)),2) -> 0.00
A49: M110.05 | C49: Establishment and moving of asphalt paver on site
A51: M110.05(a) | C51: Establishment of asphalt paver | D51: No | E51: 8 | G51: =ROUND(E51*(ROUND(F51,2)),2) -> 0.00
A53: M110.05(b) | C53: Moving the paver on site for distance exceeding 5km | D53: No | E53: 8 | G53: =ROUND(E53*(ROUND(F53,2)),2) -> 0.00
A55: M110.09 | C55: Overhaul of material hauled in excess of 1 km | D55: m3-km | E55: 12,500 | G55: =ROUND(E55*(ROUND(F55,2)),2) -> 0.00
A57: M110.11 | C57: 100mm cores in asphalt paving | D57: No | E57: 50 | G57: =ROUND(E57*(ROUND(F57,2)),2) -> 0.00
G61: =IF(OR(AND(E61="Prov",F61="Sum"),(F61="PC Sum")),". . . . . . . . .00",IF(ISERR(E61*F61),"",IF(E61*F61=0,"",ROUND(E61*F61,2)))) -> 
A67: =A8 -> M110 | C67: TOTAL CARRIED TO SUMMARY | G67: =SUM(G7:G65) -> 0.00

Sheet Part A - Mng M1200 Non-toll
A1: ='Part A - Mng M0200 Non-toll'!A1 -> CONTRACT NRA N.017-010-2023/1 NON- TOLL
A2: ='Part A - Mng M0200 Non-toll'!A2 -> SCHEDULE A: ROUTINE ROAD MAINTENNACE OF GAUTENG JOHANNESBURG FREEWAYS | G2: SECTION M1200
A3: PART A : MANAGEMENT
A5: ITEM NO | C5: DESCRIPTION | D5: UNIT | E5: QUANTITY | F5: RATE | G5: AMOUNT
A8: M120 | C8: REPAIR OF POTHOLES
G9: =IF(OR(AND(E9="Prov",F9="Sum"),(F9="PC Sum")),". . . . . . . . .00",IF(ISERR(E9*F9),"",IF(E9*F9=0,"",ROUND(E9*F9,2)))) -> 
A10: M120.02 | C10: Pothole repair (performance based) | D10: month | E10: 60 | G10: =IF(OR(AND(E10="Prov",F10="Sum"),(F10="PC Sum")),". . . . . . . . .00",IF(ISERR(E10*F10),"",IF(E10*F10=0,"",ROUND(E10*F10,2)))) -> 
A16: M121 | C16: REPAIR OF EDGE BREAKS
A18: M121.02 | C18: Repairing edge breaks using (performance based) | D18: month | E18: 60
A24: PM122 | C24: REPAIR OF SURFACE FAILURES
A26: M122.02 | C26: Surface failure repair (performance based) | D26: month | E26: 60
A66: =A8 -> M120 | C66: TOTAL CARRIED TO SUMMARY | G66: =SUM(G7:G64) -> 0.00

Sheet Part A - Mng M1600 Non-toll
A1: ='Part A - Mng M0200 Non-toll'!A1 -> CONTRACT NRA N.017-010-2023/1 NON- TOLL
A2: ='Part A - Mng M0200 Non-toll'!A2 -> SCHEDULE A: ROUTINE ROAD MAINTENNACE OF GAUTENG JOHANNESBURG FREEWAYS | G2: SECTION M1600
A3: PART B : OPERATIONAL
A5: ITEM NO | C5: DESCRIPTION | D5: UNIT | E5: QUANTITY | F5: RATE | G5: AMOUNT
A8: M1600 | C8: SURFACE TREATMENT - TEXTURE
C9: CORRECTION
G10: =IF(OR(AND(E10="Prov",F10="Sum"),(F10="PC Sum")),". . . . . . . . .00",IF(ISERR(E10*F10),"",IF(E10*F10=0,"",ROUND(E10*F10,2)))) -> 
A11: M160.01 | C11: Application of slurry mixed on site
A13: M160.01(a) | C13: Tack coat using 30% bitumen emulsion | D13: Litre | E13: 10
A15: M160.01(b) | C15: Slurry applied for texture treatment
C16: (Fine slurry Fine grade with 60% stable grade
C17: anionic bitumen emuslion)
A19: M160.01(b)i | C19: Applied by hand | D19: m³ | E19: 10
A20: M160.01(b)ii | C20: Applied by spreader box | D20: m³ | E20: 10
A22: M160.02 | C22: Application of slurry from commercial sources
A24: M160.02(a) | C24: Tack coat using 30% bitumen emulsion | D24: l | E24: 10
A26: M160.02(b) | C26: Slurry applied for texture treatment
C27: (Fine slurry Fine grade with 60% stable grade
C28: anionic bitumen emuslion)
A30: M160.02(b)ii | C30: Applied by spreader box | D30: m³ | E30: 10
A32: M161 | C32: SURFACE TREATMENT -RUT FILLING
A34: M161.01 | C34: Application of slurry for rut filling mixed on site
A36: M161.01(b) | C36: Slurry applied by spreader box with rigid squeegees in one application
C37: for rut filling (Fine Slurry Medium Grade, Modified Cationic Bitumen
C38: Emulsion AC-E1) | D38: m3 | E38: 100 | G38: =IF(OR(AND(E38="Prov",F38="Sum"),(F38="PC Sum")),". . . . . . . . .00",IF(ISERR(E38*F38),"",IF(E38*F38=0,"",ROUND(E38*F38,2)))) -> 
A40: M161.02 | C40: Application of slurry for rut filling from commercial sources
A42: M161.02(b) | C42: Slurry applied by spreader box with rigid squeegees in one application for rut filling (Fine Slurry Medium Grade, Modified Cationic Bitumen Emulsion AC-E1) | D42: m3 | E42: 100
A44: M161.03 | C44: Application of slurry for rut filling from commercial sources
A46: M161.03(a) | C46: Application of slurry for rut filling from commercial sources | D46: Prov Sum | E46: 1 | F46: 500,000.00 | G46: 500,000.00
A48: M161.03(b) | C48: The Contractors overhead charges and profit in respect of sub-item M161.03(a) | D48: % | E48: =G46 -> 500,000
A66: =A8 -> M1600 | C66: TOTAL CARRIED TO SUMMARY | G66: =SUM(G7:G64) -> 500 000.00

Sheet Part A - Mng M7100 Non-toll
A1: ='Part A - Mng M0200 Non-toll'!A1 -> CONTRACT NRA N.017-010-2023/1 NON- TOLL
A2: ='Part A - Mng M0200 Non-toll'!A2 -> SCHEDULE A: ROUTINE ROAD MAINTENNACE OF GAUTENG JOHANNESBURG FREEWAYS | G2: SECTION M7100
A3: ='Part A - Mng M0300 Non-toll'!A3 -> PART A : MANAGEMENT
A5: ITEM NO | C5: DESCRIPTION | D5: UNIT | E5: QUANTITY | F5: RATE | G5: AMOUNT
A8: M710 | C8: EMERGENCY STANDBY TEAM
A10: M710.01 | C10: Emergency standby
A12: M710.01(a) | C12: Emergency team on standby | D12: Month | E12: 60 | G12: =ROUND(E12*(ROUND(F12,2)),2) -> 0.00
A14: M710.01(b) | C14: Emergency equipment on standby | D14: Month | E14: 60 | G14: =ROUND(E14*(ROUND(F14,2)),2) -> 0.00
A16: M710.01(c) | C16: Call out cost | D16: km | E16: 10,000 | G16: =ROUND(E16*(ROUND(F16,2)),2) -> 0.00
G47: =IF(OR(AND(E47="Prov",F47="Sum"),(F47="PC Sum")),". . . . . . . . .00",IF(ISERR(E47*F47),"",IF(E47*F47=0,"",ROUND(E47*F47,2)))) -> 
A66: =A8 -> M710 | C66: TOTAL CARRIED TO SUMMARY | G66: =SUM(G7:G64) -> 0.00

Sheet Part A - Mng M7200 Non-toll
A1: ='Part A - Mng M0200 Non-toll'!A1 -> CONTRACT NRA N.017-010-2023/1 NON- TOLL
A2: ='Part A - Mng M0200 Non-toll'!A2 -> SCHEDULE A: ROUTINE ROAD MAINTENNACE OF GAUTENG JOHANNESBURG FREEWAYS | G2: SECTION M7200
A3: ='Part A - Mng M0300 Non-toll'!A3 -> PART A : MANAGEMENT
A5: ITEM NO | C5: DESCRIPTION | D5: UNIT | E5: QUANTITY | F5: RATE | G5: AMOUNT
A8: M720 | C8: ALL-EMERGENCY NORMALISATION
A10: M720.01 | C10: All-emergency normalisation
A12: M720.01(a) | C12: Accident restoration and cleaning of spillages | D12: hour | E12: 750 | G12: =E12*F12 -> 0.00
A14: M720.01(b) | C14: Sheltering of animals | D14: hour | E14: 10 | G14: =ROUND(E14*(ROUND(F14,2)),2) -> 0.00
A16: M720.01(c) | C16: Fire fighting | D16: hour | E16: 50 | G16: =ROUND(E16*(ROUND(F16,2)),2) -> 0.00
A18: M720.01(d) | C18: Safeguarding of dangerous area | D18: hour | E18: 500 | G18: =ROUND(E18*(ROUND(F18,2)),2) -> 0.00
A20: M720.02 | C20: Procurement of materials
A22: M720.02(a) | C22: Procurement of materials | D22: Prov Sum | E22: 1 | F22: 250,000.00 | G22: =ROUND(E22*(ROUND(F22,2)),2) -> 250,000.00
A24: M720.02(b) | C24: The contractors overhead charges and profit in
C25: respect of sub-item M720.02(a) | D25: % | E25: =G22 -> 250,000 | G25: =ROUND(E25*(ROUND(F25,2)),2) -> 0.00
G47: =IF(OR(AND(E47="Prov",F47="Sum"),(F47="PC Sum")),". . . . . . . . .00",IF(ISERR(E47*F47),"",IF(E47*F47=0,"",ROUND(E47*F47,2)))) -> 
A69: =A8 -> M720 | C69: TOTAL CARRIED TO SUMMARY | G69: =SUM(G7:G67) -> 250 000.00

Sheet Part A - Mng M8100 Non-toll
A1: ='Part A - Mng M0200 Non-toll'!A1 -> CONTRACT NRA N.017-010-2023/1 NON- TOLL
A2: ='Part A - Mng M0200 Non-toll'!A2 -> SCHEDULE A: ROUTINE ROAD MAINTENNACE OF GAUTENG JOHANNESBURG FREEWAYS | G2: SECTION M8100
A3: ='Part A - Mng M0300 Non-toll'!A3 -> PART A : MANAGEMENT
A5: ITEM NO | C5: DESCRIPTION | D5: UNIT | E5: QUANTITY | F5: RATE | G5: AMOUNT
A8: M810 | C8: SMALL REPAIRS OF STRUCTURES
A10: M810.01 | C10: Minor repairs to structures
A12: M810.01(a) | C12: Minor repairs to structures | D12: Prov Sum | E12: 1 | F12: 1,000,000.00 | G12: =ROUND(E12*(ROUND(F12,2)),2) -> 1,000,000.00
A14: M810.01(b) | C14: The Contractor’s overhead charges and profit in respect
C15: of sub-item M810.01 (a) | D15: % | E15: =G12 -> 1,000,000 | G15: =ROUND(E15*(ROUND(F15,2)),2) -> 0.00
G23: =IF(OR(AND(E23="Prov",F23="Sum"),(F23="PC Sum")),". . . . . . . . .00",IF(ISERR(E23*F23),"",IF(E23*F23=0,"",ROUND(E23*F23,2)))) -> 
A70: =A8 -> M810 | C70: TOTAL CARRIED TO SUMMARY | G70: =SUM(G7:G68) -> 1 000 000.00

Sheet Part B - M1300 Non-toll
A1: ='Part A - Mng M0200 Non-toll'!A1 -> CONTRACT NRA N.017-010-2023/1 NON- TOLL
A2: ='Part A - Mng M0200 Non-toll'!A2 -> SCHEDULE A: ROUTINE ROAD MAINTENNACE OF GAUTENG JOHANNESBURG FREEWAYS | G2: SECTION M1300
A3: PART B : OPERATIONAL
A5: ITEM NO | C5: DESCRIPTION | D5: UNIT | E5: QUANTITY | F5: RATE | G5: AMOUNT
A8: M130 | C8: CRACK SEALING
A10: M130.01 | C10: Cleaning and sealing the cracks
A12: M130.01(a) | C12: Cleaning cracks per metre with:
A14: M130.01(a)(ii) | C14: Hot complressed air | D14: m | E14: 800 | G14: =ROUND(E14*(ROUND(F14,2)),2) -> 0.00
A16: M130.01(c) | C16: Applying herbicides for sealing cracks | D16: litre | E16: 3 | G16: =ROUND(E16*(ROUND(F16,2)),2) -> 0.00
A18: M130.01(d) | C18: Priming of cracks | D18: m | E18: 800 | G18: =ROUND(E18*(ROUND(F18,2)),2) -> 0.00
A20: M130.01(e) | C20: Sealing the cracks with:
A22: M130.01(e)(i) | C22: C-E1 modified binder | D22: m | E22: 800 | G22: =ROUND(E22*(ROUND(F22,2)),2) -> 0.00
A24: M130.01(f) | C24: Extra over M130.01(e) for filling with cracks with
C25: fine sand to underside of base layer as specified | D25: m | E25: 800 | G25: =ROUND(E25*(ROUND(F25,2)),2) -> 0.00
A27: M130.02 | C27: Geotaxtile crack sealing
A29: M130.02(a) | C29: Sealing cracks with 200mm wide geotextile
C30: "bandage" using:
A32: M130.02(a)(i) | C32: 65 % Cationic bitumen emulsion (5%) | D32: m | E32: 160 | G32: =ROUND(E32*(ROUND(F32,2)),2) -> 0.00
A34: M130.02(b) | C34: Sealing "crocodile"cracks with geotextile over
C35: areas using:
A37: M130.02(b)(i) | C37: 65 % Cationic itumen emulsion (5%) | D37: m2 | E37: 160 | G37: =ROUND(E37*(ROUND(F37,2)),2) -> 0.00
G56: =IF(OR(AND(E56="Prov",F56="Sum"),(F56="PC Sum")),". . . . . . . . .00",IF(ISERR(E56*F56),"",IF(E56*F56=0,"",ROUND(E56*F56,2)))) -> 
A67: =A8 -> M130 | C67: TOTAL CARRIED TO SUMMARY | G67: =SUM(G7:G65) -> 0.00

Sheet Part B - M1500 Non-toll
A1: ='Part A - Mng M0200 Non-toll'!A1 -> CONTRACT NRA N.017-010-2023/1 NON- TOLL
A2: ='Part A - Mng M0200 Non-toll'!A2 -> SCHEDULE A: ROUTINE ROAD MAINTENNACE OF GAUTENG JOHANNESBURG FREEWAYS | G2: SECTION M1500
A3: PART B : OPERATIONAL
A5: ITEM NO | C5: DESCRIPTION | D5: UNIT | E5: QUANTITY | F5: RATE | G5: AMOUNT
A8: M150 | C8: CRACK AND JOINT SEALING OF CONCRETE PAVEMENTS
A10: M150.01 | C10: Preparation and sealing or resealing of old joints and cracks
C11: in existing concrete pavements:
A13: M150.01(a) | C13: Expansion joints | D13: m | E13: 2 | G13: =ROUND(E13*(ROUND(F13,2)),2) -> 0.00
A15: M150.01(b) | C15: Construction joints and weakened plane joints:
A17: M150.01(b)(i) | C17: Less than 12mm width | D17: m | E17: 2 | G17: =ROUND(E17*(ROUND(F17,2)),2) -> 0.00
A19: M150.01(b)(ii) | C19: 12mm to 20mm width | D19: m | E19: 2 | G19: =ROUND(E19*(ROUND(F19,2)),2) -> 0.00
A21: M150.01(b)(iii) | C21: Exceeding 20mm width | D21: m | E21: 2 | G21: =ROUND(E21*(ROUND(F21,2)),2) -> 0.00
A23: M150.01(c) | C23: Cracks:
A25: M150.01(c)(i) | C25: Less than 12mm width | D25: m | E25: 2 | G25: =ROUND(E25*(ROUND(F25,2)),2) -> 0.00
A27: M150.01(c)(ii) | C27: 12mm to 20mm width | D27: m | E27: 2 | G27: =ROUND(E27*(ROUND(F27,2)),2) -> 0.00
A29: M150.01(c)(iii) | C29: Exceeding 20mm width | D29: m | E29: 2 | G29: =ROUND(E29*(ROUND(F29,2)),2) -> 0.00
A31: M150.02 | C31: Temporary partial-depth pothole repair of concrete with
C32: asphalt surfacing
A34: M150.02(a) | C34: Hot mix continuously graded asphalt | D34: No | E34: 2 | G34: =ROUND(E34*(ROUND(F34,2)),2) -> 0.00
A36: M150.02(b) | C36: Cold mix asphalt | D36: No | E36: 2 | G36: =ROUND(E36*(ROUND(F36,2)),2) -> 0.00
A38: M150.03 | C38: Small repair to existing concrete pavements
A40: M150.03(a) | C40: Small repair to existing concrete pavements | D40: Prov Sum | E40: 1 | F40: 100,000.00 | G40: =ROUND(E40*(ROUND(F40,2)),2) -> 100,000.00
A42: M150.03(b) | C42: The contractors overhead charges and profit in respect of | D42: =IFERROR(VLOOKUP($B42,[1]Masterlist_4!$A$2:$J$1236,10,FALSE),"") -> 
C43: sub-item M150.03(a) | D43: % | E43: =G40 -> 100,000 | G43: =ROUND(E43*(ROUND(F43,2)),2) -> 0.00
G66: =IF(OR(AND(E66="Prov",F66="Sum"),(F66="PC Sum")),". . . . . . . . .00",IF(ISERR(E66*F66),"",IF(E66*F66=0,"",ROUND(E66*F66,2)))) -> 
A73: =A8 -> M150 | C73: TOTAL CARRIED TO SUMMARY | G73: =SUM(G7:G71) -> 100 000.00

Sheet Part B - M1700 Non-toll
A1: ='Part A - Mng M0200 Non-toll'!A1 -> CONTRACT NRA N.017-010-2023/1 NON- TOLL
A2: ='Part A - Mng M0200 Non-toll'!A2 -> SCHEDULE A: ROUTINE ROAD MAINTENNACE OF GAUTENG JOHANNESBURG FREEWAYS | G2: SECTION M1700
A3: PART B : OPERATIONAL
A5: ITEM NO | C5: DESCRIPTION | D5: UNIT | E5: QUANTITY | F5: RATE | G5: AMOUNT
A8: M170 | C8: REPAIR OF SLOPE FAILURES AND WASHAWAYS
A10: M170.01 | C10: Reconstruction of slope failures and washaways -
C11: mass earth works
A13: M170.01(a) | C13: Excavation and removing excavated material to spoil
C14: or stockpile as directed by the engineer. A
C15: distinction shall be made between:
A17: M170.01(a)(i) | C17: Soft material | D17: m³ | E17: 2 | G17: =ROUND(E17*(ROUND(F17,2)),2) -> 0.00
A19: M170.01(a)(ii) | C19: Intermediate material | D19: m³ | E19: 2 | G19: =ROUND(E19*(ROUND(F19,2)),2) -> 0.00
A21: M170.01(a)(iii) | C21: Hard and boulder class material | D21: m³ | E21: 2 | G21: =ROUND(E21*(ROUND(F21,2)),2) -> 0.00
A23: M170.01(b) | C23: Drying excavated material suitable for re-use | D23: m³ | E23: 2 | G23: =ROUND(E23*(ROUND(F23,2)),2) -> 0.00
A25: M170.01(c) | C25: Raodbed compaction to 90% of modified AASHTO density | D25: m³ | E25: 2 | G25: =ROUND(E25*(ROUND(F25,2)),2) -> 0.00
A27: M170.01(d) | C27: Backfill at excavated area in
A29: M170.01(d)(i) | C29: Fill embankments to 90% of modified AASHTO density | D29: m³ | E29: 2 | G29: =ROUND(E29*(ROUND(F29,2)),2) -> 0.00
A31: M170.01(d)(ii) | C31: Cut embankment to 90% of modified AASHTO density | D31: =IFERROR(VLOOKUP($B31,[1]Masterlist_4!$A$2:$J$1236,10,FALSE),"") -> 
C32: including haul for a free haul distance of 1.0km | D32: m³ | E32: 2 | G32: =ROUND(E32*(ROUND(F32,2)),2) -> 0.00
A34: M170.02 | C34: Reconstruction of pavement layers
A36: M170.02(a) | C36: Natural gravel selected subgrade | D36: m³ | E36: 2 | G36: =ROUND(E36*(ROUND(F36,2)),2) -> 0.00
A38: M170.02(b) | C38: Cement stabilised natural gravel subbase | D38: m³ | E38: 2 | G38: =ROUND(E38*(ROUND(F38,2)),2) -> 0.00
A40: M170.02(c) | C40: Emulsion treated crushed stone base | D40: m³ | E40: 2 | G40: =ROUND(E40*(ROUND(F40,2)),2) -> 0.00
A42: M170.02(d) | C42: Crushed stone base (G1) | D42: m³ | E42: 2 | G42: =ROUND(E42*(ROUND(F42,2)),2) -> 0.00
A44: M170.02(e) | C44: Hot mix asphalt (continuously graded medium) | D44: m³ | E44: 2 | G44: =ROUND(E44*(ROUND(F44,2)),2) -> 0.00
A46: M170.02(f) | C46: Cold mix asphalt (Agrement SA certified) | D46: m³ | E46: 2 | G46: =ROUND(E46*(ROUND(F46,2)),2) -> 0.00
A48: M170.03 | C48: Prime and Track coats
A50: M170.03(a) | C50: 30% Stable grade emulsion | D50: Litre | E50: 2 | G50: =ROUND(E50*(ROUND(F50,2)),2) -> 0.00
A52: M170.03(b) | C52: Inverted bitumen emulsion prime | D52: Litre | E52: 2 | G52: =ROUND(E52*(ROUND(F52,2)),2) -> 0.00
A54: M170.04 | C54: Overhaul on natural gravel material | D54: m3-km | E54: 16 | G54: =ROUND(E54*(ROUND(F54,2)),2) -> 0.00
A56: M170.05 | C56: Repair of slope failures and washaways
A58: M170.05(a) | C58: Provisional sum for repair of slope failures and washaways | D58: Prov sum | E58: 1 | F58: 1,000,000.00 | G58: =ROUND(E58*(ROUND(F58,2)),2) -> 1,000,000.00
A60: M170.05(b) | C60: The contractors overhead charges and profit in respect
C61: of sub-item M170.05(a) | D61: % | E61: =G58 -> 1,000,000 | G61: =ROUND(E61*(ROUND(F61,2)),2) -> 0.00
A69: =A8 -> M170 | C69: TOTAL CARRIED TO SUMMARY | G69: =SUM(G7:G67) -> 1 000 000.00

Sheet Part B - M2100 Non-toll
A1: ='Part A - Mng M0200 Non-toll'!A1 -> CONTRACT NRA N.017-010-2023/1 NON- TOLL
A2: ='Part A - Mng M0200 Non-toll'!A2 -> SCHEDULE A: ROUTINE ROAD MAINTENNACE OF GAUTENG JOHANNESBURG FREEWAYS | G2: SECTION M2100
A3: PART B : OPERATIONAL
A5: ITEM NO | C5: DESCRIPTION | D5: UNIT | E5: QUANTITY | F5: RATE | G5: AMOUNT
A8: M210 | C8: REPAIR AND MAINTENANCE OF INLET AND OUTLET STRUCTURES
A10: M210.01 | C10: Excavation
A12: M210.01(a) | C12: Excavation soft material | D12: m³ | E12: 80 | G12: =ROUND(E12*(ROUND(F12,2)),2) -> 0.00
A14: M210.01(b) | C14: Excavation hard material | D14: m³ | E14: 8 | G14: 0.00
A16: M210.02 | C16: Backfilling
A18: M210.02(a) | C18: Using the excavated material | D18: m³ | E18: 8 | G18: =ROUND(E18*(ROUND(F18,2)),2) -> 0.00
A20: M210.02(b) | C20: Using stabilised excavated material | D20: m³ | E20: 8 | G20: =ROUND(E20*(ROUND(F20,2)),2) -> 0.00
A22: M210.03 | C22: Reconstruction of inlet and outlet structures
A24: M210.03(a) | C24: In concrete (class indicated)
A26: M210.03(a)i | C26: Concrete (Class 15/19) | D26: m³ | E26: 2 | G26: =ROUND(E26*(ROUND(F26,2)),2) -> 0.00
A27: M210.03(a)iii | C27: Concrete (Class 25/19) | D27: m³ | E27: 3 | G27: 0.00
A29: M210.03(b) | C29: Brickwork | D29: m³ | E29: 2 | G29: 0.00
A31: M210.03(c) | C31: Plastering | D31: m² | E31: 3 | G31: 0.00
A33: M210.03(d) | C33: Maintenance of grids
A35: M210.03(d)(i) | C35: Welding and loosening of steel grids | D35: Prov Sum | E35: 1 | F35: 5,000.00 | G35: 5 000.00
A37: M210.03(d)(ii) | C37: The Contractors overhead charges and profit in respect of sub-item M210.03 (d)(i) | D37: % | E37: =G35 -> 5,000 | G37: 0.00
A39: M210.04 | C39: Accessories
A41: M210.04(a) | C41: Accessories | D41: Prov Sum | E41: 1 | F41: 500,000.00 | G41: 500 000.00
A43: M210.04(b) | C43: The Contractors overhead charges and profit in respect of sub-item M210.04 (a) | D43: % | E43: =G41 -> 500,000 | G43: 0.00
A45: M210.05 | C45: Demolition of existing structures
A47: M210.05(a) | C47: Plain concrete | D47: m3 | E47: 2 | G47: 0.00
A49: M210.05(b) | C49: Reinforced concrete | D49: m3 | E49: 2 | G49: 0.00
A51: M210.05(c) | C51: Brickwork | D51: m3 | E51: 2 | G51: 0.00
A53: M210.05(d) | C53: Stone masonry | D53: m3 | E53: 2 | G53: 0.00
A55: M210.06 | C55: Repairing of existing structures ( inlet and
C56: outlet structures, pipes and culverts)
A58: M210.06(a) | C58: Concrete (class indicated)
A60: M210.06(a)(i) | C60: 15/19 | D60: m3 | E60: 2 | G60: 0.00
A62: M210.06(a)(iii) | C62: 25/19 | D62: m3 | E62: 2 | G62: 0.00
A64: M210.06(a)(iv) | C64: 30/19 | D64: m3 | E64: 2 | G64: 0.00
A67: =A8 -> M210 | C67: TOTAL CARRIED FORWARD | G67: =SUM(G10:G65) -> 505 000.00
A69: =A1 -> CONTRACT NRA N.017-010-2023/1 NON- TOLL
A70: =A2 -> SCHEDULE A: ROUTINE ROAD MAINTENNACE OF GAUTENG JOHANNESBURG FREEWAYS | G70: SECTION M2100
A71: BILL OF QUANTITIES: PART B: OPERATIONAL
A73: ITEM NO | C73: DESCRIPTION | D73: UNIT | E73: QUANTITY | F73: RATE | G73: AMOUNT
C75: BROUGHT FORWARD | G75: =G67 -> 505,000.00
A77: M210.06(b) | C77: Brickwork | D77: m3 | E77: 2 | G77: =ROUND(E77*(ROUND(F77,2)),2) -> 0.00
A79: M210.06(c) | C79: Stone masonry with rock material obtained
C80: from
A82: M210.06(c)(i) | C82: Natural sources | D82: m3 | E82: 2 | G82: 0.00
A84: M210.06(c)(ii) | C84: Commercial sources | D84: m3 | E84: 2 | G84: 0.00
A86: M210.06(d) | C86: Plastering | D86: m2 | E86: 2 | G86: 0.00
A88: M210.07 | C88: Steel reinforcement
A90: M210.07(a) | C90: Mild steel bars | D90: ton | E90: 1 | G90: 0.00
A92: M210.07(b) | C92: High tensile steel bars | D92: ton | E92: 1 | G92: 0.00
A94: M210.07(c) | C94: Welded steel mesh | D94: kg | E94: 32 | G94: 0.00
A96: M210.08 | C96: Overhaul on materials for haul in excess of 1.0
C97: km
A99: M210.08(a) | C99: Excavated material to spoil | D99: m3-km | E99: 16 | G99: 0.00
A101: M210.08(b) | C101: Existing structures demolished | D101: m3-km | E101: 16 | G101: 0.00
A135: =A8 -> M210 | C135: TOTAL CARRIED TO SUMMARY | G135: =SUM(G72:G133) -> 505 000.00

Sheet Part B - M2200 Non-toll
A1: ='Part A - Mng M0200 Non-toll'!A1 -> CONTRACT NRA N.017-010-2023/1 NON- TOLL
A2: ='Part A - Mng M0200 Non-toll'!A2 -> SCHEDULE A: ROUTINE ROAD MAINTENNACE OF GAUTENG JOHANNESBURG FREEWAYS | G2: SECTION M2200
A3: PART B : OPERATIONAL
A5: ITEM NO | C5: DESCRIPTION | D5: UNIT | E5: QUANTITY | F5: RATE | G5: AMOUNT
A8: M220 | C8: SUBSOIL DRAIN INSTALLATION AND MAINTENANCE
A10: M220.01 | C10: Excavation
A12: M220.01(a) | C12: Excavating soft material | D12: m3 | E12: 10 | G12: =F12*E12 -> 0.00
A14: M220.01(b) | C14: Excavating hard material | D14: m3 | E14: 10 | G14: =F14*E14 -> 0.00
A16: M220.02 | C16: Impermeable backfilling | D16: m3 | E16: 10 | G16: =F16*E16 -> 0.00
A18: M220.03 | C18: Natural permeable material
A20: M220.03(a) | C20: Crushed stone from commercial source
C21: (state grade)
A23: M220.03(a)(ii) | C23: Course grade | D23: m3 | E23: 5 | G23: =F23*E23 -> 0.00
A25: M220.03(c) | C25: Sand from commercial source (state grade)
A27: M220.03(c)(i) | C27: Fine grade | D27: m3 | E27: 5 | G27: =F27*E27 -> 0.00
A29: M220.03(c)(ii) | C29: Course grade | D29: m3 | E29: 5 | G29: =F29*E29 -> 0.00
A31: M220.04 | C31: Pipes
A33: M220.04(a) | C33: Unplasticized PVC pipes and fittings, normal duty, complete
C34: with couplings
A36: M220.04(a)(i) | C36: 110 mm slotted pipe | D36: m | E36: 20 | G36: =F36*E36 -> 0.00
A38: M220.04(a)(iii) | C38: 110 mm perforated pipe | D38: m | E38: 20 | G38: =F38*E38 -> 0.00
A40: M220.05 | C40: Polyethylene sheeting 0,25 mm thick | D40: m2 | E40: 20 | G40: =F40*E40 -> 0.00
A42: M220.06 | C42: Synthetic fibre filter fabric (type, grade 2) | D42: m2 | E42: 20 | G42: =F42*E42 -> 0.00
A44: M220.07 | C44: Composite in place drainage systems
C45: (450fin with a 110mm collector pipe) | D45: m | E45: 20 | G45: =F45*E45 -> 0.00
A47: M220.08 | C47: Inlet and outlet structures
A49: M220.08(a) | C49: Rodding eyes | D49: No | E49: 10 | G49: =F49*E49 -> 0.00
A51: M220.08(b) | C51: Outlet structures | D51: No | E51: 10 | G51: =F51*E51 -> 0.00
A53: M220.09 | C53: Exposing of existing drains | D53: m3 | E53: 10 | G53: =F53*E53 -> 0.00
A55: M220.10 | C55: Clearing of subsoil drains | D55: m | E55: 20 | G55: =F55*E55 -> 0.00
A57: M220.11 | C57: Overhaul for material hauled in excess of
C58: 1,0 km free-haul | D58: m3-km | E58: 100 | G58: =F58*E58 -> 0.00
A69: M2200 | C69: TOTAL CARRIED TO SUMMARY | G69: =SUM(G8:G68) -> 0.00

Sheet Part B - M2300 Non-toll
A1: ='Part A - Mng M0200 Non-toll'!A1 -> CONTRACT NRA N.017-010-2023/1 NON- TOLL
A2: ='Part A - Mng M0200 Non-toll'!A2 -> SCHEDULE A: ROUTINE ROAD MAINTENNACE OF GAUTENG JOHANNESBURG FREEWAYS | G2: SECTION M2300
A3: PART B : OPERATIONAL
A5: ITEM NO | C5: DESCRIPTION | D5: UNIT | E5: QUANTITY | F5: RATE | G5: AMOUNT
A8: M230 | C8: CLEANING OF WATERWAY STRUCTURES
A10: M230.01(c) | C10: Cleaning of waterway structures, inlets and outlets areas on (performance base)
A12: M230.01(c)(i) | C12: N17 section 1 distance 5.6 km (0 interchanges) | D12: Month | E12: 6 | G12: =F12*E12 -> 0.00
A14: M230.02 | C14: Overhaul of material in excess of the free-haul distance of 1,0 km | D14: m3-km | E14: 20 | G14: =F14*E14 -> 0.00
G17: =IF(OR(AND(E17="Prov",F17="Sum"),(F17="PC Sum")),". . . . . . . . .00",IF(ISERR(E17*F17),"",IF(E17*F17=0,"",ROUND(E17*F17,2)))) -> 
A56: =A8 -> M230 | C56: TOTAL CARRIED TO SUMMARY | G56: =SUM(G7:G54) -> 0.00

Sheet Part B - M2400 Non-toll
A1: ='Part A - Mng M0200 Non-toll'!A1 -> CONTRACT NRA N.017-010-2023/1 NON- TOLL
A2: ='Part A - Mng M0200 Non-toll'!A2 -> SCHEDULE A: ROUTINE ROAD MAINTENNACE OF GAUTENG JOHANNESBURG FREEWAYS | G2: SECTION M2400
A3: PART B : OPERATIONAL
A5: ITEM NO | C5: DESCRIPTION | D5: UNIT | E5: QUANTITY | F5: RATE | G5: AMOUNT
A8: M240 | C8: CLEANING OF PREFABRICATED CULVERTS
A10: M240.02 | C10: Cleaning of prefabricated culverts (performance based)(specify route, section and km distance)
A12: M240.02(b) | C12: Cleaning of culverts
A14: M240.02(b)(i) | C14: N17 section 1 distance 5.6 km (0 interchanges) | D14: Month | E14: 6 | G14: =F14*E14 -> 0.00
G25: =IF(OR(AND(E25="Prov",F25="Sum"),(F25="PC Sum")),". . . . . . . . .00",IF(ISERR(E25*F25),"",IF(E25*F25=0,"",ROUND(E25*F25,2)))) -> 
A65: =A8 -> M240 | C65: TOTAL CARRIED TO SUMMARY | G65: =SUM(G7:G63) -> 0.00

Sheet Part B - M2500 Non-toll
A1: ='Part A - Mng M0200 Non-toll'!A1 -> CONTRACT NRA N.017-010-2023/1 NON- TOLL
A2: ='Part A - Mng M0200 Non-toll'!A2 -> SCHEDULE A: ROUTINE ROAD MAINTENNACE OF GAUTENG JOHANNESBURG FREEWAYS | G2: SECTION M2500
A3: PART B : OPERATIONAL
A5: ITEM NO | C5: DESCRIPTION | D5: UNIT | E5: QUANTITY | F5: RATE | G5: AMOUNT
A8: M250 | C8: CLEANING OF CONCRETE DRAINS AND CHANNELS
A10: M250.01(b) | C10: Cleaning of median concrete grid channels
C11: next to NJ Barriers | D11: m | E11: 320 | G11: =F11*E11 -> 0.00
A13: M250.02 | C13: Additional cleaning of concrete drainage channels
A15: M250.02(a) | C15: Hand Cleaning | D15: m | E15: 80 | G15: =F15*E15 -> 0.00
A17: M250.02(b) | C17: Extra over M250.02(a) for work during night time | D17: % | E17: 360 | G17: 0.00
A19: M250.02(c) | C19: Mechanical vacuum road sweeper | D19: km | E19: 80 | G19: 0.00
A21: M250.02(d ) | C21: Hand cleaning (emergency clean ups) | D21: h | E21: 10 | G21: 0.00
A23: M250.02(e ) | C23: Mechanical vacuum road sweeper
C24: (emergency clean ups) | D24: h | E24: 10 | G24: 0.00
A26: M250.02(f ) | C26: Extra over item PM250.02(c, d and e) for work during night time | D26: % | E26: =G19+G21+G24 -> 0 | G26: 0.00
A28: M250.03 | C28: Cleaning of pedestrian paths
A30: M250.03(a) | C30: Cleaning of pedestrian paths on instruction of the Engineer (specify section and km distance) | D30: m | E30: 20 | G30: 0.00
A32: M250.04 | C32: Cleaning of concrete drains(performance based)
A34: M250.04(b) | C34: Cleaning of concrete drains(performance based)
A36: M250.04(b)(i) | C36: N17 section 1 distance 5.6 km (0 interchanges) | D36: Month | E36: 6 | G36: 0.00
G48: =IF(OR(AND(E48="Prov",F48="Sum"),(F48="PC Sum")),". . . . . . . . .00",IF(ISERR(E48*F48),"",IF(E48*F48=0,"",ROUND(E48*F48,2)))) -> 
A65: =A8 -> M250 | C65: TOTAL CARRIED TO SUMMARY | G65: =SUM(G7:G63) -> 0.00

Sheet Part B - M2600 Non-toll
A1: ='Part A - Mng M0200 Non-toll'!A1 -> CONTRACT NRA N.017-010-2023/1 NON- TOLL
A2: ='Part A - Mng M0200 Non-toll'!A2 -> SCHEDULE A: ROUTINE ROAD MAINTENNACE OF GAUTENG JOHANNESBURG FREEWAYS | G2: SECTION M2600
A3: PART B : OPERATIONAL
A5: ITEM NO | C5: DESCRIPTION | D5: UNIT | E5: QUANTITY | F5: RATE | G5: AMOUNT
A8: M260 | C8: CLEANING AND MAINTENANCE OF EXISTING EARTH CHANNELS
A10: M260.01 | C10: Cleaning earth drains and channels | D10: m3 | E10: 80 | G10: =F10*E10 -> 0.00
A12: M260.02 | C12: Repairing of earth drains and channels | D12: m3 | E12: 80 | G12: =F12*E12 -> 0.00
A14: M260.03 | C14: Banks and dykes | D14: m3 | E14: 16 | G14: =F14*E14 -> 0.00
A16: M260.04 | C16: Construction of new earth drains | D16: m3 | E16: 32 | G16: =F16*E16 -> 0.00
A18: M260.05 | C18: Overhaul of material in excess of the free-haul
C19: distance of 1,0 km | D19: m3-km | E19: 1,600 | G19: =F19*E19 -> 0.00
G21: =IF(OR(AND(E21="Prov",F21="Sum"),(F21="PC Sum")),". . . . . . . . .00",IF(ISERR(E21*F21),"",IF(E21*F21=0,"",ROUND(E21*F21,2)))) -> 
G22: =IF(OR(AND(E22="Prov",F22="Sum"),(F22="PC Sum")),". . . . . . . . .00",IF(ISERR(E22*F22),"",IF(E22*F22=0,"",ROUND(E22*F22,2)))) -> 
A66: =A8 -> M260 | C66: TOTAL CARRIED TO SUMMARY | G66: =SUM(G7:G64) -> 0.00

Sheet Part B - M2700 Non-toll
A1: ='Part A - Mng M0200 Non-toll'!A1 -> CONTRACT NRA N.017-010-2023/1 NON- TOLL
A2: ='Part A - Mng M0200 Non-toll'!A2 -> SCHEDULE A: ROUTINE ROAD MAINTENNACE OF GAUTENG JOHANNESBURG FREEWAYS | G2: SECTION M2700
A3: PART B : OPERATIONAL
A5: ITEM NO | C5: DESCRIPTION | D5: UNIT | E5: QUANTITY | F5: RATE | G5: AMOUNT
A8: M270 | C8: EDGE BUILD-UP REMOVAL
A10: M270.02 | C10: Removal edge build-ups (performance based)
A12: M270.02(b) | C12: Edge build-up removal
A14: M270.02(b)(i) | C14: N17 section 1 distance 5.6 km (0 interchanges) | D14: Month | E14: 6 | G14: =F14*E14 -> 0.00
G24: =IF(OR(AND(E24="Prov",F24="Sum"),(F24="PC Sum")),". . . . . . . . .00",IF(ISERR(E24*F24),"",IF(E24*F24=0,"",ROUND(E24*F24,2)))) -> 
A65: =A8 -> M270 | C65: TOTAL CARRIED TO SUMMARY | G65: =SUM(G7:G63) -> 0.00

Sheet Part B - M2800 Non-toll
A1: ='Part A - Mng M0200 Non-toll'!A1 -> CONTRACT NRA N.017-010-2023/1 NON- TOLL
A2: ='Part A - Mng M0200 Non-toll'!A2 -> SCHEDULE A: ROUTINE ROAD MAINTENNACE OF GAUTENG JOHANNESBURG FREEWAYS | G2: SECTION M2800
A3: PART B : OPERATIONAL
A5: ITEM NO | C5: DESCRIPTION | D5: UNIT | E5: QUANTITY | F5: RATE | G5: AMOUNT
A8: M280 | C8: CONCRETE CHANNEL CONSTRUCTION AND MAINTENANCE OF EXISTING CHANNELS
A10: M280.01 | C10: Excavation
A12: M280.01(a) | C12: For open drains
A14: M280.01(a)(i) | C14: Soft material | D14: m3 | E14: 50 | G14: =F14*E14 -> 0.00
A16: M280.01(a)(ii) | C16: Hard material | D16: m3 | E16: 10 | G16: =F16*E16 -> 0.00
A18: M280.01(b) | C18: Chutes and kerb-channel combinations
A20: M280.01(b)(i) | C20: Soft material | D20: m3 | E20: 5 | G20: =F20*E20 -> 0.00
A22: M280.01(b)(ii) | C22: Hard material | D22: m3 | E22: 5 | G22: =F22*E22 -> 0.00
A24: M280.02 | C24: Cast in situ concrete
A26: M280.02(a) | C26: Linings (30/19) | D26: m3 | E26: 2 | G26: =F26*E26 -> 0.00
A28: M280.02(b) | C28: Chutes (25/19) | D28: m3 | E28: 2 | G28: =F28*E28 -> 0.00
A30: M280.02(c) | C30: Channels for kerb and channels (25/19) | D30: m3 | E30: 2 | G30: =F30*E30 -> 0.00
A32: M280.02(d) | C32: Concrete berms | D32: m3 | E32: 2 | G32: =F32*E32 -> 0.00
A34: M280.03 | C34: Concrete screed or backfill below chutes (15/19) | D34: m3 | E34: 2 | G34: =F34*E34 -> 0.00
A36: M280.04 | C36: Precast concrete kerbing and chutes
A38: M280.04(a) | C38: Kerbing (Fig. 7) | D38: m | E38: 5 | G38: =F38*E38 -> 0.00
A40: M280.04(b) | C40: Chutes (indicate type) | D40: m | E40: 5 | G40: =F40*E40 -> 0.00
A42: M280.05 | C42: Steel reinforcement
A44: M280.05(a) | C44: Mild steel bars | D44: ton | E44: 1 | G44: =F44*E44 -> 0.00
A46: M280.05(b) | C46: High tensile steel bars | D46: ton | E46: 1 | G46: =F46*E46 -> 0.00
A48: M280.05(c) | C48: Welded steel mesh | D48: kg | E48: 50 | G48: =F48*E48 -> 0.00
A50: M280.06 | C50: Sealed joints in concrete lining of open drains (type indicated with reference to drawings) | D50: m | E50: 2 | G50: =F50*E50 -> 0.00
A52: M280.07 | C52: Demolition and removal of damaged existing structures
A54: M280.07(a) | C54: Plain concrete | D54: m3 | E54: 5 | G54: =F54*E54 -> 0.00
A56: M280.07(b) | C56: Reinforced concrete | D56: m3 | E56: 5 | G56: =F56*E56 -> 0.00
A58: M280.07(c) | C58: Kerbing and channelling | D58: m3 | E58: 5 | G58: =F58*E58 -> 0.00
A64: =A8 -> M280 | C64: TOTAL CARRIED FORWARD | G64: =SUM(G8:G62) -> 0.00
A66: =A1 -> CONTRACT NRA N.017-010-2023/1 NON- TOLL
A67: =A2 -> SCHEDULE A: ROUTINE ROAD MAINTENNACE OF GAUTENG JOHANNESBURG FREEWAYS | G67: SECTION M2800
A68: BILL OF QUANTITIES: PART B: OPERATIONAL
A70: ITEM NO | C70: DESCRIPTION | D70: UNIT | E70: QUANTITY | F70: RATE | G70: AMOUNT
C72: BROUGHT FORWARD | G72: =G64 -> 0.00
A74: M280.08 | C74: Down chutes
A76: M280.08(a) | C76: Corrugated steel ( type and 300mm) | D76: m | E76: 2 | G76: =F76*E76 -> 0.00
A78: M280.08(c) | C78: Concrete (300mm) | D78: m | E78: 2 | G78: =F78*E78 -> 0.00
A80: M280.09 | C80: Overhaul on material for haul in excess of 1,0
C81: km
A83: M280.09(a) | C83: Excavated material to spoil | D83: m3-km | E83: 200 | G83: =F83*E83 -> 0.00
A85: M280.09(b) | C85: Existing structures demolished | D85: m3-km | E85: 200 | G85: =F85*E85 -> 0.00
A87: M280.10 | C87: Asphalt Berms | D87: ton | E87: 2 | G87: =F87*E87 -> 0.00
A133: M2800 | C133: TOTAL CARRIED TO SUMMARY | G133: =SUM(G72:G132) -> 0.00

Sheet Part B - M3100 Non-toll
A1: ='Part A - Mng M0200 Non-toll'!A1 -> CONTRACT NRA N.017-010-2023/1 NON- TOLL
A2: ='Part A - Mng M0200 Non-toll'!A2 -> SCHEDULE A: ROUTINE ROAD MAINTENNACE OF GAUTENG JOHANNESBURG FREEWAYS | G2: SECTION M3100
A3: PART B : OPERATIONAL
A5: ITEM NO | C5: DESCRIPTION | D5: UNIT | E5: QUANTITY | F5: RATE | G5: AMOUNT
A8: M310 | C8: FENCING
A10: M310.01 | C10: Clearing fence line
A12: M310.01(b) | C12: 1 m wide alongside existing fences | D12: km | E12: 2 | G12: =F12*E12 -> 0.00
A14: M310.02 | C14: Repair of existing fences of less than 100 m lengths:
A16: M310.02(a) | C16: Stock-proof fences | D16: m | E16: 100 | G16: =F16*E16 -> 0.00
A18: M310.02(b) | C18: Vermin-proof fences | D18: m | E18: 8 | G18: 0.00
A20: M310.02(c) | C20: Pedestrian fences | D20: m | E20: 10 | G20: 0.00
A22: M310.02(d) | C22: Security fences | D22: m | E22: 10 | G22: 0.00
A24: M310.02(e) | C24: Steel palisade fence | D24: m | E24: 10 | G24: 0.00
A26: M310.02(f) | C26: Concrete palisade fence
A28: M310.02(f)(iii) | C28: 1.8m high | D28: m | E28: 50 | G28: 0.00
A30: M310.02(f)(iv) | C30: 2,1m high | D30: m | E30: 50 | G30: 0.00
A32: M310.02(g) | C32: Steel mesh fencing (razor mesh)
A34: M310.02(g)(i) | C34: 1,2m high | D34: m | E34: 50 | G34: 0.00
A36: M310.02(g)(ii) | C36: 2,0m high | D36: m | E36: 50 | G36: 0.00
A38: M310.02(h) | C38: Flat wrap barbed wire fencing | D38: m | E38: 100 | G38: 0.00
A40: M310.02(i) | C40: Game proof fences | D40: m | E40: 3 | G40: 0.00
A42: M310.03 | C42: Repair of existing fence of greater than 100 m lengths:
A44: M310.03(a) | C44: Stock-proof fences | D44: m | E44: 50 | G44: 0.00
A46: M310.03(b) | C46: Vermin-proof fences | D46: m | E46: 10 | G46: 0.00
A48: M310.03(c) | C48: Pedestrian fences | D48: m | E48: 10 | G48: 0.00
A50: M310.03(d) | C50: Security fences | D50: m | E50: 10 | G50: 0.00
A52: M310.03(e) | C52: Steel palisade fences | D52: m | E52: 10 | G52: 0.00
A54: M310.03(f) | C54: Concrete palisade fences
A56: M310.03(f)(iii) | C56: 1.8m high | D56: m | E56: 10 | G56: 0.00
A58: M310.03(f)(iv) | C58: 2,1m high | D58: m | E58: 10 | G58: 0.00
A60: M310.03(g) | C60: Steel mesh fencing (razor mesh)
A62: M310.03(g)(i) | C62: 1,2m high | D62: m | E62: 10 | G62: 0.00
A64: M310.03(g)(ii) | C64: 2,0m high | D64: m | E64: 10 | G64: 0.00
A66: M310.03(h) | C66: Flat wrap barbed wire fencing | D66: m | E66: 10 | G66: 0.00
A68: M3100 | C68: CARRIED FORWARD | G68: =SUM(G12:G67) -> 0.00
A69: CONTRACT NRA X.002-088-2019/1
A70: ROUTINE ROAD MAINTENANCE OF GAUTENG TSHWANE FREEWAYS | G70: SECTION M3100
A71: BILL OF QUANTITIES: PART B: OPERATIONAL
A73: ITEM NO | C73: DESCRIPTION | D73: UNIT | E73: QUANTITY | F73: RATE | G73: AMOUNT
C75: BROUGHT FORWARD | G75: =G68 -> 0.00
A77: M310.04 | C77: Erection of new fences of less than 1 km lengths:
A79: M310.04(a) | C79: Stock-proof fences | D79: m | E79: 50 | G79: =F79*E79 -> 0.00
A81: M310.04(b) | C81: Vermin-proof fences | D81: m | E81: 10 | G81: =F81*E81 -> 0.00
A83: M310.04(c) | C83: Pedestrian fences | D83: m | E83: 10 | G83: 0.00
A85: M310.04(d) | C85: Security fences | D85: m | E85: 10 | G85: 0.00
A87: M310.04(e) | C87: Steel palisade fences | D87: m | E87: 10 | G87: 0.00
A89: M310.04(f) | C89: Concrete palisade fences
A91: M310.04(f)(iii) | C91: 1.8m high | D91: m | E91: 10 | G91: 0.00
A93: M310.04(f)(iv) | C93: 2,1m high | D93: m | E93: 10 | G93: 0.00
A95: M310.04(g) | C95: Steel mesh fencing (razor mesh)
A97: M310.04(g)(i) | C97: 1,2m high | D97: m | E97: 10 | G97: 0.00
A99: M310.04(g)(ii) | C99: 2,0m high | D99: m | E99: 10 | G99: 0.00
A101: M310.04(h) | C101: Flat wrap barbed wire fencing | D101: m | E101: 10 | G101: 0.00
A103: M310.05 | C103: Supply and erection of new fences of greater
C104: than 1km
A106: M310.05(a) | C106: Supply of fencing material
A108: M310.05(a)(i) | C108: Supply and erection of new fences of greater
C109: than 1km | D109: Prov Sum | E109: 1 | F109: 50,000.00 | G109: =F109*E109 -> 50,000.00
A111: M310.05(a)(ii) | C111: Overhead charges and profit in respect of
C112: subitem M310.05 (a)(i) | D112: % | E112: =G109 -> 50,000 | G112: =F112*E112 -> 0.00
A114: M310.05(b) | C114: Concrete backfill | D114: m3 | E114: 3 | G114: 0.00
A116: M310.06 | C116: New gates
A118: M310.06(a) | C118: Single leaf | D118: No | E118: 10 | G118: 0.00
A120: M310.06(a)(i) | C120: Stock-proof fences | D120: No | E120: 10 | G120: 0.00
A122: M310.06(a)(ii) | C122: Vermin-proof fences | D122: No | E122: 10 | G122: 0.00
A124: M310.06(a)(iii) | C124: Pedestrian fence | D124: No | E124: 10 | G124: 0.00
A126: M310.06(a)(iv) | C126: Security fences | D126: No | E126: 10 | G126: 0.00
A128: M310.06(b) | C128: Double leaf (see drawings)
A130: M310.06(b)(i) | C130: Stock-proof fences | D130: No | E130: 5 | G130: 0.00
A132: M310.06(b)(ii) | C132: Vermin-proof fences | D132: No | E132: 5 | G132: 0.00
A135: M3100 | C135: CARRIED FORWARD | G135: =SUM(G75:G134) -> 50,000.00
A136: CONTRACT NRA X.002-088-2019/1
A137: ROUTINE ROAD MAINTENANCE OF GAUTENG TSHWANE FREEWAYS | G137: SECTION M3100
A138: BILL OF QUANTITIES: PART B: OPERATIONAL
A140: ITEM NO | C140: DESCRIPTION | D140: UNIT | E140: QUANTITY | F140: RATE | G140: AMOUNT
C142: BROUGHT FORWARD | G142: =G135 -> 50,000.00
A144: M310.07 | C144: Moving of existing fences and gates
A146: M310.07(a) | C146: Fences
A148: M310.07(a)(i) | C148: Stock-proof fences | D148: m | E148: 5 | G148: =F148*E148 -> 0.00
A150: M310.07(a)(ii) | C150: Vermin-proof fences | D150: m | E150: 5 | G150: =F150*E150 -> 0.00
A152: M310.07(a)(iii) | C152: Pedestrian fences | D152: m | E152: 5 | G152: 0.00
A154: M310.07(a)(iv) | C154: Security fences | D154: m | E154: 5 | G154: 0.00
A156: M310.07(a)(v) | C156: Steel palisade fences | D156: m | E156: 5 | G156: 0.00
A158: M310.07(a)(vi) | C158: Concrete palisade fences | D158: m | E158: 5 | G158: 0.00
A160: M310.07(a)(vii) | C160: Steel mesh fencing (razor mesh) | D160: m | E160: 5 | G160: 0.00
A162: M310.07(a)(viii) | C162: Flat wrap barbed wire fencing | D162: m | E162: 5 | G162: 0.00
A164: M310.07(b) | C164: Gates | D164: No | E164: 0 | G164: 0.00
A166: M310.08 | C166: Dismantling of existing and damaged fences | D166: m | E166: 20 | G166: 0.00
A168: M310.09 | C168: Drilling and blasting holes for posts and anchors | D168: No | E168: 10 | G168: 0.00
A170: M310.10 | C170: Procurement of specialised fencing
A172: M310.10(a) | C172: Procurement of specialised fencing (cattle grids) | D172: Prov Sum | E172: 1 | F172: 50,000.00 | G172: 50,000.00
A174: M310.10(b) | C174: The Contractors overhead charges and profit in
C175: respect of sub-item M310.10(a) | D175: % | E175: =G172 -> 50,000 | G175: =F175*E175 -> 0.00
A203: M3100 | C203: TOTAL CARRIED TO SUMMARY | G203: =SUM(G142:G202) -> 100,000.00

Sheet Part B - M3200 Non-toll
A1: ='Part A - Mng M0200 Non-toll'!A1 -> CONTRACT NRA N.017-010-2023/1 NON- TOLL
A2: ='Part A - Mng M0200 Non-toll'!A2 -> SCHEDULE A: ROUTINE ROAD MAINTENNACE OF GAUTENG JOHANNESBURG FREEWAYS | G2: SECTION M3200
A3: PART B : OPERATIONAL
A5: ITEM NO | C5: DESCRIPTION | D5: UNIT | E5: QUANTITY | F5: RATE | G5: AMOUNT
A8: M320 | C8: COLLECTION AND REMOVAL OF DEBRIS AND LITTER
A10: M320.02 | C10: General Clearing of the road reserve
A12: M320.02(b) | C12: Peri-Urban roads (state section and km distance
C13: incl. interchanges)
A15: M320.02(b)(i) | C15: N17 section 1 km 5.6 (0 Interchanges) | D15: Monthly | E15: 6 | G15: =F15*E15 -> 0.00
A17: M320.04 | C17: Removal of illegal dumpings
A19: M320.04(a ) | C19: Removal of illegal dumping material | D19: m3 | E19: 100 | G19: =F19*E19 -> 0.00
A21: M320.04(b ) | C21: Overall on material hauled in axces of 1.0 km | D21: m3/km | E21: 200 | G21: =F21*E21 -> 0.00
G56: =IF(OR(AND(E56="Prov",F56="Sum"),(F56="PC Sum")),". . . . . . . . .00",IF(ISERR(E56*F56),"",IF(E56*F56=0,"",ROUND(E56*F56,2)))) -> 
G64: =IF(OR(AND(E64="Prov",F64="Sum"),(F64="PC Sum")),". . . . . . . . .00",IF(ISERR(E64*F64),"",IF(E64*F64=0,"",ROUND(E64*F64,2)))) -> 
A68: =A8 -> M320 | C68: TOTAL CARRIED TO SUMMARY | G68: =SUM(G7:G66) -> 0.00

Sheet Part B - M3300 Non-toll
A1: ='Part A - Mng M0200 Non-toll'!A1 -> CONTRACT NRA N.017-010-2023/1 NON- TOLL
A2: ='Part A - Mng M0200 Non-toll'!A2 -> SCHEDULE A: ROUTINE ROAD MAINTENNACE OF GAUTENG JOHANNESBURG FREEWAYS | G2: SECTION M3300
A3: PART B : OPERATIONAL
A5: ITEM NO | C5: DESCRIPTION | D5: UNIT | E5: QUANTITY | F5: RATE | G5: AMOUNT
A8: M330 | C8: SHOULDER REPAIRS
A10: M330.01 | C10: Reinstating gravel shoulder
A12: M330.01(a) | C12: Ripping, watering, mixing, placing and compacting existing
C13: shoulders to 93 % of Mod AASHTO density | D13: m3 | E13: 100 | G13: =IF(OR(AND(E13="Prov",F13="Sum"),(F13="PC Sum")),". . . . . . . . .00",IF(ISERR(E13*F13),"",IF(E13*F13=0,"",ROUND(E13*F13,2)))) -> 
A15: M330.01(b) | C15: Extra over sub-item M330.01 (a) for adding extra material
A17: M330.01(b)(i) | C17: Borrowing in road reserve (within free haul distance, 1,0 km) | D17: m3 | E17: 10
A19: M330.01(b)(ii) | C19: Commercial sources | D19: m3 | E19: 10
A21: M330.01(b)(iii) | C21: Milled material | D21: m3 | E21: 10
A23: M330.01(c) | C23: Extra over for sub-item M330.01 (a) for stabilising material | D23: m3 | E23: 10
A25: M330.01(d) | C25: Extra over for sub-item M330.01 (a) for adding
C26: chemical stabilising agent
A28: M330.01(d)(i) | C28: Ordinary Portland cement | D28: ton | E28: 1
A30: M330.01(e) | C30: Extra over for sub-item M330.01(a ) for bituminous
C31: stablising agent (60% net bitumen)
A33: M330.01(e)(i) | C33: Anionic stable grade emulsion | D33: Litre | E33: 10
A35: M330.01(e)(ii) | C35: Cationic stable grade emulsion | D35: Litre | E35: 10
A37: M330.02 | C37: Blading of gravel shoulders
A39: M330.02(a) | C39: Blading of gravel shoulders | D39: km | E39: 2
A41: M330.02(b) | C41: Cutting of mitre drains | D41: m | E41: 10
A43: M330.03 | C43: Preparation of road reserve
A45: M330.03(a) | C45: Reserve with dual carriageway | D45: km | E45: 2
A47: M330.04 | C47: Overhaul on material in excess of the free-haul
C48: distance of 1,0km | D48: m3 - km | E48: 20
G50: =IF(OR(AND(E50="Prov",F50="Sum"),(F50="PC Sum")),". . . . . . . . .00",IF(ISERR(E50*F50),"",IF(E50*F50=0,"",ROUND(E50*F50,2)))) -> 
A74: =A8 -> M330 | C74: TOTAL CARRIED TO SUMMARY | G74: =SUM(G7:G72) -> 0.00

Sheet Part B - M3500 Non-toll
A1: ='Part A - Mng M0200 Non-toll'!A1 -> CONTRACT NRA N.017-010-2023/1 NON- TOLL
A2: ='Part A - Mng M0200 Non-toll'!A2 -> SCHEDULE A: ROUTINE ROAD MAINTENNACE OF GAUTENG JOHANNESBURG FREEWAYS | G2: SECTION M3500
A3: PART B : OPERATIONAL
A5: ITEM NO | C5: DESCRIPTION | D5: UNIT | E5: QUANTITY | F5: RATE | G5: AMOUNT
A8: M350 | C8: STABILISATION OF CUTTINGS
A10: M350.04 | C10: Stabilization of cutting by specialist service provider
A12: M350.04(a) | C12: Stabilization of cutting slopes by specialist. | D12: Prov Sum | E12: 1 | F12: 1,000,000.00 | G12: =IF(OR(AND(E12="Prov",F12="Sum"),(F12="PC Sum")),". . . . . . . . .00",IF(ISERR(E12*F12),"",IF(E12*F12=0,"",ROUND(E12*F12,2)))) -> 1,000,000.00
A14: M350.04(b) | C14: The Contractors overhead charges and profit in respect | D14: % | E14: =G12 -> 1,000,000
C15: of subitem M350.04(a)
G50: =IF(OR(AND(E50="Prov",F50="Sum"),(F50="PC Sum")),". . . . . . . . .00",IF(ISERR(E50*F50),"",IF(E50*F50=0,"",ROUND(E50*F50,2)))) -> 
A74: =A8 -> M350 | C74: TOTAL CARRIED TO SUMMARY | G74: =SUM(G7:G72) -> 1 000 000.00

Sheet Part B - M4100 Non-toll
A1: ='Part A - Mng M0200 Non-toll'!A1 -> CONTRACT NRA N.017-010-2023/1 NON- TOLL
A2: ='Part A - Mng M0200 Non-toll'!A2 -> SCHEDULE A: ROUTINE ROAD MAINTENNACE OF GAUTENG JOHANNESBURG FREEWAYS | G2: SECTION M4100
A3: PART B : OPERATIONAL
A5: ITEM NO | C5: DESCRIPTION | D5: UNIT | E5: QUANTITY | F5: RATE | G5: AMOUNT
A8: M410 | C8: ERECTION AND REPAIR OF PERMANENT ROAD TRAFFIC SIGNS
A10: M410.01 | C10: Erection or re-erection of road sign boards
A12: M410.01(a) | C12: Area not exceeding 2 m² | D12: m2 | E12: 8 | G12: =ROUND(E12*(ROUND(F12,2)),2) -> 0.00
A14: M410.01(b) | C14: Area exceeding 2 m² but not 10 m² | D14: m2 | E14: 8 | G14: 0.00
A16: M410.01(c) | C16: Area exceeding 10 m² | D16: m2 | E16: 3 | G16: 0.00
A18: M410.01(d) | C18: Overhead road sign boards | D18: m2 | E18: 1 | G18: 0.00
A20: M410.02 | C20: Hazard plates
A22: M410.02(a) | C22: Hazard plate and post (W401/402)
A24: M410.02(a)(ii) | C24: 800 mm x 150 mm | D24: No | E24: 8 | G24: 0.00
A26: M410.02(a)(iii) | C26: 1200 mm x 300 mm | D26: No | E26: 3 | G26: 0.00
A28: M410.02(b) | C28: Hazard Plate (W401/402)
A30: M410.02(b)(ii) | C30: 800 mm x 150 mm | D30: No | E30: 8 | G30: 0.00
A32: M410.02(b)(iii) | C32: 1200 mm x 300 mm | D32: No | E32: 8 | G32: 0.00
A34: M410.02(c) | C34: Hazard plate and post (W405/406)
A36: M410.02(c)(ii) | C36: 600mmx600mm | D36: No | E36: 8 | G36: 0.00
A38: M410.02(c)(iii) | C38: 900mmx900mm | D38: No | E38: 8 | G38: 0.00
A40: M410.02(d) | C40: Hazard Plate (W405/406)
A42: M410.02(d)(ii) | C42: 600mmx600mm | D42: No | E42: 8 | G42: 0.00
A44: M410.02(d)(iii) | C44: 900mmx900mm | D44: No | E44: 8 | G44: 0.00
A46: M410.03 | C46: Reference marker boards
A48: M410.03(a) | C48: Reference marker board and post
A50: M410.03(a)(ii) | C50: Board Drawing No SP-S-1-3/3 | D50: No | E50: 16 | G50: 0.00
A52: M410.03(b) | C52: Reference marker boards
A54: M410.03(b)(ii) | C54: Board Drawing No SP-S-1-3/3 | D54: No | E54: 8 | G54: 0.00
A56: M410.04 | C56: Road sign supports
A58: M410.04(a ) | C58: Steel tubing (50x50x2mm square tubing plus base plate) | D58: m | E58: 8 | G58: 0.00
A60: M410.04(b) | C60: Timber
A62: M410.04(b)(i) | C62: 100 - 125 mm | D62: m | E62: 10 | G62: 0.00
A64: M410.04(b)(ii) | C64: 125 - 150 mm | D64: m | E64: 10 | G64: 0.00
A66: M410.04(b)(iii) | C66: 150 - 175 mm | D66: m | E66: 10 | G66: 0.00
A68: M410.04(b)(iv) | C68: 175 - 200 mm | D68: m | E68: 10 | G68: 0.00
A70: M410.04(b)(v) | C70: 200 - 225 mm | D70: m | E70: 10 | G70: 0.00
C72: CARRIED FORWARD | G72: =SUM(G8:G71) -> 0.00
A73: CONTRACT NRA X.002-088-2019/1
A74: ROUTINE ROAD MAINTENANCE OF GAUTENG TSHWANE FREEWAYS | G74: SECTION M4100
A75: BILL OF QUANTITIES: PART B: OPERATIONAL
A77: ITEM NO | C77: DESCRIPTION | D77: UNIT | E77: QUANTITY | F77: RATE | G77: AMOUNT
C79: BROUGHT FORWARD | G79: =G72 -> 0.00
A81: M410.05 | C81: Excavation and backfilling for road sign supports
A83: M410.05(a) | C83: Excavation and Backfilling | D83: m3 | E83: 8 | G83: =ROUND(E83*(ROUND(F83,2)),2) -> 0.00
A85: M410.05(b) | C85: Extra over subitem M410.05(a) for rock excavation | D85: m3 | E85: 2 | G85: 0.00
A87: M410.05(c) | C87: Extra over subitem M410.05(a) for soilcrete backfill | D87: m3 | E87: 2 | G87: 0.00
A89: M410.05(d) | C89: Extra over subitem M410.05(a) for concrete backfill | D89: m3 | E89: 2 | G89: 0.00
A91: M410.06 | C91: Dismantling, storing and re-erecting road sign boards
A93: M410.06(a) | C93: Up to 2 m² | D93: No | E93: 5 | G93: 0.00
A95: M410.06(b) | C95: Exceeding 2 m² but not 10 m² | D95: No | E95: 5 | G95: 0.00
A97: M410.06(c) | C97: Exceeding 10 m² | D97: No | E97: 5 | G97: 0.00
A99: M410.07 | C99: Dismantling and storing road sign boards
A101: M410.07(a) | C101: Up to 2 m² | D101: No | E101: 5 | G101: 0.00
A103: M410.07(b) | C103: Exceeding 2 m² but not 10 m² | D103: No | E103: 5 | G103: 0.00
A105: M410.07(c) | C105: Exceeding 10 m² | D105: No | E105: 5 | G105: 0.00
A107: M410.08 | C107: Removal of road sign supports | D107: No | E107: 5 | G107: 0.00
A109: M410.09 | C109: Repair of road sign faces | D109: m2 | E109: 50 | G109: 0.00
A111: M410.11 | C111: Gravel drainage layer below road sign footings | D111: m3 | E111: 3 | G111: 0.00
A113: M410.12 | C113: Procurement of road sign boards
A115: M410.12(a) | C115: Procurement of road sign boards | D115: Prov.sum | E115: 1 | F115: 100,000.00 | G115: 100,000.00
A117: M410.12(b) | C117: Overhead charges and profit in respect of subitem M410.12(a) | D117: % | E117: =G115 -> 100,000 | G117: 0.00
A119: M410.13 | C119: Erection and repairs of gantry structures
A121: M410.13(a) | C121: Erection and repairs of gantry structures | D121: Prov.sum | E121: 1 | F121: 50,000.00 | G121: 50,000.00
A123: M410.13(b) | C123: Overhead charges and profit in respect
C124: of subitem M410.13(a) | D124: % | E124: =G121 -> 50,000 | G124: =ROUND(E124*(ROUND(F124,2)),2) -> 0.00
A126: M410.14 | C126: Supply of Road Signs
A128: M410.14(a) | C128: Road signs:R - and TR- series
A130: M410.14(a)(i) | C130: 900mm | D130: No | E130: 5 | G130: 0.00
A132: M410.14(a)(ii) | C132: 1200mm | D132: No | E132: 5 | G132: 0.00
A134: M410.14(b) | C134: Road signs: W- series
A136: M410.14(b)(i) | C136: 1200mm | D136: No | E136: 5 | G136: 0.00
A138: M410.14(b)(ii) | C138: 1500mm | D138: No | E138: 5 | G138: 0.00
A140: M410.14(c) | C140: Road signs: TW- series
A142: M410.14(c)(i) | C142: 1200mm | D142: No | E142: 5 | G142: 0.00
A144: M410.14(c)(ii) | C144: 1500mm | D144: No | E144: 5 | G144: 0.00
A147: M4100 | C147: TOTAL CARRIED TO SUMMARY | G147: =SUM(G79:G146) -> 150 000.00

Sheet Part B - M4200 Non-toll
A1: ='Part A - Mng M0200 Non-toll'!A1 -> CONTRACT NRA N.017-010-2023/1 NON- TOLL
A2: ='Part A - Mng M0200 Non-toll'!A2 -> SCHEDULE A: ROUTINE ROAD MAINTENNACE OF GAUTENG JOHANNESBURG FREEWAYS | G2: SECTION M4200
A3: PART B : OPERATIONAL
A5: ITEM NO | C5: DESCRIPTION | D5: UNIT | E5: QUANTITY | F5: RATE | G5: AMOUNT
A8: M420 | C8: ROAD SIGN CLEANING
A10: M420.01 | C10: Road sign cleaning
A12: M420.01(a) | C12: Cleaning of guard rail reflectors (all types)
A14: M420.01(a)(i) | C14: Cleaning of guard rail reflectors | D14: No | E14: 323 | G14: =F14*E14 -> 0.00
A16: M420.01(b) | C16: Cleaning of road signs
A18: M420.01(b)(i) | C18: Area up to 2 m² | D18: No | E18: 16 | G18: =F18*E18 -> 0.00
A20: M420.01(b)(ii) | C20: Area exceeding 2 m² up to 10 m² | D20: No | E20: 8 | G20: =F20*E20 -> 0.00
A22: M420.01(b)(iii) | C22: Area exceeding 10 m² | D22: No | E22: 3 | G22: =F22*E22 -> 0.00
A24: M420.01(c) | C24: Cleaning of overhead road signs (all sizes) | D24: No | E24: 1 | G24: =F24*E24 -> 0.00
A26: M420.02 | C26: Removal of graffiti
A28: M420.02(a) | C28: From road signs | D28: m2 | E28: 3 | G28: =F28*E28 -> 0.00
A30: M420.02(b) | C30: From structures | D30: m2 | E30: 3 | G30: =F30*E30 -> 0.00
A33: M421 | C33: REMOVAL OF ILLEGAL SIGNS
A35: M421.01 | C35: Removal of illegal signs
A37: M421.01(a) | C37: Signs within the road reserve:
A39: M421.01(a)(i) | C39: Area exceeding 0,5 m² up to 2 m² | D39: No | E39: 2 | G39: =F39*E39 -> 0.00
A41: M421.01(a)(ii) | C41: Area exceeding 2 m² up to 10 m² | D41: No | E41: 2 | G41: =F41*E41 -> 0.00
A43: M421.01(a)(iii) | C43: Area exceeding 10 m² | D43: No | E43: 0 | G43: =F43*E43 -> 0.00
A45: M421.01(b) | C45: Signs outside the road reserve:
A47: M421.01(b)(i) | C47: Signs outside the road reserve (Any size) | D47: Prov sum | E47: 1 | F47: 100,000.00 | G47: =F47*E47 -> 100,000.00
A49: M421.01(b)(ii) | C49: The Contractors overhead charges and profit in respect with item M421.01(b)(i) | D49: % | E49: =G47 -> 100,000 | G49: =F49*E49 -> 0.00
G50: =IF(OR(AND(E50="Prov",F50="Sum"),(F50="PC Sum")),". . . . . . . . .00",IF(ISERR(E50*F50),"",IF(E50*F50=0,"",ROUND(E50*F50,2)))) -> 
A67: =A8 -> M420 | C67: TOTAL CARRIED TO SUMMARY | G67: =SUM(G7:G65) -> 100 000.00

Sheet Part B - M4300 Non-toll
A1: ='Part A - Mng M0200 Non-toll'!A1 -> CONTRACT NRA N.017-010-2023/1 NON- TOLL
A2: ='Part A - Mng M0200 Non-toll'!A2 -> SCHEDULE A: ROUTINE ROAD MAINTENNACE OF GAUTENG JOHANNESBURG FREEWAYS | G2: SECTION M4300
A3: PART B : OPERATIONAL
A5: ITEM NO | C5: DESCRIPTION | D5: UNIT | E5: QUANTITY | F5: RATE | G5: AMOUNT
A8: M430 | C8: ROADSTUDS
A10: M430.01 | C10: Procurement and Installation of roadstuds
A12: M430.01(a) | C12: Procurement and Installation of roadstuds | D12: Prov sum | E12: 1 | F12: 20,000.00 | G12: =F12*E12 -> 20,000.00
A14: M430.01(b) | C14: The Contractors overhead charges and profit in
C15: respect of sub-item M430.01(a) | D15: % | E15: =G12 -> 20,000 | G15: =F15*E15 -> 0.00
A17: M430.02 | C17: Removal of damaged roadstuds
A19: M430.02(a) | C19: Surface type
A21: M430.02(a)(i) | C21: Bituminous pavements | D21: No | E21: 8 | G21: =F21*E21 -> 0.00
A23: M430.02(a)(ii) | C23: Concrete pavements | D23: No | E23: 3 | G23: =F23*E23 -> 0.00
A25: M430.02(b) | C25: Embedded type
A27: M430.02(b)(i) | C27: Bituminous pavements | D27: No | E27: 8 | G27: =F27*E27 -> 0.00
A29: M430.02(b)(ii) | C29: Concrete pavements | D29: No | E29: 3 | G29: =F29*E29 -> 0.00
A31: M430.02(c) | C31: Glass type MDS | D31: No | E31: 8 | G31: =F31*E31 -> 0.00
A33: M430.03 | C33: Replacement of roadstuds
A35: M430.03(a) | C35: Surface type with shank | D35: No | E35: 16 | G35: =F35*E35 -> 0.00
A37: M430.03(b) | C37: Surface type without shank | D37: No | E37: 16 | G37: =F37*E37 -> 0.00
A39: M430.03(c) | C39: Embedded type | D39: No | E39: 16 | G39: =F39*E39 -> 0.00
G42: =IF(OR(AND(E42="Prov",F42="Sum"),(F42="PC Sum")),". . . . . . . . .00",IF(ISERR(E42*F42),"",IF(E42*F42=0,"",ROUND(E42*F42,2)))) -> 
A66: =A8 -> M430 | C66: TOTAL CARRIED TO SUMMARY | G66: =SUM(G7:G64) -> 20 000.00

Sheet Part B - M4400 Non-toll
A1: ='Part A - Mng M0200 Non-toll'!A1 -> CONTRACT NRA N.017-010-2023/1 NON- TOLL
A2: ='Part A - Mng M0200 Non-toll'!A2 -> SCHEDULE A: ROUTINE ROAD MAINTENNACE OF GAUTENG JOHANNESBURG FREEWAYS | G2: SECTION M4400
A3: PART B : OPERATIONAL
A5: ITEM NO | C5: DESCRIPTION | D5: UNIT | E5: QUANTITY | F5: RATE | G5: AMOUNT
A8: M440 | C8: GUARD-RAIL ERECTION AND MAINTENANCE
A10: M440.01 | C10: Supply and erection of new galvanised guard rails
A12: M440.01(a) | C12: 3,81 m guardrail | D12: m | E12: 20 | G12: =IF(OR(AND(E12="Prov",F12="Sum"),(F12="PC Sum")),". . . . . . . . .00",IF(ISERR(E12*F12),"",IF(E12*F12=0,"",ROUND(E12*F12,2)))) -> 
A15: M440.02 | C15: Supply and erection of new galvanised curved guard rails
C16: factory bent to a radius of less than 45,0 m
A18: M440.02(a) | C18: 3,81 m guardrail | D18: m | E18: 2
A21: M440.03 | C21: Extra over for erection of guard rail posts
A23: M440.03(a) | C23: Additional timber posts for payment item M440.01, M440.02
A25: M440.03(a)(i) | C25: Timber Post | D25: No | E25: 5
A27: M440.03(a)(ii) | C27: Steel post | D27: No | E27: 2
A29: M440.03(a)(iii) | C29: Steel post (sigma post) | D29: No | E29: 2
A31: M440.03(b) | C31: Excavation in hard material
A33: M440.03(b)(i) | C33: Timber Post | D33: No | E33: 2
A35: M440.03(b)(ii) | C35: Steel post | D35: No | E35: 2
A37: M440.03(c) | C37: Backfilling guard-rail post with soilcrete
A39: M440.03(c)(i) | C39: Timber Post | D39: No | E39: 2
A41: M440.03(c)(ii) | C41: Steel post | D41: No | E41: 2
A43: M440.03(d) | C43: Backfilling guard-rail post with concrete
A45: M440.03(d)(i) | C45: Timber Post | D45: No | E45: 2
A47: M440.03(d)(ii) | C47: Steel post | D47: No | E47: 2
A49: M440.04 | C49: End units
A51: M440.04(a) | C51: End wings
A53: M440.04(a)(i) | C53: 3,81 m guardrail | D53: No | E53: 2
A56: M440.04(b) | C56: Terminal sections in accordance with the drawings where
C57: single guard rail sections are used
A59: M440.04(b)(i) | C59: 3,81 m guardrail | D59: No | E59: 2
C76: CARRIED FORWARD | G76: =SUM(G8:G75) -> 0.00
A77: CONTRACT NRA X.002-088-2019/1
A78: ROUTINE ROAD MAINTENANCE OF GAUTENG TSHWANE FREEWAYS | G78: SECTION M4400
A79: BILL OF QUANTITIES: PART B: OPERATIONAL
A81: ITEM NO | C81: DESCRIPTION | D81: UNIT | E81: QUANTITY | F81: RATE | G81: AMOUNT
C83: BROUGHT FORWARD | G83: =G76 -> 0.00
A85: M440.04(c) | C85: Terminal sections in accordance with the drawings where
C86: double guard rail sections are used
A88: M440.04(c)(i) | C88: 3,81 m guardrail | D88: No | E88: 2 | G88: =IF(OR(AND(E88="Prov",F88="Sum"),(F88="PC Sum")),". . . . . . . . .00",IF(ISERR(E88*F88),"",IF(E88*F88=0,"",ROUND(E88*F88,2)))) -> 
A91: M440.04(d) | C91: Bull nose end units
A93: M440.04(d)(i) | C93: 3,81 m guardrail | D93: No | E93: 2
A96: M440.04(e) | C96: End unit connecting to Bridge barrier | D96: No | E96: 2
A98: M440.05 | C98: Guard rail reflectors | D98: No | E98: 100
A100: M440.06 | C100: Removal of damaged guard rails and re-erection of
C101: guard rails with new material
A103: M440.06(a) | C103: Guard rails
A105: M440.06(a)(i) | C105: 3,81 m guardrail | D105: m | E105: 2,000
A108: M440.06(b) | C108: End wings
A110: M440.06(b)(i) | C110: 3,81 m guardrail | D110: No | E110: 10
A113: M440.06(c) | C113: Terminal sections with single guard rails
A115: M440.06(c)(i) | C115: 3,81 m guardrail | D115: No | E115: 2
A118: M440.06(d) | C118: Terminal sections with double guard rails
A120: M440.06(d)(i) | C120: 3,81 m guardrail | D120: No | E120: 2
A123: M440.06(e) | C123: Extra over for providing additional guard-rail posts
A125: M440.06(e)(i) | C125: Timber post | D125: No | E125: 150
C152: CARRIED FORWARD | G152: =SUM(G83:G151) -> 0.00
A153: CONTRACT NRA X.002-088-2019/1
A154: ROUTINE ROAD MAINTENANCE OF GAUTENG TSHWANE FREEWAYS | G154: SECTION M4400
A155: BILL OF QUANTITIES: PART B: OPERATIONAL
A157: ITEM NO | C157: DESCRIPTION | D157: UNIT | E157: QUANTITY | F157: RATE | G157: AMOUNT
C159: BROUGHT FORWARD | G159: =G152 -> 0.00
A161: M440.07 | C161: Providing of new material required for the re-erection of gaurdrails
A163: M440.07(a ) | C163: Supply of new straight guardrails (3,81m guardrails) | D163: m | E163: 1,000 | G163: =IF(OR(AND(E163="Prov",F163="Sum"),(F163="PC Sum")),". . . . . . . . .00",IF(ISERR(E163*F163),"",IF(E163*F163=0,"",ROUND(E163*F163,2)))) -> 
A166: M440.07(b) | C166: Supply of new curved guardrails (3,81m guardrails) | D166: m | E166: 5
A169: M440.07(c) | C169: Timber posts | D169: No | E169: 50
A171: M440.07(d ) | C171: Spacer blocks (3.81m guardrail) | D171: No | E171: 50
A174: M440.07(e ) | C174: Steel posts
A176: M440.07(e ) (i) | C176: Z-post (3.81m guardrail) | D176: No | E176: 5
A179: M440.07(f) | C179: Guardrail reflectors
A181: M440.07(f)(i) | C181: Type D1 (A) | D181: No | E181: 100
A183: M440.07(g) | C183: End Units
A185: M440.07(g)(i) | C185: End wings | D185: No | E185: 5
A187: M440.07(g)(ii) | C187: Terminal sections with single guardrails (3.81m guardrail) | D187: No | E187: 2
A190: M440.07(g)(iii) | C190: Terminal sections with double guardrails (3.81m guardrail) | D190: No | E190: 2
A193: M440.07(g)(iv) | C193: Bull nose end units | D193: No | E193: 2
A195: M440.09 | C195: Reinstatement of concrete to guardrail post (15/19) | D195: m3 | E195: 2
A197: M440.10 | C197: Re-alignment of guard rails
A199: M440.10(i) | C199: 3,81 m guardrail | D199: m | E199: 100
A202: M440.12 | C202: Installation and repair of wire rope safety fence
A204: M440.12(a) | C204: Installation and repair of wire rope safety fence | D204: Prov Sum | E204: 1 | F204: 50,000.00 | G204: 50,000.00
A206: M440.12(b) | C206: Handling costs and profit in respect of sub-item M440.12(a) | D206: % | E206: =G204 -> 50,000
C227: CARRIED FORWARD | G227: =SUM(G159:G226) -> 50,000.00
A228: CONTRACT NRA X.002-088-2019/1
A229: ROUTINE ROAD MAINTENANCE OF GAUTENG TSHWANE FREEWAYS | G229: SECTION M4400
A230: BILL OF QUANTITIES: PART B: OPERATIONAL
A232: ITEM NO | C232: DESCRIPTION | D232: UNIT | E232: QUANTITY | F232: RATE | G232: AMOUNT
C234: BROUGHT FORWARD | G234: =G227 -> 50,000.00
A236: M440.14 | C236: Repair of damaged wire rope safety fence and re-erection of
C237: wire rope safety fence with new, recovered or
C238: renovated material
A240: M440.14(a) | C240: Repair of Wire Rope Safety Fence Installation | D240: m | E240: 200 | G240: =IF(OR(AND(E240="Prov",F240="Sum"),(F240="PC Sum")),". . . . . . . . .00",IF(ISERR(E240*F240),"",IF(E240*F240=0,"",ROUND(E240*F240,2)))) -> 
A242: M440.14(c) | C242: Anchor Blocks | D242: No | E242: 4
A244: M440.15 | C244: Re-tensioning of wire rope safety fence | D244: No | E244: 2
A246: M440.16 | C246: Installation and repair of Impact Antenuators - Crash
C247: Cushion
A249: M440.16(a) | C249: Installation and repair of Impact Antenuators - Crash Cushion | D249: Prov Sum | E249: 1 | F249: 100,000.00 | G249: 100,000.00
A251: M440.16(b) | C251: The Contractors overhead charges and profit in respect of
C252: sub-item M440.16(a) | D252: % | E252: =G249 -> 100,000 | G252: =IF(OR(AND(E252="Prov",F252="Sum"),(F252="PC Sum")),". . . . . . . . .00",IF(ISERR(E252*F252),"",IF(E252*F252=0,"",ROUND(E252*F252,2)))) -> 
A254: M440.17 | C254: Repairing of damaged wire rope safety fence
A256: M440.17(a) | C256: Safe Fence materials
A258: M440.17(a)(i) | C258: Stainless steel rigging screws | D258: No | E258: 5
A259: M440.17(a)(ii) | C259: Stainless steel swage fittings | D259: No | E259: 5
A260: M440.17(a)(iii) | C260: Stainless steel flat bar to end anchor | D260: No | E260: 5
A261: M440.17(a)(iv) | C261: Galvanised steel post | D261: No | E261: 200
A262: M440.17(a)(v) | C262: Stainless steel stiffening frame | D262: No | E262: 200
A263: M440.17(a)(vi) | C263: Steel spreader to end post | D263: No | E263: 200
A264: M440.17(a)(vii) | C264: Plastic spreader | D264: No | E264: 200
A265: M440.17(a)(viii) | C265: Plastic ground cover | D265: No | E265: 200
A266: M440.17(a)(ix) | C266: Plastic post caps | D266: No | E266: 200
A267: M440.17(a)(x) | C267: Reflective strips to post caps (Class 3 High Int) | D267: No | E267: 10
A268: M440.17(a)(xi) | C268: Reflective strips to post (Class 3 High Int) | D268: No | E268: 300
A269: M440.17(a)(xii) | C269: Pastic ties to post cap | D269: No | E269: 200
A270: M440.17(a)(xiii) | C270: Galvanised wire rope | D270: m | E270: 10
A271: M440.17(a)(xiv) | C271: End anchor frames galvanised | D271: No | E271: 10
A272: M440.17(a)(xv) | C272: Pre cast footings 200 diameter x 600 mm | D272: No | E272: 10
A274: M440.17(c) | C274: Placement of concrete barriers | G274: =IF(OR(AND(E274="Prov",F274="Sum"),(F274="PC Sum")),". . . . . . . . .00",IF(ISERR(E274*F274),"",IF(E274*F274=0,"",ROUND(E274*F274,2)))) -> 
A276: M440.17(c)(i) | C276: Loading of barriers | D276: m | E276: 50
A277: M440.17(c)(ii) | C277: Off loading of barriers | D277: m | E277: 50
A278: M440.17(c)(iii) | C278: Leveling and placing of barriers in position | D278: m | E278: 50
A279: M440.17(c)(iv) | C279: Tieing barriers together (Doweling) | D279: No | E279: 50
A280: M440.17(c)(v) | C280: Overhaul for transport barriers | D280: m/km | E280: 500
A302: =A8 -> M440 | C302: TOTAL CARRIED TO SUMMARY | G302: =SUM(G234:G301) -> 150 000.00

Sheet Part B - M4500 Non-toll
A1: ='Part A - Mng M0200 Non-toll'!A1 -> CONTRACT NRA N.017-010-2023/1 NON- TOLL
A2: ='Part A - Mng M0200 Non-toll'!A2 -> SCHEDULE A: ROUTINE ROAD MAINTENNACE OF GAUTENG JOHANNESBURG FREEWAYS | G2: SECTION M4500
A3: PART B : OPERATIONAL
A5: ITEM NO | C5: DESCRIPTION | D5: UNIT | E5: QUANTITY | F5: RATE | G5: AMOUNT
A8: M450 | C8: DAZZLE SCREEN ERECTION AND REPLACEMENT
A10: M450.01 | C10: Supply and erection of dazzle screens
A12: M450.01(a) | C12: Metal | D12: m | E12: 2 | G12: =ROUND(E12*(ROUND(F12,2)),2) -> 0.00
A14: M450.02 | C14: Supply and erection of dazzle screen supporting posts
A16: M450.02(a) | C16: Metal | D16: No | E16: 2 | G16: =ROUND(E16*(ROUND(F16,2)),2) -> 0.00
A18: M450.03 | C18: Removal of damaged dazzle screens and supporting posts | D18: m | E18: 2 | G18: 0.00
G28: =IF(OR(AND(E28="Prov",F28="Sum"),(F28="PC Sum")),". . . . . . . . .00",IF(ISERR(E28*F28),"",IF(E28*F28=0,"",ROUND(E28*F28,2)))) -> 
A71: =A8 -> M450 | C71: TOTAL CARRIED TO SUMMARY | G71: =SUM(G7:G69) -> 0.00

Sheet Part B - M4600 Non-toll
A1: ='Part A - Mng M0200 Non-toll'!A1 -> CONTRACT NRA N.017-010-2023/1 NON- TOLL
A2: ='Part A - Mng M0200 Non-toll'!A2 -> SCHEDULE A: ROUTINE ROAD MAINTENNACE OF GAUTENG JOHANNESBURG FREEWAYS | G2: SECTION M4600
A3: PART B : OPERATIONAL
A5: ITEM NO | C5: DESCRIPTION | D5: UNIT | E5: QUANTITY | F5: RATE | G5: AMOUNT
A8: M460 | C8: ROAD MARKINGS
A10: M460.02 | C10: Retro-reflective road-marking paint:
A12: M460.02(a) | C12: White lines (broken or unbroken) (width of line indicated)
A14: M460.02(a)(i) | C14: 100mm wide | D14: km | E14: 1 | G14: =ROUND(E14*(ROUND(F14,2)),2) -> 0.00
A16: M460.02(a)(ii) | C16: 150mm wide | D16: km | E16: 1 | G16: =ROUND(E16*(ROUND(F16,2)),2) -> 0.00
A18: M460.02(a)(iii) | C18: 200mm wide | D18: km | E18: 1 | G18: 0.00
A20: M460.02(a)(iv) | C20: 300mm wide | D20: km | E20: 1 | G20: 0.00
A22: M460.02(b) | C22: Yellow lines (broken or unbroken) (width of line indicated)
A24: M460.02(b)(i) | C24: 100mm Wide | D24: km | E24: 1 | G24: 0.00
A26: M460.02(b)(ii) | C26: 150mm Wide | D26: km | E26: 1 | G26: 0.00
A28: M460.02(b)(iii) | C28: 300mm wide | D28: km | E28: 1 | G28: 0.00
A30: M460.02(d) | C30: White lettering and symbols | D30: m2 | E30: 8 | G30: 0.00
A32: M460.02(f) | C32: Transverse lines, painted island and arrestor bed
C33: markings (any colour) | D33: m2 | E33: 8 | G33: =ROUND(E33*(ROUND(F33,2)),2) -> 0.00
A35: M460.04 | C35: Setting out and pre-marking the lines (excluding traffic-
C36: island markings, lettering and symbols) | D36: km | E36: 2 | G36: =ROUND(E36*(ROUND(F36,2)),2) -> 0.00
A38: M460.05 | C38: Removal of existing, temporary or permanent road
C39: markings by:
A41: M460.05(a) | C41: Sandblasting | D41: m2 | E41: 16 | G41: 0.00
A43: M460.06 | C43: Road markings:
A45: M460.06(a) | C45: Road markings: | D45: Prov Sum | E45: 1 | F45: 200,000.00 | G45: =ROUND(E45*(ROUND(F45,2)),2) -> 200 000.00
A47: M460.06(b) | C47: The Contractors overhead charges and profit in respect
C48: of sub-item M460.06(a) | D48: % | E48: =G45 -> 200,000 | G48: =ROUND(E48*(ROUND(F48,2)),2) -> 0.00
G51: =IF(OR(AND(E51="Prov",F51="Sum"),(F51="PC Sum")),". . . . . . . . .00",IF(ISERR(E51*F51),"",IF(E51*F51=0,"",ROUND(E51*F51,2)))) -> 
A73: =A8 -> M460 | C73: TOTAL CARRIED TO SUMMARY | G73: =SUM(G7:G71) -> 200 000.00

Sheet Part B - M5100 Non-toll
A1: ='Part A - Mng M0200 Non-toll'!A1 -> CONTRACT NRA N.017-010-2023/1 NON- TOLL
A2: ='Part A - Mng M0200 Non-toll'!A2 -> SCHEDULE A: ROUTINE ROAD MAINTENNACE OF GAUTENG JOHANNESBURG FREEWAYS | G2: SECTION M5100
A3: PART B : OPERATIONAL
A5: ITEM NO | C5: DESCRIPTION | D5: UNIT | E5: QUANTITY | F5: RATE | G5: AMOUNT
A8: M510 | C8: GENERAL EROSION PROTECTION
A10: M510.01 | C10: Stone pitching
A12: M510.01(b) | C12: Grouted pitching | D12: m2 | E12: 8 | G12: =ROUND(E12*(ROUND(F12,2)),2) -> 0.00
A14: M510.01(d) | C14: Grouted pitching on a concrete bed (total thickness 200mm) | D14: m2 | E14: 8 | G14: =ROUND(E14*(ROUND(F14,2)),2) -> 0.00
A16: M510.03 | C16: Foundations
A18: M510.03(a) | C18: Excavation of foundation trenches | D18: m3 | E18: 2 | G18: 0.00
A20: M510.03(b) | C20: Concrete foundations | D20: m3 | E20: 2 | G20: 0.00
A22: M510.04 | C22: Stone masonry walls
A24: M510.04(b) | C24: Cement-mortared stone walls | D24: m3 | E24: 3 | G24: 0.00
A26: M510.05 | C26: Precast concrete block retaining walls
A28: M510.05(a) | C28: Precast concrete block retaining walls | D28: Prov Sum | E28: 1 | F28: 20,000.00 | G28: 20 000.00
A30: M510.05(b) | C30: Overhead charges and profit in respect of subitem M510.05(a) | D30: % | E30: =G28 -> 20,000 | G30: 0.00
A32: M510.06 | C32: Concrete paving and block paving
A34: M510.06(b) | C34: Segmented block paving (type, 80mm) | D34: m2 | E34: 3 | G34: 0.00
A36: M510.06(c) | C36: Prefabricated concrete grass blocks | D36: m2 | E36: 2 | G36: 0.00
A38: M510.06(d) | C38: Prefabricated concrete paving blocks for sidewalk pavement (50mm) | D38: m2 | E38: 3 | G38: 0.00
A40: M510.07 | C40: Concrete edge beams | D40: m3 | E40: 1 | G40: 0.00
A42: M510.08 | C42: Spraying of vegetation destroyer and ant poison
A44: M510.08(a) | C44: Herbicide
A46: M510.08(a)(i) | C46: Selective (contractor to specify brand name) | D46: Litre | E46: 3 | G46: 0.00
A48: M510.08(a)(ii) | C48: Non selective (contractor to specify brand name) | D48: Litre | E48: 3 | G48: 0.00
A50: M510.08(b) | C50: Ant poison (Contractor to specify brand name) | D50: Litre | E50: 3 | G50: 0.00
A52: M510.09 | C52: Biodegradable Fabric
A54: M510.09(a) | C54: Biodegradable woven fabric, jute yarn | D54: Prov Sum | E54: 1 | F54: 10,000.00 | G54: 10 000.00
A56: M510.09(b) | C56: Overhead charges and profit in respect of subitem M510.09(a) | D56: % | E56: =G54 -> 10,000 | G56: 0.00
A74: M5100 | C74: TOTAL CARRIED TO SUMMARY | G74: =SUM(G8:G73) -> 30 000.00

Sheet Part B - M5200 Non-toll
A1: ='Part A - Mng M0200 Non-toll'!A1 -> CONTRACT NRA N.017-010-2023/1 NON- TOLL
A2: ='Part A - Mng M0200 Non-toll'!A2 -> SCHEDULE A: ROUTINE ROAD MAINTENNACE OF GAUTENG JOHANNESBURG FREEWAYS | G2: SECTION M5200
A3: PART B : OPERATIONAL
A5: ITEM NO | C5: DESCRIPTION | D5: UNIT | E5: QUANTITY | F5: RATE | G5: AMOUNT
A8: M520 | C8: GABION PROTECTION
A10: M520.01 | C10: Foundation trench excavation and backfilling
A12: M520.01(a) | C12: In solid rock (material which requires blasting) | D12: m3 | E12: 2 | G12: =ROUND(E12*(ROUND(F12,2)),2) -> 0.00
A14: M520.01(b) | C14: In all other classes of material | D14: m3 | E14: 8 | G14: 0.00
A16: M520.02 | C16: Surface preparation for bedding the gabions | D16: m2 | E16: 8 | G16: 0.00
A18: M520.03 | C18: Gabions
A20: M520.03(a) | C20: Gabion baskett (1000x2000 and 80x100x2.5mm,
C21: diaphragm spacing 1000mm) | D21: m3 | E21: 2 | G21: =ROUND(E21*(ROUND(F21,2)),2) -> 0.00
A23: M520.03(c) | C23: Gagion mattresses (0.3 by 80x100, wire 2.2mm,
C24: diaphragm spacing 1000mm) | D24: m3 | E24: 2 | G24: =ROUND(E24*(ROUND(F24,2)),2) -> 0.00
A26: M520.04 | C26: Geotextile (specify type and grade) | D26: m2 | E26: 8 | G26: 0.00
G41: =IF(OR(AND(E41="Prov",F41="Sum"),(F41="PC Sum")),". . . . . . . . .00",IF(ISERR(E41*F41),"",IF(E41*F41=0,"",ROUND(E41*F41,2)))) -> 
A70: =A8 -> M520 | C70: TOTAL CARRIED TO SUMMARY | G70: =SUM(G7:G68) -> 0.00

Sheet Part B - M6100 Non-toll
A1: ='Part A - Mng M0200 Non-toll'!A1 -> CONTRACT NRA N.017-010-2023/1 NON- TOLL
A2: ='Part A - Mng M0200 Non-toll'!A2 -> SCHEDULE A: ROUTINE ROAD MAINTENNACE OF GAUTENG JOHANNESBURG FREEWAYS | G2: SECTION M6100
A3: PART B : OPERATIONAL
A5: ITEM NO | C5: DESCRIPTION | D5: UNIT | E5: QUANTITY | F5: RATE | G5: AMOUNT
A8: M610 | C8: GENERAL AND SHOULDER MOW
A10: M610.04 | C10: General mow - performance based
A12: M610.04(a) | C12: Reserve with dual carriageway (State section
C13: and km distance incl. I/C)
A15: M610.04(a)(i) | C15: N17 section 1 distance 5.6 km (0 interchanges) | D15: Month | E15: 6 | G15: =ROUND(E15*(ROUND(F15,2)),2) -> 0.00
A17: M611.03 | C17: Mowing of additional areas
A19: M611.03(a) | C19: Ad-hoc areas | D19: m2 | E19: 800 | G19: =ROUND(E19*(ROUND(F19,2)),2) -> 0.00
A21: M611.03(c) | C21: Fence line
A23: M611.03(c)(i) | C23: 1,0m wide | D23: km | E23: 2 | G23: =ROUND(E23*(ROUND(F23,2)),2) -> 0.00
A25: M611.03(d) | C25: 1,0m wide either side of concrete drains and pedestian path | D25: km | E25: 2 | G25: =ROUND(E25*(ROUND(F25,2)),2) -> 0.00
A27: M611.03(e) | C27: Mowing of additional SANRAL properties | D27: ha | E27: 5 | G27: 0.00
A69: M6100 | C69: TOTAL CARRIED TO SUMMARY | G69: =SUM(G8:G68) -> 0.00

Sheet Part B - M6200 Non-toll
A1: ='Part A - Mng M0200 Non-toll'!A1 -> CONTRACT NRA N.017-010-2023/1 NON- TOLL
A2: ='Part A - Mng M0200 Non-toll'!A2 -> SCHEDULE A: ROUTINE ROAD MAINTENNACE OF GAUTENG JOHANNESBURG FREEWAYS | G2: SECTION M6200
A3: PART B : OPERATIONAL
A5: ITEM NO | C5: DESCRIPTION | D5: UNIT | E5: QUANTITY | F5: RATE | G5: AMOUNT
A8: M620 | C8: CHEMICAL CONTROL OF UNDESIRABLE VEGETATION
A10: M620.01 | C10: Annual chemical eradication of undesirable vegetation
A12: M620.01(a) | C12: Reserve with dual carriageway (State section and
C13: km distance incl. Interchanges)
A15: M620.01(a)(i) | C15: N17 section 1 distance 5.6 km (0 interchanges) | D15: No | E15: 1 | G15: =ROUND(E15*(ROUND(F15,2)),2) -> 0.00
A17: M620.02 | C17: Additional chemical eradication of undesirable vegetation and control
C18: of vegetation growth on instruction from the Engineer
A20: M620.02(a) | C20: Isolated areas | D20: m2 | E20: 2 | G20: =ROUND(E20*(ROUND(F20,2)),2) -> 0.00
A22: M620.02(b) | C22: Dense areas (areas more than 20% infested) | D22: ha | E22: 1 | G22: =ROUND(E22*(ROUND(F22,2)),2) -> 0.00
A24: M620.02(c) | C24: Shoulder weedspray | D24: km | E24: 2 | G24: =ROUND(E24*(ROUND(F24,2)),2) -> 0.00
A26: M620.02(d) | C26: Extra over sub-item M620.02 (c) under guardrails | D26: km | E26: 2 | G26: =ROUND(E26*(ROUND(F26,2)),2) -> 0.00
A28: M620.02(e) | C28: Between road reserve fence and neighbouring solid wall | D28: m2 | E28: 50 | G28: =ROUND(E28*(ROUND(F28,2)),2) -> 0.00
A30: M620.02(g) | C30: Openings, cracks and jointson concrete channels,
C31: lay-byes and block paved areas, and joints between the
C32: road pavement and concrete channels
A34: M620.02(g)(i) | C34: Road reserve with dual carriageway(State section and
C35: km distance incl. Interchanges)
A37: M620.02(g)(i)(a) | C37: N17 section 1 distance 5.6 km (0 interchanges) | D37: No | E37: 1 | G37: =ROUND(E37*(ROUND(F37,2)),2) -> 0.00
A75: M6200 | C75: TOTAL CARRIED TO SUMMARY | G75: =SUM(G12:G74) -> 0.00

Sheet Part B - M6300 Non-toll
A1: ='Part A - Mng M0200 Non-toll'!A1 -> CONTRACT NRA N.017-010-2023/1 NON- TOLL
A2: ='Part A - Mng M0200 Non-toll'!A2 -> SCHEDULE A: ROUTINE ROAD MAINTENNACE OF GAUTENG JOHANNESBURG FREEWAYS | G2: SECTION M6300
A3: PART B : OPERATIONAL
A5: ITEM NO | C5: DESCRIPTION | D5: UNIT | E5: QUANTITY | F5: RATE | G5: AMOUNT
A8: M630 | C8: REMOVAL OF UNDESIRABLE VEGETATION: PHYSICAL ERADICATION
A10: M630.01 | C10: Eradication of undesired vegetation
A12: M630.01(a) | C12: Initial eradication
A14: M630.01(a)(i) | C14: Undesirable vegetation and trees with a girth of | D14: LS | E14: 1 | G14: =E14*F14 -> 0.00
C15: 0 to 150mm (for entire route)
A17: M630.01(a)(ii) | C17: Trees with a girth exceeding 151mm to 500mm | D17: LS | E17: 1 | G17: =ROUND(E17*(ROUND(F17,2)),2) -> 0.00
C18: for entire route
A20: M630.01(b) | C20: Annual Eradication (specify section and km
C21: distance including interchanges)
A23: M630.01(b)(i) | C23: N17 section 1 distance 5.6 km (0 interchanges) | D23: No | E23: 1 | G23: =ROUND(E23*(ROUND(F23,2)),2) -> 0.00
A25: M630.02 | C25: Tree felling on instruction from the Engineer
A27: M630.02(a) | C27: Girth exceeding 150 mm to 500 mm | D27: No | E27: 8 | G27: =ROUND(E27*(ROUND(F27,2)),2) -> 0.00
A29: M630.02(b) | C29: Girth exceeding 500 mm up to 1 000 mm | D29: No | E29: 8 | G29: =ROUND(E29*(ROUND(F29,2)),2) -> 0.00
A31: M630.02(c) | C31: Girth exceeding 1 000 mm up to 2 000 mm | D31: No | E31: 2 | G31: =ROUND(E31*(ROUND(F31,2)),2) -> 0.00
A33: M630.02(d) | C33: Girth exceeding 2 000 mm up to 4 000 mm | D33: No | E33: 2 | G33: =ROUND(E33*(ROUND(F33,2)),2) -> 0.00
A35: M630.02(e) | C35: Girth exceeding 4 000 mm | D35: No | E35: 1 | G35: =ROUND(E35*(ROUND(F35,2)),2) -> 0.00
A37: M630.03 | C37: Burning of fire breaks per operation
A39: M630.03(b) | C39: 5m wide fire breaks from edge of road surface to
C40: road reserve fence
A42: M630.03(b)(i) | C42: N17 section 1 distance 5.6 km (0 interchanges) | D42: No | E42: 1 | G42: =ROUND(E42*(ROUND(F42,2)),2) -> 0.00
A44: M630.04 | C44: Additional eradiction of undesired vegetation as
C45: instructed by the Engineer | D45: ha | E45: 1 | G45: =ROUND(E45*(ROUND(F45,2)),2) -> 0.00
G57: =IF(OR(AND(E57="Prov",F57="Sum"),(F57="PC Sum")),". . . . . . . . .00",IF(ISERR(E57*F57),"",IF(E57*F57=0,"",ROUND(E57*F57,2)))) -> 
A70: =A8 -> M630 | C70: TOTAL CARRIED TO SUMMARY | G70: =SUM(G7:G68) -> 0.00

Sheet Part B - M6400 Non-toll
A1: ='Part A - Mng M0200 Non-toll'!A1 -> CONTRACT NRA N.017-010-2023/1 NON- TOLL
A2: ='Part A - Mng M0200 Non-toll'!A2 -> SCHEDULE A: ROUTINE ROAD MAINTENNACE OF GAUTENG JOHANNESBURG FREEWAYS | G2: SECTION M6400
A3: PART B : OPERATIONAL
A5: ITEM NO | C5: DESCRIPTION | D5: UNIT | E5: QUANTITY | F5: RATE | G5: AMOUNT
A8: M640 | C8: MAINTENANCE AND ESTABLISHMENT OF PLANTS,
C9: TREES AND SHRUBS
A11: M640.02 | C11: Trimming of shrubs and hedges
A13: M640.02(a) | C13: Annual trimming of shrubs and hedges
A15: M640.02(a)(i) | C15: Reserve with dual carriageway (State section
C16: and km distance incl. Intersections)
A18: M640.02(a)(i)(a) | C18: N17 section 1 distance 5.6 km (0 interchanges) | D18: No | E18: 1 | G18: =ROUND(E18*(ROUND(F18,2)),2) -> 0.00
A20: M640.03 | C20: Preparing plant holes
A22: M640.03(a) | C22: Trees | D22: No | E22: 8 | G22: =ROUND(E22*(ROUND(F22,2)),2) -> 0.00
A24: M640.04 | C24: Supply of trees,shrubs and hedge plants
A26: M640.04(a) | C26: Supply of trees,shrubs and hedge plants | D26: Prov Sum | E26: 1 | F26: 10,000.00 | G26: =ROUND(E26*(ROUND(F26,2)),2) -> 10,000.00
A28: M640.04(b) | C28: The Contractors overhead charges and profit in
C29: respect of sub-item M640.04(a) | D29: % | E29: =G26 -> 10,000 | G29: =ROUND(E29*(ROUND(F29,2)),2) -> 0.00
A31: M640.05 | C31: Watering of trees, shrubs and grass | D31: kl | E31: 200 | G31: =ROUND(E31*(ROUND(F31,2)),2) -> 0.00
A33: M640.06 | C33: Trimming of trees on instruction of engineer | D33: No | E33: 100 | G33: =ROUND(E33*(ROUND(F33,2)),2) -> 0.00
G49: =IF(OR(AND(E49="Prov",F49="Sum"),(F49="PC Sum")),". . . . . . . . .00",IF(ISERR(E49*F49),"",IF(E49*F49=0,"",ROUND(E49*F49,2)))) -> 
G61: =IF(OR(AND(E61="Prov",F61="Sum"),(F61="PC Sum")),". . . . . . . . .00",IF(ISERR(E61*F61),"",IF(E61*F61=0,"",ROUND(E61*F61,2)))) -> 
A71: =A8 -> M640 | C71: TOTAL CARRIED TO SUMMARY | G71: =SUM(G7:G69) -> 10 000.00

Sheet Part B - M6500 Non-toll
A1: ='Part A - Mng M0200 Non-toll'!A1 -> CONTRACT NRA N.017-010-2023/1 NON- TOLL
A2: ='Part A - Mng M0200 Non-toll'!A2 -> SCHEDULE A: ROUTINE ROAD MAINTENNACE OF GAUTENG JOHANNESBURG FREEWAYS | G2: SECTION M6500
A3: PART B : OPERATIONAL
A5: ITEM NO | C5: DESCRIPTION | D5: UNIT | E5: QUANTITY | F5: RATE | G5: AMOUNT
A8: M650 | C8: ESTABLISHMENT OF GRASS
A10: M650.01 | C10: Trimming for grassing
A12: M650.01(a) | C12: Machine trimming | D12: m2 | E12: 1 | G12: =ROUND(E12*(ROUND(F12,2)),2) -> 0.00
A14: M650.01(b) | C14: Hand trimming | D14: m2 | E14: 1 | G14: 0.00
A16: M650.02 | C16: Loosening of topsoil
A18: M650.02(a) | C18: Ripping | D18: ha | E18: 1 | G18: 0.00
A20: M650.02(b) | C20: Ploughing for loosening topsoil | D20: ha | E20: 1 | G20: 0.00
A22: M650.03 | C22: Topsoil placing
A24: M650.03(a) | C24: Flat areas | D24: m3 | E24: 1 | G24: 0.00
A26: M650.03(b) | C26: Slopes | D26: m3 | E26: 1 | G26: 0.00
A28: M650.04 | C28: Overhaul on material hauled in excess of 1,0 km | D28: m3 - km | E28: 2 | G28: 0.00
A30: M650.05 | C30: Chemical fertiliser and/or soil improvement material
C31: for grassing (2:3:2(22)+Zn) | D31: ton | E31: 1 | G31: =ROUND(E31*(ROUND(F31,2)),2) -> 0.00
A33: M650.07 | C33: Grassing
A35: M650.07(a) | C35: Grass runners (kikuyu) | D35: m2 | E35: 1 | G35: 0.00
A37: M650.07(b) | C37: Sodding
A39: M650.07(b)(i) | C39: Nursery sods (kikuyu) | D39: m2 | E39: 1 | G39: 0.00
A41: M650.07(b)(ii) | C41: Veld sods | D41: m2 | E41: 1 | G41: 0.00
A43: M650.07(c) | C43: Hydro seeding and hand sowing
A45: M650.07(c)(i) | C45: Providing an approved seed mixture for hydro
C46: seeding or hand sowing | D46: kg | E46: 1 | G46: =ROUND(E46*(ROUND(F46,2)),2) -> 0.00
A48: M650.07(c)(ii) | C48: Hydro seeding | D48: ha | E48: 1 | G48: 0.00
A50: M650.07(c)(iii) | C50: Hand sowing (labour-intensive) | D50: m2 | E50: 1 | G50: 0.00
G52: =IF(OR(AND(E52="Prov",F52="Sum"),(F52="PC Sum")),". . . . . . . . .00",IF(ISERR(E52*F52),"",IF(E52*F52=0,"",ROUND(E52*F52,2)))) -> 
A70: =A8 -> M650 | C70: TOTAL CARRIED TO SUMMARY | G70: =SUM(G7:G68) -> 0.00

Sheet Part B - M9100 Non-toll
A1: ='Part A - Mng M0200 Non-toll'!A1 -> CONTRACT NRA N.017-010-2023/1 NON- TOLL
A2: ='Part A - Mng M0200 Non-toll'!A2 -> SCHEDULE A: ROUTINE ROAD MAINTENNACE OF GAUTENG JOHANNESBURG FREEWAYS | G2: SECTION M9100
A3: PART B : OPERATIONAL
A5: ITEM NO | C5: DESCRIPTION | D5: UNIT | E5: QUANTITY | F5: RATE | G5: AMOUNT
A8: M910 | C8: DAYWORKS SCHEDULE
A10: M910.01 | C10: Labour during normal working hours
A12: M910.01(a) | C12: Unskilled | D12: hour | E12: 3 | G12: =ROUND(E12*(ROUND(F12,2)),2) -> 0.00
A14: M910.01(b) | C14: Semi-skilled | D14: hour | E14: 2 | G14: =ROUND(E14*(ROUND(F14,2)),2) -> 0.00
A16: M910.01(c) | C16: Skilled | D16: hour | E16: 1 | G16: =ROUND(E16*(ROUND(F16,2)),2) -> 0.00
A18: M910.01(d) | C18: Team Leader (Ganger) | D18: hour | E18: 1 | G18: =ROUND(E18*(ROUND(F18,2)),2) -> 0.00
A20: M910.01(e) | C20: Flagmen | D20: hour | E20: 3 | G20: =ROUND(E20*(ROUND(F20,2)),2) -> 0.00
A22: M910.02 | C22: Labour outside normal working hours
A24: M910.02(a) | C24: Outside normal working hours and Saturdays
A26: M910.02(a)(i) | C26: Unskilled | D26: hour | E26: 3 | G26: =ROUND(E26*(ROUND(F26,2)),2) -> 0.00
A28: M910.02(a)(ii) | C28: Semi-skilled | D28: hour | E28: 2 | G28: =ROUND(E28*(ROUND(F28,2)),2) -> 0.00
A30: M910.02(a)(iii) | C30: Skilled | D30: hour | E30: 1 | G30: =ROUND(E30*(ROUND(F30,2)),2) -> 0.00
A32: M910.02(a)(iv) | C32: Team Leader (Ganger) | D32: hour | E32: 1 | G32: =ROUND(E32*(ROUND(F32,2)),2) -> 0.00
A34: M910.02(a)(v) | C34: Flagmen | D34: hour | E34: 3 | G34: =ROUND(E34*(ROUND(F34,2)),2) -> 0.00
A36: M910.02(b) | C36: Sundays and public holidays
A38: M910.02(b)(i) | C38: Unskilled | D38: hour | E38: 2 | G38: =ROUND(E38*(ROUND(F38,2)),2) -> 0.00
A40: M910.02(b)(ii) | C40: Semi-skilled | D40: hour | E40: 2 | G40: =ROUND(E40*(ROUND(F40,2)),2) -> 0.00
A42: M910.02(b)(iii) | C42: Skilled | D42: hour | E42: 1 | G42: =ROUND(E42*(ROUND(F42,2)),2) -> 0.00
A44: M910.02(b)(iv) | C44: Team Leader (Ganger) | D44: hour | E44: 1 | G44: =ROUND(E44*(ROUND(F44,2)),2) -> 0.00
A46: M910.02(b)(v) | C46: Flagmen | D46: hour | E46: 2 | G46: =ROUND(E46*(ROUND(F46,2)),2) -> 0.00
A48: M910.03 | C48: Equipment and Transport
A50: M910.03(a) | C50: Tipper Trucks
A52: M910.03(a)(i) | C52: 3 to 5 ton capacity | D52: hour | E52: 2 | G52: =ROUND(E52*(ROUND(F52,2)),2) -> 0.00
A54: M910.03(a)(ii) | C54: More than 5 ton capacity | D54: hour | E54: 2 | G54: =ROUND(E54*(ROUND(F54,2)),2) -> 0.00
A56: M910.03(b) | C56: Loader (0,5 m3) bucket | D56: hour | E56: 2 | G56: =ROUND(E56*(ROUND(F56,2)),2) -> 0.00
A58: M910.03(c) | C58: Grader(CAT 140G or similar) | D58: hour | E58: 2 | G58: =ROUND(E58*(ROUND(F58,2)),2) -> 0.00
A71: M9100 | C71: CARRIED FORWARD | G71: =SUM(G7:G69) -> 0.00
A72: =$A$1 -> CONTRACT NRA N.017-010-2023/1 NON- TOLL
A73: =$A$2 -> SCHEDULE A: ROUTINE ROAD MAINTENNACE OF GAUTENG JOHANNESBURG FREEWAYS | G73: =+G2 -> SECTION M9100
A74: =$A$3 -> PART B : OPERATIONAL
A76: ITEM NO | C76: DESCRIPTION | D76: UNIT | E76: QUANTITY | F76: RATE | G76: AMOUNT
C79: BROUGHT FORWARD | G79: =G71 -> 0.00
A81: M910.03(d) | C81: Compactor (Bomag BW 90 or similar) | D81: hour | E81: 10 | G81: =ROUND(E81*(ROUND(F81,2)),2) -> 0.00
A83: M910.03(e) | C83: Water truck (5 000 l) | D83: hour | E83: 10 | G83: =ROUND(E83*(ROUND(F83,2)),2) -> 0.00
A85: M910.03(h) | C85: Suitable truck/bus for transporting labourers (20) | D85: hour | E85: 10 | G85: =ROUND(E85*(ROUND(F85,2)),2) -> 0.00
A87: M910.03(i) | C87: Safety vehicle for pre-marking purposes | D87: hour | E87: 10 | G87: =ROUND(E87*(ROUND(F87,2)),2) -> 0.00
A89: M910.03(j) | C89: Compressor (air) including hoses and
C90: tools (150 to 200) | D90: hour | E90: 10 | G90: =ROUND(E90*(ROUND(F90,2)),2) -> 0.00
A92: M910.03(k) | C92: Dewatering pump including generators and
C93: accessories (100mm, dirty water) | D93: hour | E93: 10 | G93: =ROUND(E93*(ROUND(F93,2)),2) -> 0.00
A95: M910.03(l) | C95: Mobile electric welding sets and accessories (350amp) | D95: hour | E95: 10 | G95: =ROUND(E95*(ROUND(F95,2)),2) -> 0.00
A97: M910.03(m) | C97: Cutting torch with mobile electric and oxy
C98: acetylene installation | D98: hour | E98: 10 | G98: =ROUND(E98*(ROUND(F98,2)),2) -> 0.00
A100: M910.03(n) | C100: Mobile concrete mixer (500 l) | D100: hour | E100: 10 | G100: =ROUND(E100*(ROUND(F100,2)),2) -> 0.00
A102: M910.03(o) | C102: Flat bed truck (7 ton) | D102: hour | E102: 10 | G102: =ROUND(E102*(ROUND(F102,2)),2) -> 0.00
A104: M910.03(p) | C104: Light delivery vehicle (LDV) | D104: hour | E104: 10 | G104: =ROUND(E104*(ROUND(F104,2)),2) -> 0.00
A106: M910.03(q) | C106: Centremount cranes (6 ton) | D106: hour | E106: 10 | G106: =ROUND(E106*(ROUND(F106,2)),2) -> 0.00
A108: M910.03(r) | C108: Portable generator set (6.5 KVa) | D108: hour | E108: 10 | G108: =ROUND(E108*(ROUND(F108,2)),2) -> 0.00
A110: M910.03(s) | C110: TLB | D110: hour | E110: 10 | G110: =ROUND(E110*(ROUND(F110,2)),2) -> 0.00
A112: M910.03(t) | C112: Bobcat | D112: hour | E112: 10 | G112: =ROUND(E112*(ROUND(F112,2)),2) -> 0.00
A114: M910.03(v) | C114: Excavator (18-22 ton tracked) | D114: hour | E114: 10 | G114: =ROUND(E114*(ROUND(F114,2)),2) -> 0.00
A116: M910.03(w) | C116: Sky-jack 5 m | D116: hour | E116: 10 | G116: =ROUND(E116*(ROUND(F116,2)),2) -> 0.00
A118: M910.03(x) | C118: Establishment of loader (bucket 0,5 cubic metre) to site | D118: No | E118: 2 | G118: =ROUND(E118*(ROUND(F118,2)),2) -> 0.00
A120: M910.03(y) | C120: Establishment of Grader (CAT 140 G or similar) | D120: No | E120: 2 | G120: =ROUND(E120*(ROUND(F120,2)),2) -> 0.00
A122: M910.03(z) | C122: Establishment of Excavator (18-22 ton tracked) | D122: No | E122: 2 | G122: =ROUND(E122*(ROUND(F122,2)),2) -> 0.00
A142: M9100 | C142: CARRIED FORWARD | G142: =SUM(G78:G140) -> 0.00
A143: =$A$1 -> CONTRACT NRA N.017-010-2023/1 NON- TOLL
A144: =$A$2 -> SCHEDULE A: ROUTINE ROAD MAINTENNACE OF GAUTENG JOHANNESBURG FREEWAYS | G144: =+G73 -> SECTION M9100
A145: =$A$3 -> PART B : OPERATIONAL
A147: ITEM NO | C147: DESCRIPTION | D147: UNIT | E147: QUANTITY | F147: RATE | G147: AMOUNT
C150: BROUGHT FORWARD | G150: =G142 -> 0.00
A152: M910.04 | C152: Procurement of materials
A154: M910.04(a) | C154: Procurement of materials | D154: Prov Sum | E154: 1 | F154: 200,000.00 | G154: =ROUND(E154*(ROUND(F154,2)),2) -> 200,000.00
A156: M910.04(b) | C156: The Contractors overhead charges and profit in
C157: respect of sub-item M910.04 (a) | D157: % | E157: =G154 -> 200,000 | G157: =ROUND(E157*(ROUND(F157,2)),2) -> 0.00
A159: M910.05 | C159: Extra over item M910.03 for establishment,
C160: within 24 hours of
A162: M910.05(a) | C162: Tipper Trucks | D162: No | E162: 2 | G162: =ROUND(E162*(ROUND(F162,2)),2) -> 0.00
A164: M910.05(a)(i) | C164: 3 to 5 ton capacity | D164: No | E164: 2 | G164: =ROUND(E164*(ROUND(F164,2)),2) -> 0.00
A166: M910.05(a)(ii) | C166: More than 5 ton capacity | D166: No | E166: 2 | G166: =ROUND(E166*(ROUND(F166,2)),2) -> 0.00
A168: M910.05(b) | C168: Dewatering pump including generators and
C169: accessories (specify size) | D169: No | E169: 2 | G169: =ROUND(E169*(ROUND(F169,2)),2) -> 0.00
A171: M910.05(c) | C171: Water truck (5 000 l) | D171: No | E171: 2 | G171: =ROUND(E171*(ROUND(F171,2)),2) -> 0.00
A173: M910.05(d) | C173: TLB | D173: No | E173: 2 | G173: =ROUND(E173*(ROUND(F173,2)),2) -> 0.00
A175: M910.05(e) | C175: Bobcat | D175: No | E175: 2 | G175: =ROUND(E175*(ROUND(F175,2)),2) -> 0.00
A177: M910.06 | C177: Repairs to the road network
A179: M910.06(a) | C179: Repairs to the road network | D179: Prov Sum | E179: 1 | F179: 250,000.00 | G179: =ROUND(E179*(ROUND(F179,2)),2) -> 250,000.00
A181: M910.06(b) | C181: The Contractor’s overhead charges and profit in
C182: respect of sub-item M910.06(a) | D182: % | E182: =G179 -> 250,000 | G182: =ROUND(E182*(ROUND(F182,2)),2) -> 0.00
A184: M910.07 | C184: Minor road infrastructure
A186: M910.07(a) | C186: Minor Infrastructure | D186: Prov Sum | E186: 1 | F186: 100,000.00 | G186: =ROUND(E186*(ROUND(F186,2)),2) -> 100,000.00
A188: M910.07(b) | C188: The Contractors overhead charges and profit in
C189: respect of subitem M910.07(a) | D189: % | E189: =G186 -> 100,000 | G189: =ROUND(E189*(ROUND(F189,2)),2) -> 0.00
A213: M9100 | C213: TOTAL CARRIED TO SUMMARY | G213: =SUM(G149:G211) -> 550 000.00

Sheet Part C - M9200 Non-toll
A1: ='Part A - Mng M0200 Non-toll'!A1 -> CONTRACT NRA N.017-010-2023/1 NON- TOLL
A2: ='Part A - Mng M0200 Non-toll'!A2 -> SCHEDULE A: ROUTINE ROAD MAINTENNACE OF GAUTENG JOHANNESBURG FREEWAYS | G2: SECTION M9200
A3: PART C : TARGETED ENTERPRISE
A5: ITEM NO | C5: DESCRIPTION | D5: UNIT | E5: QUANTITY | F5: RATE | G5: AMOUNT
A8: M920 | C8: TARGETED ENTERPISE
G9: =IF(OR(AND(E9="Prov",F9="Sum"),(F9="PC Sum")),". . . . . . . . .00",IF(ISERR(E9*F9),"",IF(E9*F9=0,"",ROUND(E9*F9,2)))) -> 
A10: M920.01 | C10: Additional costs for sub-contractors | G10: =IF(OR(AND(E10="Prov",F10="Sum"),(F10="PC Sum")),". . . . . . . . .00",IF(ISERR(E10*F10),"",IF(E10*F10=0,"",ROUND(E10*F10,2)))) -> 
A12: M920.01(a) | C12: Establishment on site and general obligations
C13: of sub-contractors | D13: Prov Sum | E13: 1 | F13: 5 074 811.00 | G13: 5,074,811.00
A15: M920.02 | C15: Construction Works by Targeted Enterprise
A17: M920.02(a) | C17: Payment associated with the construction works
C18: carried out by Targeted Enterprise sub-contractors
C19: of all levels of contractor grading designation
C20: appointed in terms of Part D | D20: PrimeCost | E20: 1.00 | F20: 28,757,263.00 | G20: =IF(OR(AND(E20="Prov",F20="Sum"),(F20="PC Sum")),". . . . . . . . .00",IF(ISERR(E20*F20),"",IF(E20*F20=0,"",ROUND(E20*F20,2)))) -> 28,757,263.00
A22: M920.02(b) | C22: Handling cost and profit in respect of payments
C23: Associated with subitem M920.02(a) | D23: % | E23: =G20 -> 28 757 263
A68: =A8 -> M920 | C68: TOTAL CARRIED TO SUMMARY | G68: =SUM(G7:G66) -> 33 832 074.00

Sheet Summary Non-toll
A1: SUMMARY OF BILL OF QUANTITIES
A2: ='Part A - Mng M0200 Non-toll'!A1 -> CONTRACT NRA N.017-010-2023/1 NON- TOLL
A3: ='Part A - Mng M0200 Non-toll'!A2 -> SCHEDULE A: ROUTINE ROAD MAINTENNACE OF GAUTENG JOHANNESBURG FREEWAYS
A5: SECTION | B5: DESCRIPTION | D5: AMOUNT
B7: PART A : MANAGEMENT SECTION
A8: M0300 | B8: CONTRACTOR'S ESTABLISHMENT ON SITE AND GENERAL OBLIGATIONS | D8: ='Part A - Mng M0300 Non-toll'!G64 -> 250 000.00
A9: M0200 | B9: GENERAL REQUIREMENTS AND PROVISION | D9: ='Part A - Mng M0200 Non-toll'!G140 -> 835 000.00
A10: M0400 | B10: ROUTE PATROL SERVICES | D10: ='Part A - Mng M0400 Non-toll'!G66 -> 250 000.00
A11: M0500 | B11: ACCOMMODATION OF TRAFFIC | D11: ='Part A - Mng M0500 Non-toll'!G68 -> 0.00
A12: M0600 | B12: SKILLS DEVELOPMENT | D12: ='Part A - Mng M0600 Non-toll'!G66 -> 281 872.00
A13: M1100 | B13: PAVEMENT LAYERS REPAIR | D13: ='Part A - Mng M1100 Non-toll'!G67 -> 0.00
A14: M1200 | B14: REPAIR OF POTHOLES, EDGE BREAKS AND SURFACE FAILURES | D14: ='Part A - Mng M1200 Non-toll'!G66 -> 0.00
A15: M1600 | B15: SURFACE TREATMENT OF SURFACED ROADS | D15: ='Part A - Mng M1600 Non-toll'!G66 -> 500 000.00
A16: M7100 | B16: EMERGENCY STANDBY TEAM | D16: ='Part A - Mng M7100 Non-toll'!G66 -> 0.00
A17: M7200 | B17: ALL-EMERGENCY NORMALISATION | D17: ='Part A - Mng M7200 Non-toll'!G69 -> 250 000.00
A18: M8100 | B18: MINOR REPAIRS TO STRUCTURES | D18: ='Part A - Mng M8100 Non-toll'!G70 -> 1 000 000.00
A20: SUB-TOTAL PART A : MANAGEMENT SECTION | D20: =SUM(D8:D18) -> 3 366 872.00
B21: PART B : OPERATIONAL SECTION
A22: M1300 | B22: CRACK SEALING | D22: ='Part B - M1300 Non-toll'!G67 -> 0.00
A23: M1500 | B23: CRACK AND JOINT SEALING OF CONCRETE PAVEMENTS | D23: ='Part B - M1500 Non-toll'!G73 -> 100 000.00
A24: M1700 | B24: REPAIR OF SLOPE FAILURES AND WASHAWAYS | D24: ='Part B - M1700 Non-toll'!G69 -> 1 000 000.00
A25: M2100 | B25: REPAIR AND MAINTENANCE OF INLET AND OUTLET STRUCTURES | D25: ='Part B - M2100 Non-toll'!G135 -> 505 000.00
A26: M2200 | B26: SUBSOIL DRAIN INSTALLATION AND MAINTENANCE | D26: ='Part B - M2200 Non-toll'!G69 -> 0.00
A27: M2300 | B27: CLEANING OF WATERWAY STRUCTURES | D27: ='Part B - M2300 Non-toll'!G56 -> 0.00
A28: M2400 | B28: CLEANING OF PREFABRICATED CULVERTS | D28: ='Part B - M2400 Non-toll'!G65 -> 0.00
A29: M2500 | B29: CLEANING OF CONCRETE DRAINS AND CHANNELS | D29: ='Part B - M2500 Non-toll'!G65 -> 0.00
A30: M2600 | B30: CLEANING AND MAINTENANCE OF EXISTING EARTH CHANNELS | D30: ='Part B - M2600 Non-toll'!G66 -> 0.00
A31: M2700 | B31: EDGE BUILD-UP REMOVAL | D31: ='Part B - M2700 Non-toll'!G65 -> 0.00
A32: M2800 | B32: CONCRETE CHANNEL CONSTRUCTION AND MAINT. OF EXISTING CHANNELS | D32: ='Part B - M2800 Non-toll'!G133 -> 0.00
A33: M3100 | B33: FENCING | D33: ='Part B - M3100 Non-toll'!G203 -> 100 000.00
A34: M3200 | B34: COLLECTION AND REMOVAL OF DEBRIS AND LITTER | D34: ='Part B - M3200 Non-toll'!G68 -> 0.00
A35: M3300 | B35: SHOULDER REPAIRS | D35: ='Part B - M3300 Non-toll'!G74 -> 0.00
A36: M3500 | B36: STABILISATION OF CUTTINGS | D36: ='Part B - M3500 Non-toll'!G74 -> 1 000 000.00
A37: M4100 | B37: ERECTION AND REPAIR OF PERMANENT ROAD TRAFFIC SIGNS | D37: ='Part B - M4100 Non-toll'!G147 -> 150 000.00
A38: M4200 | B38: ROAD SIGN CLEANING AND REMOVAL OF ILLEGAL SIGNS | D38: ='Part B - M4200 Non-toll'!G67 -> 100 000.00
A39: M4300 | B39: ROADSTUDS | D39: ='Part B - M4300 Non-toll'!G66 -> 20 000.00
A40: M4400 | B40: GUARDRAIL ERECTION AND MAINTENANCE | D40: ='Part B - M4400 Non-toll'!G302 -> 150 000.00
A41: M4500 | B41: DAZZLE SCREEN ERECTION AND REPLACEMENT | D41: ='Part B - M4500 Non-toll'!G71 -> 0.00
A42: M4600 | B42: ROAD MARKINGS | D42: ='Part B - M4600 Non-toll'!G73 -> 200 000.00
A43: M5100 | B43: GENERAL EROSION PROTECTION | D43: ='Part B - M5100 Non-toll'!G74 -> 30 000.00
A44: M5200 | B44: GABION PROTECTION | D44: ='Part B - M5200 Non-toll'!G70 -> 0.00
A45: M6100 | B45: CONTROLLING VEGETATION GROWTH: MOWING AND CUTTING | D45: ='Part B - M6100 Non-toll'!G69 -> 0.00
A46: M6200 | B46: CHEMICAL CONTROL OF VEG. AND ERADICATION OF UNDESIRABLE VEGETATION | D46: ='Part B - M6200 Non-toll'!G75 -> 0.00
A47: M6300 | B47: REMOVAL OF UNDESIRABLE VEGETATION: PHYSICAL ERADICATION | D47: ='Part B - M6300 Non-toll'!G70 -> 0.00
A48: M6400 | B48: MAINTENANCE AND ESTABLISHMENT OF PLANTS, TREES AND SHRUBS | D48: ='Part B - M6400 Non-toll'!G71 -> 10 000.00
A49: M6500 | B49: ESTABLISHMENT OF GRASS | D49: ='Part B - M6500 Non-toll'!G70 -> 0.00
A50: M9100 | B50: DAYWORKS SCHEDULE | D50: ='Part B - M9100 Non-toll'!G213 -> 550 000.00
A52: SUB-TOTAL PART B : OPERATIONAL SECTION | D52: =SUM(D22:D51) -> 3 915 000.00
B53: PART C : TARGETED ENTERPRISE
A54: M9200 | B54: TARGETED ENTERPRISE | D54: ='Part C - M9200 Non-toll'!G68 -> 33 832 074.00
A56: SUB-TOTAL PART C : TARGETED ENTERPRISE | D56: =SUM(D54) -> 33 832 074.00
A58: TOTAL | D58: =D20+D52+D56 -> 41 113 946.00

Sheet SUMMARY OF PRICING SCHEDULE NT
B2: C2.3 | C2: SUMMARY OF PRICING SCHEDULE
B4: CONTRACT SANRAL NRA X.002-162-2023/1 (TOLL) & N.017-010-2023/1 (NON-TOLL) FOR THE ROUTINE ROAD MAINTENANCE OF NATIONAL ROUTE 1 SECTION 19, N1 SECTION 20, N1 SECTION 21, N3 SECTION 12, N12 SECTION 18 & N17 SECTION 1 (JOHANNESBURG RRM)
B7: PART A: | C7: MANAGEMENT CONTRACTOR | G7: ='Summary Non-toll'!D20 -> R3,366,872.00
B9: PART B: | C9: OPERATIONS CONTRACTOR | G9: ='Summary Non-toll'!D52 -> R3,915,000.00
B11: PART C: | C11: TARGETED ENTERPRISE | G11: ='Summary Non-toll'!D56 -> R33,832,074.00
B13: SUB TOTAL | G13: =G7+G9+G11 -> R41,113,946.00

Sheet SUMMARY OF SCHEDULES COMBINED
B1: C2.3 | C1: SUMMARY OF PRICING SCHEDULE
B3: CONTRACT SANRAL NRA X.002-162-2023/1 (TOLL) & N.017-010-2023/1 (NON-TOLL) FOR THE ROUTINE ROAD MAINTENANCE OF NATIONAL ROUTE 1 SECTION 19, N1 SECTION 20, N1 SECTION 21, N3 SECTION 12, N12 SECTION 18 & N17 SECTION 1 (JOHANNESBURG RRM)
B10: SUBTOTAL TOLL: | G10: ='SUMMARY OF PRICING SCHEDULE T'!G13 -> R183,866,982.00
B12: SUBTOTAL NON-TOLL: | G12: ='SUMMARY OF PRICING SCHEDULE NT'!G13 -> R41,113,946.00
B16: SUBTOTAL: | G16: =G12+G10 -> R224,980,928.00
B18: VALUE ADDED TAX:
B20: 15% of SUBTOTAL | G20: =G16*0.15 -> R33,747,139.20
B22: TOTAL CARRIED TO C.1.1.1 : FORM OF OFFER | G22: =G16+G20 -> R258,728,067.20
B26: COMPANY NAME OF TENDERER ____________________________________________
B29: SIGNED ON BEHALF OF THE TENDERER _____________________________________
